Workbook

Sheet Lisier_porc (hidden)
C2: IMPORTANT: pour les bases d'analyse, H correspond àun échantillon tel que reçu et S àun échantillon séché au laboratoire
C3: Date de réception des échantillons: 2023-10-26
C4: Date Echantillonnage: 10-08-2023
B5: Base: | C5: H | D5: H | E5: H | F5: H | G5: H | H5: S | I5: S | J5: S | K5: S | L5: S | M5: S | N5: S | O5: H | P5: H | Q5: H | R5: H | S5: H | T5: H | U5: H | V5: H | W5: H | X5: H | Y5: H | Z5: H | AA5: H | AB5: H | AC5: H | AD5: H | AE5: H | AF5: H | AG5: H | AH5: H | AI5: H
B6: Paramètre: | C6: 501 | D6: 502 | E6: 503 | F6: 504 | G6: 506 | H6: 507 | I6: 507 | J6: 507 | K6: 507 | L6: 509 | M6: 509 | N6: 509 | O6: 512 | P6: 520 | Q6: 520 | R6: 520 | S6: 520 | T6: 520 | U6: 520 | V6: 520 | W6: 520 | X6: 520 | Y6: 520 | Z6: 520 | AA6: 520 | AB6: 520 | AC6: 520 | AD6: 520 | AE6: 520 | AF6: 520 | AG6: 520 | AH6: 520 | AI6: 520
B7: Élément: | C7: pH * | D7: N Total * | E7: N-NH4 * | F7: P Min HCl | G7: Mat. Sèche * | H7: Cendres * | I7: M.O | J7: C.O (1.724) | K7: C.O (2.00) | L7: C/N (1.724) | M7: C/N (2.00) | N7: NTK B.S. | O7: Densité apparente | P7: P | Q7: K | R7: Ca | S7: Mg | T7: Al | U7: B | V7: Cu | W7: Fe | X7: Mn | Y7: Zn | Z7: Mo | AA7: Na | AB7: Ni | AC7: Cd | AD7: Cr | AE7: Co | AF7: Pb | AG7: S | AH7: Ba | AI7: Sr
B8: Méthode: | C8: Eau | D8: NTK | E8: KCl 2 M | F8: HCl 2,5 N | G8: 105o C | H8: 500o C | I8: 500o C | J8: 500o C | K8: 500o C | L8: Calcul | M8: Calcul | N8: Calcul | O8: Gravimét. | P8: EPA-3050 | Q8: EPA-3050 | R8: EPA-3050 | S8: EPA-3050 | T8: EPA-3050 | U8: EPA-3050 | V8: EPA-3050 | W8: EPA-3050 | X8: EPA-3050 | Y8: EPA-3050 | Z8: EPA-3050 | AA8: EPA-3050 | AB8: EPA-3050 | AC8: EPA-3050 | AD8: EPA-3050 | AE8: EPA-3050 | AF8: EPA-3050 | AG8: EPA-3050 | AH8: EPA-3050 | AI8: EPA-3050
B9: Unité: | D9: mg/kg | E9: mg/kg | F9: mg/kg | G9: % | H9: % | I9: % | J9: % | K9: % | N9: % | O9: g / cm3 | P9: mg/kg | Q9: mg/kg | R9: mg/kg | S9: mg/kg | T9: mg/kg | U9: mg/kg | V9: mg/kg | W9: mg/kg | X9: mg/kg | Y9: mg/kg | Z9: mg/kg | AA9: mg/kg | AB9: mg/kg | AC9: mg/kg | AD9: mg/kg | AE9: mg/kg | AF9: mg/kg | AG9: mg/kg | AH9: mg/kg | AI9: mg/kg
B10: Limite de détection: | D10: 28 | E10: 1.93 | P10: 10 | Q10: 10 | R10: 10 | S10: 3 | T10: 10 | U10: 5 | V10: 1 | W10: 10 | X10: 1 | Y10: 0.3 | Z10: 1 | AA10: 3 | AB10: 1 | AC10: 0.3 | AD10: 1 | AE10: 1 | AF10: 1 | AG10: 10 | AH10: 0.3 | AI10: 0.3
A11: No. de Lab | B11: Limite de quantification: | D11: 95 | E11: 6.43 | P11: 30 | Q11: 30 | R11: 30 | S11: 9 | T11: 30 | U11: 15 | V11: 3 | W11: 30 | X11: 3 | Y11: 1 | Z11: 3 | AA11: 9 | AB11: 3 | AC11: 1 | AD11: 3 | AE11: 3 | AF11: 3 | AG11: 30 | AH11: 1 | AI11: 1
B12: Date d'analyse: | C12: 2023-11-02 | D12: 2023-11-28 | E12: 2023-11-07 | F12: 2023-11-20 | G12: 2023-11-06 | H12: 2023-11-07 | I12: 2023-11-07 | J12: 2023-11-07 | K12: 2023-11-07 | L12: 2023-11-30 | M12: 2023-11-30 | N12: 2023-11-30 | O12: 2023-10-30 | P12: 2023-11-28 | Q12: 2023-11-28 | R12: 2023-11-28 | S12: 2023-11-28 | T12: 2023-11-28 | U12: 2023-11-28 | V12: 2023-11-28 | W12: 2023-11-28 | X12: 2023-11-28 | Y12: 2023-11-28 | Z12: 2023-11-28 | AA12: 2023-11-28 | AB12: 2023-11-28 | AC12: 2023-11-28 | AD12: 2023-11-28 | AE12: 2023-11-28 | AF12: 2023-11-28 | AG12: 2023-11-28 | AH12: 2023-11-28 | AI12: 2023-11-28
B13: Codification
A14: 23PL0014PK | B14: Lisier porc - pendillard 21-août-2023 | C14: 7.16 | D14: 5494 | E14: 2593.5042 | F14: 1380 | G14: 7.65 | H14: 22.4 | I14: 77.6 | J14: 45 | K14: 38.8 | L14: 6.26 | M14: 5.4 | N14: 7.18 | O14: 1.01 | P14: 1458 | Q14: 2389 | R14: 1129 | S14: 1302 | T14: 56.2 | U14: 3.47 | V14: 65.7 | W14: 138 | X14: 25.6 | Y14: 85.5 | Z14: 0 | AA14: 1094 | AB14: 0 | AC14: 0 | AD14: 0 | AE14: 0 | AF14: 0 | AG14: 655 | AH14: 2.95 | AI14: 3.57
A15: 23PL0015PK | B15: Lisier porc 23-08-2023 - champ 9 | C15: 7.26 | D15: 5448 | E15: 2665.9751 | F15: 1302 | G15: 6.92 | H15: 24.3 | I15: 75.7 | J15: 43.9 | K15: 37.9 | L15: 5.58 | M15: 4.81 | N15: 7.87 | O15: 1 | P15: 1355 | Q15: 2401 | R15: 799 | S15: 1216 | T15: 58.1 | U15: 3.39 | V15: 59 | W15: 119 | X15: 22.8 | Y15: 75.8 | Z15: 0 | AA15: 1118 | AB15: 0 | AC15: 0 | AD15: 0 | AE15: 0 | AF15: 0 | AG15: 617 | AH15: 2.52 | AI15: 2.77
A16: 23PL0016PK | B16: Lisier porc Épandage champ #9 et #34 28-août-2023 | C16: 7.22 | D16: 5516 | E16: 2725.7354 | F16: 1397 | G16: 7.37 | H16: 23.3 | I16: 76.8 | J16: 44.5 | K16: 38.4 | L16: 5.95 | M16: 5.12 | N16: 7.49 | O16: 1.02 | P16: 1443 | Q16: 2456 | R16: 820 | S16: 1294 | T16: 60.5 | U16: 3.64 | V16: 62.8 | W16: 120 | X16: 24.3 | Y16: 78 | Z16: 0 | AA16: 1129 | AB16: 0 | AC16: 0 | AD16: 0 | AE16: 0 | AF16: 0 | AG16: 641 | AH16: 2.77 | AI16: 3.05
A17: 23PL0017PK | B17: Lisier porc 01/09/2023 - champ 9 | C17: 7.35 | D17: 5236 | E17: 2673.1831 | F17: 1197 | G17: 6.53 | H17: 24.2 | I17: 75.8 | J17: 44 | K17: 37.9 | L17: 5.48 | M17: 4.73 | N17: 8.02 | O17: 1.01 | P17: 1248 | Q17: 2487 | R17: 667 | S17: 1131 | T17: 54.4 | U17: 3.27 | V17: 53.9 | W17: 107 | X17: 21.2 | Y17: 71.6 | Z17: 0 | AA17: 1104 | AB17: 0 | AC17: 0 | AD17: 0 | AE17: 0 | AF17: 0 | AG17: 607 | AH17: 2.46 | AI17: 3.03
C18: =AVERAGE(C14:C17) -> 7.2475 | D18: =AVERAGE(D14:D17) -> 5423.5 | E18: =AVERAGE(E14:E17) -> 2664.59945 | F18: 1319 | G18: 7.1175 | H18: 23.55 | I18: 76.475 | J18: 44.35 | K18: 38.25 | L18: 5.8175 | M18: 5.015 | N18: 7.64 | O18: 1.01 | P18: 1376 | Q18: 2433.25 | R18: 853.75

Sheet Lisier_vache (hidden)
A31: Base: | B31: H | C31: H | D31: H | E31: H | F31: H | G31: S | H31: S | I31: S | J31: S | K31: S | L31: S | M31: S | N31: H | O31: H | P31: H | Q31: H | R31: H | S31: H | T31: H | U31: H | V31: H | W31: H | X31: H | Y31: H | Z31: H | AA31: H | AB31: H | AC31: H | AD31: H | AE31: H | AF31: H | AG31: H | AH31: H
A32: Paramètre: | B32: 501 | C32: 502 | D32: 503 | E32: 504 | F32: 506 | G32: 507 | H32: 507 | I32: 507 | J32: 507 | K32: 509 | L32: 509 | M32: 509 | N32: 512 | O32: 520 | P32: 520 | Q32: 520 | R32: 520 | S32: 520 | T32: 520 | U32: 520 | V32: 520 | W32: 520 | X32: 520 | Y32: 520 | Z32: 520 | AA32: 520 | AB32: 520 | AC32: 520 | AD32: 520 | AE32: 520 | AF32: 520 | AG32: 520 | AH32: 520
A33: Élément: | B33: pH * | C33: N Total * | D33: N-NH4 * | E33: P Min HCl | F33: Mat. Sèche * | G33: Cendres * | H33: M.O | I33: C.O (1.724) | J33: C.O (2.00) | K33: C/N (1.724) | L33: C/N (2.00) | M33: NTK B.S. | N33: Densité apparente | O33: P | P33: K | Q33: Ca | R33: Mg | S33: Al | T33: B | U33: Cu | V33: Fe | W33: Mn | X33: Zn | Y33: Mo | Z33: Na | AA33: Ni | AB33: Cd | AC33: Cr | AD33: Co | AE33: Pb | AF33: S | AG33: Ba | AH33: Sr
A34: Méthode: | B34: Eau | C34: NTK | D34: KCl 2 M | E34: HCl 2,5 N | F34: 105o C | G34: 500o C | H34: 500o C | I34: 500o C | J34: 500o C | K34: Calcul | L34: Calcul | M34: Calcul | N34: Gravimét. | O34: EPA-3050 | P34: EPA-3050 | Q34: EPA-3050 | R34: EPA-3050 | S34: EPA-3050 | T34: EPA-3050 | U34: EPA-3050 | V34: EPA-3050 | W34: EPA-3050 | X34: EPA-3050 | Y34: EPA-3050 | Z34: EPA-3050 | AA34: EPA-3050 | AB34: EPA-3050 | AC34: EPA-3050 | AD34: EPA-3050 | AE34: EPA-3050 | AF34: EPA-3050 | AG34: EPA-3050 | AH34: EPA-3050
A35: Unité: | C35: mg/kg | D35: mg/kg | E35: mg/kg | F35: % | G35: % | H35: % | I35: % | J35: % | M35: % | N35: g / cm3 | O35: mg/kg | P35: mg/kg | Q35: mg/kg | R35: mg/kg | S35: mg/kg | T35: mg/kg | U35: mg/kg | V35: mg/kg | W35: mg/kg | X35: mg/kg | Y35: mg/kg | Z35: mg/kg | AA35: mg/kg | AB35: mg/kg | AC35: mg/kg | AD35: mg/kg | AE35: mg/kg | AF35: mg/kg | AG35: mg/kg | AH35: mg/kg
A36: Limite de détection: | C36: 28 | D36: 1.93 | O36: 10 | P36: 10 | Q36: 10 | R36: 3 | S36: 10 | T36: 5 | U36: 1 | V36: 10 | W36: 1 | X36: 0.3 | Y36: 1 | Z36: 3 | AA36: 1 | AB36: 0.3 | AC36: 1 | AD36: 1 | AE36: 1 | AF36: 10 | AG36: 0.3 | AH36: 0.3
A37: Limite de quantification: | C37: 95 | D37: 6.43 | O37: 30 | P37: 30 | Q37: 30 | R37: 9 | S37: 30 | T37: 15 | U37: 3 | V37: 30 | W37: 3 | X37: 1 | Y37: 3 | Z37: 9 | AA37: 3 | AB37: 1 | AC37: 3 | AD37: 3 | AE37: 3 | AF37: 30 | AG37: 1 | AH37: 1
A38: Date d'analyse: | B38: 2023-11-02 | C38: 2023-11-28 | D38: 2023-11-07 | E38: 2023-11-20 | F38: 2023-11-06 | G38: 2023-11-07 | H38: 2023-11-07 | I38: 2023-11-07 | J38: 2023-11-07 | K38: 2023-11-30 | L38: 2023-11-30 | M38: 2023-11-30 | N38: 2023-10-30 | O38: 2023-11-28 | P38: 2023-11-28 | Q38: 2023-11-28 | R38: 2023-11-28 | S38: 2023-11-28 | T38: 2023-11-28 | U38: 2023-11-28 | V38: 2023-11-28 | W38: 2023-11-28 | X38: 2023-11-28 | Y38: 2023-11-28 | Z38: 2023-11-28 | AA38: 2023-11-28 | AB38: 2023-11-28 | AC38: 2023-11-28 | AD38: 2023-11-28 | AE38: 2023-11-28 | AF38: 2023-11-28 | AG38: 2023-11-28 | AH38: 2023-11-28
A39: Codification
A40: Fumier Boivin B. B.Horizontaux 10-août-2023 | B40: 7.46 | C40: 9055 | D40: 1203 | E40: 1512 | F40: 28.7 | G40: 15.5 | H40: 84.5 | I40: 49 | J40: 42.2 | K40: 15.5 | L40: 13.4 | M40: 3.16 | N40: 0.455 | O40: 2105 | P40: 4665 | Q40: 4810 | R40: 959 | S40: 58.5 | T40: 0 | U40: 21.6 | V40: 186 | W40: 38.1 | X40: 46.2 | Y40: 1.19 | Z40: 808 | AA40: 3.35 | AB40: 0 | AC40: 4.56 | AD40: 0 | AE40: 0 | AF40: 940 | AG40: 9.38 | AH40: 9.9
A41: Fumier bovin boucherie 14-08-2023 | B41: 8.31 | C41: 7308 | D41: 909 | E41: 1053 | F41: 29.6 | G41: 10.2 | H41: 89.8 | I41: 52.1 | J41: 44.9 | K41: 21.1 | L41: 18.2 | M41: 2.47 | N41: 0.457 | O41: 1557 | P41: 4834 | Q41: 4007 | R41: 899 | S41: 54.9 | T41: 0 | U41: 11 | V41: 164 | W41: 38.5 | X41: 44.3 | Y41: 0 | Z41: 570 | AA41: 0 | AB41: 0 | AC41: 1.17 | AD41: 0 | AE41: 0 | AF41: 821 | AG41: 7.99 | AH41: 9.06
A42: Fumier bovin boucherie 04-10-2023 | B42: 8.04 | C42: 8812 | D42: 3387 | E42: 1740 | F42: 31.1 | G42: 15.6 | H42: 84.4 | I42: 49 | J42: 42.2 | K42: 17.3 | L42: 14.9 | M42: 2.84 | N42: 0.444 | O42: 2198 | P42: 4692 | Q42: 3842 | R42: 1022 | S42: 96.2 | T42: 0 | U42: 25.9 | V42: 280 | W42: 36.7 | X42: 47.8 | Y42: 1.12 | Z42: 1001 | AA42: 3.62 | AB42: 0 | AC42: 5.2 | AD42: 0 | AE42: 0 | AF42: 1095 | AG42: 6.42 | AH42: 8.92
A43: Lisier vache 04-10-2023 st lambert | B43: 7.72 | C43: 2216 | D43: 2514 | E43: 296 | F43: 4.23 | G43: 25.4 | H43: 74.6 | I43: 43.3 | J43: 37.3 | K43: 8.26 | L43: 7.12 | M43: 5.24 | N43: 1.02 | O43: 361 | P43: 2705 | Q43: 936 | R43: 417 | S43: 22.4 | T43: 0 | U43: 2.95 | V43: 55.5 | W43: 9.22 | X43: 11 | Y43: 0 | Z43: 511 | AA43: 0 | AB43: 0 | AC43: 0 | AD43: 0 | AE43: 0 | AF43: 202 | AG43: 1.33 | AH43: 3.39
A44: Fumie poule levis ?ufs 18-oct-2023 | B44: 8.44 | C44: 25769 | D44: 15296 | E44: 4098 | F44: 45.5 | G44: 32.2 | H44: 67.8 | I44: 39.3 | J44: 33.9 | K44: 6.94 | L44: 5.99 | M44: 5.66 | N44: 0.345 | O44: 6327 | P44: 9771 | Q44: 33298 | R44: 2388 | S44: 853 | T44: 11.4 | U44: 50.7 | V44: 1540 | W44: 254 | X44: 216 | Y44: 1.77 | Z44: 2153 | AA44: 3.88 | AB44: 0 | AC44: 4.17 | AD44: 0 | AE44: 1.37 | AF44: 2708 | AG44: 33.7 | AH44: 68.1
A45: Fumier poules + litière 20-10-2023 | B45: 8.21 | C45: 25820 | D45: 11638 | E45: 4229 | F45: 58 | G45: 12.9 | H45: 87.1 | I45: 50.5 | J45: 43.6 | K45: 11.3 | L45: 9.78 | M45: 4.45 | N45: 0.397 | O45: 6961 | P45: 16450 | Q45: 8860 | R45: 3539 | S45: 122 | T45: 26 | U45: 95.3 | V45: 297 | W45: 451 | X45: 420 | Y45: 3.28 | Z45: 3503 | AA45: 4.48 | AB45: 0 | AC45: 1.71 | AD45: 0 | AE45: 0 | AF45: 3819 | AG45: 13.1 | AH45: 17
A46: Fumier poules levis ?ufs 20-10-2023 | B46: 7.76 | C46: 32408 | D46: 14726 | E46: 5635 | F46: 53.1 | G46: 33.4 | H46: 66.6 | I46: 38.6 | J46: 33.3 | K46: 6.33 | L46: 5.46 | M46: 6.11 | N46: 0.415 | O46: 7440 | P46: 10573 | Q46: 33182 | R46: 2382 | S46: 129 | T46: 11.9 | U46: 39.7 | V46: 747 | W46: 282 | X46: 274 | Y46: 2.05 | Z46: 2703 | AA46: 1.78 | AB46: 0 | AC46: 0 | AD46: 0 | AE46: 0 | AF46: 3223 | AG46: 8.39 | AH46: 63.6

Sheet Description OAD
B2: Lien vers la fiche téléchargeable

Sheet OAD
B3: Variables d'entrée | C3: Valeurs d'entrée | E3: Variables de sortie | F3: Valeur | H3: Prix 2025 | I3: Formule | J3: $/t | K3: $/kg
B4: Type de lisier | C4: Vache | E4: Azote ammoniacal (N-NH4+) appliqué (kg/ha) | F4: =IF(C10="Non",$C$13*$C$12,$C$11*$C$13) -> 35 | H4: Nitrate d'ammonium calcique (CAN) | I4: 27-0-0 | J4: 1012 | K4: =J4/1000 -> 1.012
B5: Matière sèche (%) | C5: 7 | E5: Perte d’azote sous forme de NH₃ après 12 h (% du N-NH₄+ appliqué) | F5: =_xlfn.XLOOKUP(1,('Base de données'!A:A=C4)*('Base de données'!B:B=C5)*('Base de données'!C:C=C6)*('Base de données'!D:D=C7)*('Base de données'!E:E=C8)*('Base de données'!F:F=C9),'Base de données'!G:G) -> 0.147 | H5: Urée | I5: 46-0-0 | J5: 1102 | K5: =J5/1000 -> 1.102
B6: Méthode d'épandage | C6: Aspersion basse | E6: Émission cumulative de N-NH₃ après 12 h (kg/ha) | F6: =F5*F4 -> 5.145
B7: Incorporation | C7: 0h
B8: Température (°C) | C8: 30
B9: Vitesse du vent (km/h) | C9: 15 | E9: Fertilisant minéral | F9: Urée
B10: Connaissez-vous la teneur en azote ammoniacal (N-NH4+) de votre lisier? | C10: Non | E10: Masse de fertilisant requise pour compenser l'azote perdu (kg/ha) | F10: =IF(F9='Base de données'!J3,OAD!F6/'Base de données'!L3,IF(F9='Base de données'!J4,OAD!F6/'Base de données'!L4)) -> 11.18478261
B11: Valeur personnalisée de N-NH4+ saisie par l’utilisateur (kg/t) | E11: Valeur monétaire de fertilisant minéral pour compenser l'azote perdu ($/ha) | F11: =IF(F9='Base de données'!J3,F10*K4,IF(F9='Base de données'!J4,F10*K5)) -> 12.32563043
B12: Valeur de référence azote ammoniacal (N-NH4+) (kg/t) | C12: =IF(C10="Oui",'Base de données'!P2,_xlfn.XLOOKUP(C4,'Base de données'!N13:N14,'Base de données'!M13:M14)) -> 1.4
B13: Dose d'application (t/ha) | C13: 25

Sheet Lisier de vache
B1: LISIER DE VACHE | W1: LISIER DE VACHE
B2: M.S (%) | C2: 3.5 | J2: Prix 2025 | L2: Formule | M2: $/t | N2: $/kg | W2: M.S (%) | X2: 3.5 | AE2: Prix 2025 | AG2: Formule | AH2: $/t | AI2: $/kg
B3: N total (kg/t) | C3: 2.6 | J3: Nitrate d'ammonium calcique (CAN) | L3: 27-0-0 | M3: 1012 | N3: =M3/1000 -> 1.012 | W3: N total (kg/t) | X3: 2.6 | AE3: Nitrate d'ammonium calcique (CAN) | AG3: 27-0-0 | AH3: 1012 | AI3: =AH3/1000 -> 1.012
B4: Azote ammoniacal total ou N-NH4+ (kg/t) | C4: 1.4 | J4: Urée | L4: 46-0-0 | M4: 1102 | N4: =M4/1000 -> 1.102 | W4: Azote ammoniacal total ou N-NH4+ (kg/t) | X4: 1.4 | AE4: Urée | AG4: 46-0-0 | AH4: 1102 | AI4: =AH4/1000 -> 1.102
B6: Aspersion basse | D6: Pourcentage d’azote ammoniacal (% N-NH4+) appliqué qui est émis sous forme d’ammoniac (N-NH3) lors des 12 heures suivant l'épandage | G6: Émissions cumulatives de N-NH3 (kg/t de lisier épandu) | J6: =$J$3 -> Nitrate d'ammonium calcique (CAN) | P6: =$J$4 -> Urée | W6: Pendillards | Y6: Pourcentage d’azote ammoniacal (% N-NH4+) appliqué qui est émis sous forme d’ammoniac (N-NH3) lors des 12 heures suivant l'épandage | AB6: Émissions cumulatives de N-NH3 (kg/t de lisier épandu) | AE6: =$J$3 -> Nitrate d'ammonium calcique (CAN) | AK6: =$J$4 -> Urée
J7: Masse de fertilisant requise pour compenser l'azote perdu (kg/t de lisier épandu) | M7: $/t de lisier épandu | P7: Masse de fertilisant requise pour compenser l'azote perdu (kg/t de lisier épandu) | S7: $/t de lisier épandu | AE7: Masse de fertilisant requise pour compenser l'azote perdu (kg/t de lisier épandu) | AH7: $/t de lisier épandu | AK7: Masse de fertilisant requise pour compenser l'azote perdu (kg/t de lisier épandu) | AN7: $/t de lisier épandu
B8: Vitesse du vent (km/h) | C8: 5 | W8: Vitesse du vent (km/h) | X8: 5
B9: Délai avant incorporation | C9: Température | D9: 10 | E9: 20 | F9: 30 | G9: 10 | H9: 20 | I9: 30 | J9: 10 | K9: 20 | L9: 30 | M9: 10 | N9: 20 | O9: 30 | P9: 10 | Q9: 20 | R9: 30 | S9: 10 | T9: 20 | U9: 30 | W9: Délai avant incorporation | X9: Température | Y9: 10 | Z9: 20 | AA9: 30 | AB9: 10 | AC9: 20 | AD9: 30 | AE9: 10 | AF9: 20 | AG9: 30 | AH9: 10 | AI9: 20 | AJ9: 30 | AK9: 10 | AL9: 20 | AM9: 30 | AN9: 10 | AO9: 20 | AP9: 30
B10: 0h | D10: 4.8 | E10: 6.1 | F10: 7.1 | G10: =$C$4*D10/100 -> 0.0672 | H10: =$C$4*E10/100 -> 0.0854 | I10: 0.0994 | J10: =G10/0.27 -> 0.2488888889 | K10: 0.3162962963 | L10: 0.3681481481 | M10: =J10*$N$3 -> 0.2518755556 | N10: =K10*$N$3 -> 0.3200918519 | O10: 0.3725659259 | P10: =G10/0.46 -> 0.1460869565 | Q10: 0.1856521739 | R10: 0.2160869565 | S10: =P10*$N$4 -> 0.1609878261 | T10: =Q10*$N$4 -> 0.2045886957 | U10: =R10*$N$4 -> 0.2381278261 | W10: 0h | Y10: 2.7 | Z10: 3.4 | AA10: 4.5 | AB10: =$C$4*Y10/100 -> 0.0378 | AC10: =$C$4*Z10/100 -> 0.0476 | AD10: 0.063 | AE10: =AB10/0.27 -> 0.14 | AF10: 0.1762962963 | AG10: 0.2333333333 | AH10: =AE10*$N$3 -> 0.14168 | AI10: =AF10*$N$3 -> 0.1784118519 | AJ10: 0.2361333333 | AK10: =AB10/0.46 -> 0.08217391304 | AL10: 0.1034782609 | AM10: 0.1369565217 | AN10: =AK10*$N$4 -> 0.09055565217 | AO10: =AL10*$N$4 -> 0.1140330435 | AP10: 0.150926087
B11: 3h | D11: 9.7 | E11: 15.5 | F11: 22.7 | G11: 0.1358 | H11: 0.217 | I11: 0.3178 | J11: 0.502962963 | K11: 0.8037037037 | L11: 1.177037037 | M11: =J11*$N$3 -> 0.5089985185 | N11: =K11*$N$3 -> 0.8133481481 | O11: =L11*$N$3 -> 1.191161481 | P11: 0.2952173913 | Q11: 0.4717391304 | R11: 0.6908695652 | S11: =P11*$N$4 -> 0.3253295652 | T11: 0.5198565217 | U11: 0.7613382609 | W11: 3h | Y11: 3.6 | Z11: 5.4 | AA11: 8.7 | AB11: =$C$4*Y11/100 -> 0.0504 | AC11: =$C$4*Z11/100 -> 0.0756 | AD11: =$C$4*AA11/100 -> 0.1218 | AE11: 0.1866666667 | AF11: 0.28 | AG11: 0.4511111111 | AH11: =AE11*$N$3 -> 0.1889066667 | AI11: =AF11*$N$3 -> 0.28336 | AJ11: =AG11*$N$3 -> 0.4565244444 | AK11: 0.1095652174 | AL11: 0.1643478261 | AM11: 0.2647826087 | AN11: =AK11*$N$4 -> 0.1207408696 | AO11: =AL11*$N$4 -> 0.1811113043 | AP11: =AM11*$N$4 -> 0.2917904348
B12: 6h | D12: 12.9 | E12: 20 | F12: 26.7 | G12: 0.1806 | H12: 0.28 | I12: 0.3738 | J12: 0.6688888889 | K12: 1.037037037 | L12: 1.384444444 | M12: 0.6769155556 | N12: 1.049481481 | O12: 1.401057778 | P12: 0.3926086957 | Q12: 0.6086956522 | R12: 0.8126086957 | S12: 0.4326547826 | T12: 0.6707826087 | U12: 0.8954947826 | W12: 6h | Y12: 4.3 | Z12: 6.9 | AA12: 11.5 | AB12: 0.0602 | AC12: 0.0966 | AD12: 0.161 | AE12: 0.222962963 | AF12: 0.3577777778 | AG12: 0.5962962963 | AH12: 0.2256385185 | AI12: 0.3620711111 | AJ12: 0.6034518519 | AK12: 0.1308695652 | AL12: 0.21 | AM12: 0.35 | AN12: 0.1442182609 | AO12: 0.23142 | AP12: 0.3857
B13: 12h | D13: 16.1 | E13: 23.1 | F13: 27.9 | G13: 0.2254 | H13: 0.3234 | I13: 0.3906 | J13: 0.8348148148 | K13: 1.197777778 | L13: 1.446666667 | M13: 0.8448325926 | N13: 1.212151111 | O13: 1.464026667 | P13: 0.49 | Q13: 0.7030434783 | R13: 0.8491304348 | S13: 0.53998 | T13: 0.774753913 | U13: 0.9357417391 | W13: 12h | Y13: 5.3 | Z13: 8.8 | AA13: 14.6 | AB13: 0.0742 | AC13: 0.1232 | AD13: 0.2044 | AE13: 0.2748148148 | AF13: 0.4562962963 | AG13: 0.757037037 | AH13: 0.2781125926 | AI13: 0.4617718519 | AJ13: 0.7661214815 | AK13: 0.1613043478 | AL13: 0.267826087 | AM13: 0.4443478261 | AN13: 0.1777573913 | AO13: 0.2951443478 | AP13: 0.4896713043
B14: Sans incorporation | D14: 16.1 | E14: 23.1 | F14: 27.9 | G14: =$C$4*D14/100 -> 0.2254 | H14: =$C$4*E14/100 -> 0.3234 | I14: =$C$4*F14/100 -> 0.3906 | J14: =G14/0.27 -> 0.8348148148 | K14: =H14/0.27 -> 1.197777778 | L14: =I14/0.27 -> 1.446666667 | M14: =J14*$N$3 -> 0.8448325926 | N14: 1.212151111 | O14: 1.464026667 | P14: =G14/0.46 -> 0.49 | Q14: =H14/0.46 -> 0.7030434783 | R14: =I14/0.46 -> 0.8491304348 | S14: 0.53998 | T14: 0.774753913 | U14: 0.9357417391 | W14: Sans incorporation | Y14: 5.3 | Z14: 8.8 | AA14: 14.6 | AB14: =$C$4*Y14/100 -> 0.0742 | AC14: 0.1232 | AD14: 0.2044 | AE14: =AB14/0.27 -> 0.2748148148 | AF14: =AC14/0.27 -> 0.4562962963 | AG14: =AD14/0.27 -> 0.757037037 | AH14: 0.2781125926 | AI14: 0.4617718519 | AJ14: 0.7661214815 | AK14: =AB14/0.46 -> 0.1613043478 | AL14: =AC14/0.46 -> 0.267826087 | AM14: =AD14/0.46 -> 0.4443478261 | AN14: 0.1777573913 | AO14: 0.2951443478 | AP14: 0.4896713043
B16: Vitesse du vent (km/h) | C16: 10 | W16: Vitesse du vent (km/h) | X16: 10
B17: Délai avant incorporation | C17: Température | D17: 10 | E17: 20 | F17: 30 | G17: 10 | H17: 20 | I17: 30 | J17: 10 | K17: 20 | L17: 30 | M17: 10 | N17: 20 | O17: 30 | P17: 10 | Q17: 20 | R17: 30 | S17: 10 | T17: 20 | U17: 30 | W17: Délai avant incorporation | X17: Température | Y17: 10 | Z17: 20 | AA17: 30 | AB17: 10 | AC17: 20 | AD17: 30 | AE17: 10 | AF17: 20 | AG17: 30 | AH17: 10 | AI17: 20 | AJ17: 30 | AK17: 10 | AL17: 20 | AM17: 30 | AN17: 10 | AO17: 20 | AP17: 30
B18: 0h | D18: 5.7 | E18: 6.9 | F18: 7.4 | G18: =$C$4*D18/100 -> 0.0798 | H18: 0.0966 | I18: 0.1036 | J18: =G18/0.27 -> 0.2955555556 | K18: 0.3577777778 | L18: 0.3837037037 | M18: =J18*$N$3 -> 0.2991022222 | N18: =K18*$N$3 -> 0.3620711111 | O18: =L18*$N$3 -> 0.3883081481 | P18: =G18/0.46 -> 0.1734782609 | Q18: 0.21 | R18: 0.2252173913 | S18: =P18*$N$4 -> 0.1911730435 | T18: =Q18*$N$4 -> 0.23142 | U18: =R18*$N$4 -> 0.2481895652 | W18: 0h | Y18: 3.1 | Z18: 4.1 | AA18: 5.4 | AB18: =$C$4*Y18/100 -> 0.0434 | AC18: =$C$4*Z18/100 -> 0.0574 | AD18: =$C$4*AA18/100 -> 0.0756 | AE18: =AB18/0.27 -> 0.1607407407 | AF18: 0.2125925926 | AG18: 0.28 | AH18: =AE18*$N$3 -> 0.1626696296 | AI18: =AF18*$N$3 -> 0.2151437037 | AJ18: =AG18*$N$3 -> 0.28336 | AK18: =AB18/0.46 -> 0.09434782609 | AL18: 0.1247826087 | AM18: 0.1643478261 | AN18: =AK18*$N$4 -> 0.1039713043 | AO18: =AL18*$N$4 -> 0.1375104348 | AP18: =AM18*$N$4 -> 0.1811113043
B19: 3h | D19: 13.5 | E19: 20.4 | F19: 27.2 | G19: 0.189 | H19: 0.2856 | I19: 0.3808 | J19: 0.7 | K19: 1.057777778 | L19: 1.41037037 | M19: =J19*$N$3 -> 0.7084 | N19: 1.070471111 | O19: 1.427294815 | P19: 0.4108695652 | Q19: 0.6208695652 | R19: 0.827826087 | S19: =P19*$N$4 -> 0.4527782609 | T19: 0.6841982609 | U19: 0.9122643478 | W19: 3h | Y19: 4.7 | Z19: 7.5 | AA19: 12.2 | AB19: =$C$4*Y19/100 -> 0.0658 | AC19: 0.105 | AD19: 0.1708 | AE19: 0.2437037037 | AF19: 0.3888888889 | AG19: 0.6325925926 | AH19: =AE19*$N$3 -> 0.2466281481 | AI19: 0.3935555556 | AJ19: 0.6401837037 | AK19: 0.1430434783 | AL19: 0.2282608696 | AM19: 0.3713043478 | AN19: =AK19*$N$4 -> 0.157633913 | AO19: 0.2515434783 | AP19: 0.4091773913
B20: 6h | D20: 17.6 | E20: 24.8 | F20: 29.4 | G20: 0.2464 | H20: 0.3472 | I20: 0.4116 | J20: 0.9125925926 | K20: 1.285925926 | L20: 1.524444444 | M20: 0.9235437037 | N20: 1.301357037 | O20: 1.542737778 | P20: 0.5356521739 | Q20: 0.7547826087 | R20: 0.8947826087 | S20: 0.5902886957 | T20: 0.8317704348 | U20: 0.9860504348 | W20: 6h | Y20: 5.9 | Z20: 9.8 | AA20: 16 | AB20: 0.0826 | AC20: 0.1372 | AD20: 0.224 | AE20: 0.3059259259 | AF20: 0.5081481481 | AG20: 0.8296296296 | AH20: 0.309597037 | AI20: 0.5142459259 | AJ20: 0.8395851852 | AK20: 0.1795652174 | AL20: 0.2982608696 | AM20: 0.4869565217 | AN20: 0.1978808696 | AO20: 0.3286834783 | AP20: 0.536626087
B21: 12h | D21: 21 | E21: 26.7 | F21: 29.7 | G21: 0.294 | H21: 0.3738 | I21: 0.4158 | J21: 1.088888889 | K21: 1.384444444 | L21: 1.54 | M21: 1.101955556 | N21: 1.401057778 | O21: 1.55848 | P21: 0.6391304348 | Q21: 0.8126086957 | R21: 0.9039130435 | S21: 0.7043217391 | T21: 0.8954947826 | U21: 0.9961121739 | W21: 12h | Y21: 7.5 | Z21: 12.5 | AA21: 19.4 | AB21: 0.105 | AC21: 0.175 | AD21: 0.2716 | AE21: 0.3888888889 | AF21: 0.6481481481 | AG21: 1.005925926 | AH21: 0.3935555556 | AI21: 0.6559259259 | AJ21: 1.017997037 | AK21: 0.2282608696 | AL21: 0.3804347826 | AM21: 0.5904347826 | AN21: 0.2515434783 | AO21: 0.4192391304 | AP21: 0.6506591304
B22: Sans incorporation | D22: 21 | E22: 26.7 | F22: 29.7 | G22: =$C$4*D22/100 -> 0.294 | H22: =$C$4*E22/100 -> 0.3738 | I22: =$C$4*F22/100 -> 0.4158 | J22: =G22/0.27 -> 1.088888889 | K22: =H22/0.27 -> 1.384444444 | L22: =I22/0.27 -> 1.54 | M22: =J22*$N$3 -> 1.101955556 | N22: 1.401057778 | O22: 1.55848 | P22: =G22/0.46 -> 0.6391304348 | Q22: =H22/0.46 -> 0.8126086957 | R22: =I22/0.46 -> 0.9039130435 | S22: 0.7043217391 | T22: 0.8954947826 | U22: 0.9961121739 | W22: Sans incorporation | Y22: 7.5 | Z22: 12.5 | AA22: 19.4 | AB22: =$C$4*Y22/100 -> 0.105 | AC22: 0.175 | AD22: 0.2716 | AE22: =AB22/0.27 -> 0.3888888889 | AF22: =AC22/0.27 -> 0.6481481481 | AG22: =AD22/0.27 -> 1.005925926 | AH22: 0.3935555556 | AI22: 0.6559259259 | AJ22: 1.017997037 | AK22: =AB22/0.46 -> 0.2282608696 | AL22: =AC22/0.46 -> 0.3804347826 | AM22: =AD22/0.46 -> 0.5904347826 | AN22: 0.2515434783 | AO22: 0.4192391304 | AP22: 0.6506591304
B24: Vitesse du vent (km/h) | C24: 15 | W24: Vitesse du vent (km/h) | X24: 15
B25: Délai avant incorporation | C25: Température | D25: 10 | E25: 20 | F25: 30 | G25: 10 | H25: 20 | I25: 30 | J25: 10 | K25: 20 | L25: 30 | M25: 10 | N25: 20 | O25: 30 | P25: 10 | Q25: 20 | R25: 30 | S25: 10 | T25: 20 | U25: 30 | W25: Délai avant incorporation | X25: Température | Y25: 10 | Z25: 20 | AA25: 30 | AB25: 10 | AC25: 20 | AD25: 30 | AE25: 10 | AF25: 20 | AG25: 30 | AH25: 10 | AI25: 20 | AJ25: 30 | AK25: 10 | AL25: 20 | AM25: 30 | AN25: 10 | AO25: 20 | AP25: 30
B26: 0h | D26: 6.4 | E26: 7.2 | F26: 7.6 | G26: =$C$4*D26/100 -> 0.0896 | H26: 0.1008 | I26: 0.1064 | J26: =G26/0.27 -> 0.3318518519 | K26: 0.3733333333 | L26: 0.3940740741 | M26: =J26*$N$3 -> 0.3358340741 | N26: =K26*$N$3 -> 0.3778133333 | O26: =L26*$N$3 -> 0.398802963 | P26: =G26/0.46 -> 0.1947826087 | Q26: 0.2191304348 | R26: 0.2313043478 | S26: =P26*$N$4 -> 0.2146504348 | T26: =Q26*$N$4 -> 0.2414817391 | U26: =R26*$N$4 -> 0.2548973913 | W26: 0h | Y26: 3.6 | Z26: 4.8 | AA26: 6.1 | AB26: =$C$4*Y26/100 -> 0.0504 | AC26: =$C$4*Z26/100 -> 0.0672 | AD26: =$C$4*AA26/100 -> 0.0854 | AE26: =AB26/0.27 -> 0.1866666667 | AF26: 0.2488888889 | AG26: 0.3162962963 | AH26: =AE26*$N$3 -> 0.1889066667 | AI26: =AF26*$N$3 -> 0.2518755556 | AJ26: =AG26*$N$3 -> 0.3200918519 | AK26: =AB26/0.46 -> 0.1095652174 | AL26: 0.1460869565 | AM26: 0.1856521739 | AN26: =AK26*$N$4 -> 0.1207408696 | AO26: =AL26*$N$4 -> 0.1609878261 | AP26: =AM26*$N$4 -> 0.2045886957
B27: 3h | D27: 16.9 | E27: 24.1 | F27: 29.6 | G27: 0.2366 | H27: 0.3374 | I27: 0.4144 | J27: 0.8762962963 | K27: 1.24962963 | L27: 1.534814815 | M27: =J27*$N$3 -> 0.8868118519 | N27: 1.264625185 | O27: 1.553232593 | P27: 0.5143478261 | Q27: 0.7334782609 | R27: 0.9008695652 | S27: =P27*$N$4 -> 0.5668113043 | T27: 0.8082930435 | U27: 0.9927582609 | W27: 3h | Y27: 5.9 | Z27: 9.6 | AA27: 15.4 | AB27: =$C$4*Y27/100 -> 0.0826 | AC27: 0.1344 | AD27: 0.2156 | AE27: 0.3059259259 | AF27: 0.4977777778 | AG27: 0.7985185185 | AH27: =AE27*$N$3 -> 0.309597037 | AI27: 0.5037511111 | AJ27: 0.8081007407 | AK27: 0.1795652174 | AL27: 0.292173913 | AM27: 0.4686956522 | AN27: =AK27*$N$4 -> 0.1978808696 | AO27: 0.3219756522 | AP27: 0.5165026087
B28: 6h | D28: 24.5 | E28: 27.6 | F28: 30.5 | G28: 0.343 | H28: 0.3864 | I28: 0.427 | J28: 1.27037037 | K28: 1.431111111 | L28: 1.581481481 | M28: 1.285614815 | N28: 1.448284444 | O28: 1.600459259 | P28: 0.7456521739 | Q28: 0.84 | R28: 0.9282608696 | S28: 0.8217086957 | T28: 0.92568 | U28: 1.022943478 | W28: 6h | Y28: 7.7 | Z28: 12.8 | AA28: 19.9 | AB28: 0.1078 | AC28: 0.1792 | AD28: 0.2786 | AE28: 0.3992592593 | AF28: 0.6637037037 | AG28: 1.031851852 | AH28: 0.4040503704 | AI28: 0.6716681481 | AJ28: 1.044234074 | AK28: 0.2343478261 | AL28: 0.3895652174 | AM28: 0.6056521739 | AN28: 0.2582513043 | AO28: 0.4293008696 | AP28: 0.6674286957
B29: 12h | D29: 24.3 | E29: 28.5 | F29: 30.5 | G29: 0.3402 | H29: 0.399 | I29: 0.427 | J29: 1.26 | K29: 1.477777778 | L29: 1.581481481 | M29: 1.27512 | N29: 1.495511111 | O29: 1.600459259 | P29: 0.7395652174 | Q29: 0.8673913043 | R29: 0.9282608696 | S29: 0.8150008696 | T29: 0.9558652174 | U29: 1.022943478 | W29: 12h | Y29: 9.8 | Z29: 16 | AA29: 23 | AB29: 0.1372 | AC29: 0.224 | AD29: 0.322 | AE29: 0.5081481481 | AF29: 0.8296296296 | AG29: 1.192592593 | AH29: 0.5142459259 | AI29: 0.8395851852 | AJ29: 1.206903704 | AK29: 0.2982608696 | AL29: 0.4869565217 | AM29: 0.7 | AN29: 0.3286834783 | AO29: 0.536626087 | AP29: 0.7714
B30: Sans incorporation | D30: 24.3 | E30: 28.5 | F30: 30.5 | G30: =$C$4*D30/100 -> 0.3402 | H30: =$C$4*E30/100 -> 0.399 | I30: =$C$4*F30/100 -> 0.427 | J30: =G30/0.27 -> 1.26 | K30: =H30/0.27 -> 1.477777778 | L30: =I30/0.27 -> 1.581481481 | M30: =J30*$N$3 -> 1.27512 | N30: 1.495511111 | O30: 1.600459259 | P30: =G30/0.46 -> 0.7395652174 | Q30: =H30/0.46 -> 0.8673913043 | R30: =I30/0.46 -> 0.9282608696 | S30: 0.8150008696 | T30: 0.9558652174 | U30: 1.022943478 | W30: Sans incorporation | Y30: 9.8 | Z30: 16 | AA30: 23 | AB30: =$C$4*Y30/100 -> 0.1372 | AC30: 0.224 | AD30: 0.322 | AE30: =AB30/0.27 -> 0.5081481481 | AF30: =AC30/0.27 -> 0.8296296296 | AG30: =AD30/0.27 -> 1.192592593 | AH30: 0.5142459259 | AI30: 0.8395851852 | AJ30: 1.206903704 | AK30: =AB30/0.46 -> 0.2982608696 | AL30: =AC30/0.46 -> 0.4869565217 | AM30: =AD30/0.46 -> 0.7 | AN30: 0.3286834783 | AO30: 0.536626087 | AP30: 0.7714
B32: Vitesse du vent (km/h) | C32: 25 | W32: Vitesse du vent (km/h) | X32: 25
B33: Délai avant incorporation | C33: Température | D33: 10 | E33: 20 | F33: 30 | G33: 10 | H33: 20 | I33: 30 | J33: 10 | K33: 20 | L33: 30 | M33: 10 | N33: 20 | O33: 30 | P33: 10 | Q33: 20 | R33: 30 | S33: 10 | T33: 20 | U33: 30 | W33: Délai avant incorporation | X33: Température | Y33: 10 | Z33: 20 | AA33: 30 | AB33: 10 | AC33: 20 | AD33: 30 | AE33: 10 | AF33: 20 | AG33: 30 | AH33: 10 | AI33: 20 | AJ33: 30 | AK33: 10 | AL33: 20 | AM33: 30 | AN33: 10 | AO33: 20 | AP33: 30
B34: 0h | D34: 7.1 | E34: 7.5 | F34: 7.8 | G34: =$C$4*D34/100 -> 0.0994 | H34: 0.105 | I34: 0.1092 | J34: =G34/0.27 -> 0.3681481481 | K34: 0.3888888889 | L34: 0.4044444444 | M34: =J34*$N$3 -> 0.3725659259 | N34: =K34*$N$3 -> 0.3935555556 | O34: =L34*$N$3 -> 0.4092977778 | P34: =G34/0.46 -> 0.2160869565 | Q34: 0.2282608696 | R34: 0.2373913043 | S34: =P34*$N$4 -> 0.2381278261 | T34: =Q34*$N$4 -> 0.2515434783 | U34: =R34*$N$4 -> 0.2616052174 | W34: 0h | Y34: 4.5 | Z34: 5.9 | AA34: 6.9 | AB34: =$C$4*Y34/100 -> 0.063 | AC34: =$C$4*Z34/100 -> 0.0826 | AD34: =$C$4*AA34/100 -> 0.0966 | AE34: =AB34/0.27 -> 0.2333333333 | AF34: 0.3059259259 | AG34: 0.3577777778 | AH34: =AE34*$N$3 -> 0.2361333333 | AI34: =AF34*$N$3 -> 0.309597037 | AJ34: =AG34*$N$3 -> 0.3620711111 | AK34: =AB34/0.46 -> 0.1369565217 | AL34: 0.1795652174 | AM34: 0.21 | AN34: =AK34*$N$4 -> 0.150926087 | AO34: =AL34*$N$4 -> 0.1978808696 | AP34: =AM34*$N$4 -> 0.23142
B35: 3h | D35: 22.7 | E35: 28.8 | F35: 31.3 | G35: 0.3178 | H35: 0.4032 | I35: 0.4382 | J35: 1.177037037 | K35: 1.493333333 | L35: 1.622962963 | M35: =J35*$N$3 -> 1.191161481 | N35: 1.511253333 | O35: 1.642438519 | P35: 0.6908695652 | Q35: 0.8765217391 | R35: 0.9526086957 | S35: =P35*$N$4 -> 0.7613382609 | T35: 0.9659269565 | U35: 1.049774783 | W35: 3h | Y35: 8.7 | Z35: 14.1 | AA35: 21.2 | AB35: =$C$4*Y35/100 -> 0.1218 | AC35: 0.1974 | AD35: 0.2968 | AE35: 0.4511111111 | AF35: 0.7311111111 | AG35: 1.099259259 | AH35: =AE35*$N$3 -> 0.4565244444 | AI35: 0.7398844444 | AJ35: 1.11245037 | AK35: 0.2647826087 | AL35: 0.4291304348 | AM35: 0.6452173913 | AN35: =AK35*$N$4 -> 0.2917904348 | AO35: 0.4729017391 | AP35: 0.7110295652
B36: 6h | D36: 26.7 | E36: 30.1 | F36: 31.4 | G36: 0.3738 | H36: 0.4214 | I36: 0.4396 | J36: 1.384444444 | K36: 1.560740741 | L36: 1.628148148 | M36: 1.401057778 | N36: 1.57946963 | O36: 1.647685926 | P36: 0.8126086957 | Q36: 0.9160869565 | R36: 0.9556521739 | S36: 0.8954947826 | T36: 1.009527826 | U36: 1.053128696 | W36: 6h | Y36: 11.6 | Z36: 18.4 | AA36: 25.4 | AB36: 0.1624 | AC36: 0.2576 | AD36: 0.3556 | AE36: 0.6014814815 | AF36: 0.9540740741 | AG36: 1.317037037 | AH36: 0.6086992593 | AI36: 0.965522963 | AJ36: 1.332841481 | AK36: 0.3530434783 | AL36: 0.56 | AM36: 0.7730434783 | AN36: 0.389053913 | AO36: 0.61712 | AP36: 0.851893913
B37: 12h | D37: 27.9 | E37: 30.2 | F37: 31.4 | G37: 0.3906 | H37: 0.4228 | I37: 0.4396 | J37: 1.446666667 | K37: 1.565925926 | L37: 1.628148148 | M37: 1.464026667 | N37: 1.584717037 | O37: 1.647685926 | P37: 0.8491304348 | Q37: 0.9191304348 | R37: 0.9556521739 | S37: 0.9357417391 | T37: 1.012881739 | U37: 1.053128696 | W37: 12h | Y37: 14.6 | Z37: 21.7 | AA37: 27.1 | AB37: 0.2044 | AC37: 0.3038 | AD37: 0.3794 | AE37: 0.757037037 | AF37: 1.125185185 | AG37: 1.405185185 | AH37: 0.7661214815 | AI37: 1.138687407 | AJ37: 1.422047407 | AK37: 0.4443478261 | AL37: 0.6604347826 | AM37: 0.8247826087 | AN37: 0.4896713043 | AO37: 0.7277991304 | AP37: 0.9089104348
B38: Sans incorporation | D38: 27.9 | E38: 30.2 | F38: 31.4 | G38: =$C$4*D38/100 -> 0.3906 | H38: =$C$4*E38/100 -> 0.4228 | I38: =$C$4*F38/100 -> 0.4396 | J38: =G38/0.27 -> 1.446666667 | K38: =H38/0.27 -> 1.565925926 | L38: =I38/0.27 -> 1.628148148 | M38: =J38*$N$3 -> 1.464026667 | N38: 1.584717037 | O38: 1.647685926 | P38: =G38/0.46 -> 0.8491304348 | Q38: =H38/0.46 -> 0.9191304348 | R38: =I38/0.46 -> 0.9556521739 | S38: 0.9357417391 | T38: 1.012881739 | U38: 1.053128696 | W38: Sans incorporation | Y38: 14.6 | Z38: 21.7 | AA38: 27.1 | AB38: =$C$4*Y38/100 -> 0.2044 | AC38: 0.3038 | AD38: 0.3794 | AE38: =AB38/0.27 -> 0.757037037 | AF38: =AC38/0.27 -> 1.125185185 | AG38: =AD38/0.27 -> 1.405185185 | AH38: 0.7661214815 | AI38: 1.138687407 | AJ38: 1.422047407 | AK38: =AB38/0.46 -> 0.4443478261 | AL38: =AC38/0.46 -> 0.6604347826 | AM38: =AD38/0.46 -> 0.8247826087 | AN38: 0.4896713043 | AO38: 0.7277991304 | AP38: 0.9089104348
B41: LISIER DE VACHE | W41: LISIER DE VACHE
B42: M.S (%) | C42: 7 | J42: Prix 2025 | L42: Formule | M42: $/t | N42: $/kg | W42: M.S (%) | X42: 7 | AE42: Prix 2025 | AG42: Formule | AH42: $/t | AI42: $/kg
B43: N total (kg/t) | C43: 2.6 | J43: Nitrate d'ammonium calcique (CAN) | L43: 27-0-0 | M43: 1012 | N43: =M43/1000 -> 1.012 | W43: N total (kg/t) | X43: 2.6 | AE43: Nitrate d'ammonium calcique (CAN) | AG43: 27-0-0 | AH43: 1012 | AI43: =AH43/1000 -> 1.012
B44: Azote ammoniacal total ou N-NH4+ (kg/t) | C44: 1.4 | J44: Urée | L44: 46-0-0 | M44: 1102 | N44: =M44/1000 -> 1.102 | W44: Azote ammoniacal total ou N-NH4+ (kg/t) | X44: 1.4 | AE44: Urée | AG44: 46-0-0 | AH44: 1102 | AI44: =AH44/1000 -> 1.102
B46: Aspersion basse | D46: Pourcentage d’azote ammoniacal (% N-NH4+) appliqué qui est émis sous forme d’ammoniac (N-NH3) lors des 12 heures suivant l'épandage | G46: Émissions cumulatives de N-NH3 (kg/t de lisier épandu) | J46: =$J$3 -> Nitrate d'ammonium calcique (CAN) | P46: =$J$4 -> Urée | W46: Pendillards | Y46: Pourcentage d’azote ammoniacal (% N-NH4+) appliqué qui est émis sous forme d’ammoniac (N-NH3) lors des 12 heures suivant l'épandage | AB46: Émissions cumulatives de N-NH3 (kg/t de lisier épandu) | AE46: =$J$3 -> Nitrate d'ammonium calcique (CAN) | AK46: =$J$4 -> Urée
J47: Masse de fertilisant requise pour compenser l'azote perdu (kg/t de lisier épandu) | M47: $/t de lisier épandu | P47: Masse de fertilisant requise pour compenser l'azote perdu (kg/t de lisier épandu) | S47: $/t de lisier épandu | AE47: Masse de fertilisant requise pour compenser l'azote perdu (kg/t de lisier épandu) | AH47: $/t de lisier épandu | AK47: Masse de fertilisant requise pour compenser l'azote perdu (kg/t de lisier épandu) | AN47: $/t de lisier épandu
B48: Vitesse du vent (km/h) | C48: 5 | D48: km/h | W48: Vitesse du vent (km/h) | X48: 5 | Y48: km/h
B49: Délai avant incorporation | C49: Température | D49: 10 | E49: 20 | F49: 30 | G49: 10 | H49: 20 | I49: 30 | J49: 10 | K49: 20 | L49: 30 | M49: 10 | N49: 20 | O49: 30 | P49: 10 | Q49: 20 | R49: 30 | S49: 10 | T49: 20 | U49: 30 | W49: Délai avant incorporation | X49: Température | Y49: 10 | Z49: 20 | AA49: 30 | AB49: 10 | AC49: 20 | AD49: 30 | AE49: 10 | AF49: 20 | AG49: 30 | AH49: 10 | AI49: 20 | AJ49: 30 | AK49: 10 | AL49: 20 | AM49: 30 | AN49: 10 | AO49: 20 | AP49: 30
B50: 0h | D50: 7.3 | E50: 10.5 | F50: 13.1 | G50: =$C$4*D50/100 -> 0.1022 | H50: 0.147 | I50: 0.1834 | J50: =G50/0.27 -> 0.3785185185 | K50: 0.5444444444 | L50: 0.6792592593 | M50: =J50*$N$3 -> 0.3830607407 | N50: =K50*$N$3 -> 0.5509777778 | O50: =L50*$N$3 -> 0.6874103704 | P50: =G50/0.46 -> 0.222173913 | Q50: 0.3195652174 | R50: 0.3986956522 | S50: =P50*$N$4 -> 0.2448356522 | T50: =Q50*$N$4 -> 0.3521608696 | U50: =R50*$N$4 -> 0.4393626087 | W50: 0h | Y50: 3.1 | Z50: 4.4 | AA50: 6.7 | AB50: =$C$4*Y50/100 -> 0.0434 | AC50: =$C$4*Z50/100 -> 0.0616 | AD50: =$C$4*AA50/100 -> 0.0938 | AE50: =AB50/0.27 -> 0.1607407407 | AF50: 0.2281481481 | AG50: 0.3474074074 | AH50: =AE50*$N$3 -> 0.1626696296 | AI50: =AF50*$N$3 -> 0.2308859259 | AJ50: =AG50*$N$3 -> 0.3515762963 | AK50: =AB50/0.46 -> 0.09434782609 | AL50: 0.1339130435 | AM50: 0.2039130435 | AN50: =AK50*$N$4 -> 0.1039713043 | AO50: =AL50*$N$4 -> 0.1475721739 | AP50: =AM50*$N$4 -> 0.2247121739
B51: 3h | D51: 16.3 | E51: 28.2 | F51: 44.2 | G51: 0.2282 | H51: 0.3948 | I51: 0.6188 | J51: 0.8451851852 | K51: 1.462222222 | L51: 2.291851852 | M51: =J51*$N$3 -> 0.8553274074 | N51: 1.479768889 | O51: 2.319354074 | P51: 0.4960869565 | Q51: 0.8582608696 | R51: 1.345217391 | S51: =P51*$N$4 -> 0.5466878261 | T51: 0.9458034783 | U51: 1.482429565 | W51: 3h | Y51: 4.7 | Z51: 8 | AA51: 14.4 | AB51: =$C$4*Y51/100 -> 0.0658 | AC51: 0.112 | AD51: 0.2016 | AE51: 0.2437037037 | AF51: 0.4148148148 | AG51: 0.7466666667 | AH51: =AE51*$N$3 -> 0.2466281481 | AI51: 0.4197925926 | AJ51: 0.7556266667 | AK51: 0.1430434783 | AL51: 0.2434782609 | AM51: 0.4382608696 | AN51: =AK51*$N$4 -> 0.157633913 | AO51: 0.2683130435 | AP51: 0.4829634783
B52: 6h | D52: 22.4 | E52: 37.7 | F52: 54.5 | G52: 0.3136 | H52: 0.5278 | I52: 0.763 | J52: 1.161481481 | K52: 1.954814815 | L52: 2.825925926 | M52: 1.175419259 | N52: 1.978272593 | O52: 2.859837037 | P52: 0.6817391304 | Q52: 1.147391304 | R52: 1.658695652 | S52: 0.7512765217 | T52: 1.264425217 | U52: 1.827882609 | W52: 6h | Y52: 6 | Z52: 10.8 | AA52: 19.7 | AB52: 0.084 | AC52: 0.1512 | AD52: 0.2758 | AE52: 0.3111111111 | AF52: 0.56 | AG52: 1.021481481 | AH52: 0.3148444444 | AI52: 0.56672 | AJ52: 1.033739259 | AK52: 0.1826086957 | AL52: 0.3286956522 | AM52: 0.5995652174 | AN52: 0.2012347826 | AO52: 0.3622226087 | AP52: 0.6607208696
B53: 12h | D53: 29.2 | E53: 45.5 | F53: 59 | G53: 0.4088 | H53: 0.637 | I53: 0.826 | J53: 1.514074074 | K53: 2.359259259 | L53: 3.059259259 | M53: 1.532242963 | N53: 2.38757037 | O53: 3.09597037 | P53: 0.8886956522 | Q53: 1.384782609 | R53: 1.795652174 | S53: 0.9793426087 | T53: 1.526030435 | U53: 1.978808696 | W53: 12h | Y53: 7.7 | Z53: 14.4 | AA53: 26 | AB53: 0.1078 | AC53: 0.2016 | AD53: 0.364 | AE53: 0.3992592593 | AF53: 0.7466666667 | AG53: 1.348148148 | AH53: 0.4040503704 | AI53: 0.7556266667 | AJ53: 1.364325926 | AK53: 0.2343478261 | AL53: 0.4382608696 | AM53: 0.7913043478 | AN53: 0.2582513043 | AO53: 0.4829634783 | AP53: 0.8720173913
B54: Sans incorporation | D54: 29.2 | E54: 45.5 | F54: 59 | G54: =$C$4*D54/100 -> 0.4088 | H54: =$C$4*E54/100 -> 0.637 | I54: =$C$4*F54/100 -> 0.826 | J54: =G54/0.27 -> 1.514074074 | K54: =H54/0.27 -> 2.359259259 | L54: =I54/0.27 -> 3.059259259 | M54: =J54*$N$3 -> 1.532242963 | N54: =K54*$N$3 -> 2.38757037 | O54: =L54*$N$3 -> 3.09597037 | P54: =G54/0.46 -> 0.8886956522 | Q54: =H54/0.46 -> 1.384782609 | R54: =I54/0.46 -> 1.795652174 | S54: 0.9793426087 | T54: 1.526030435 | U54: 1.978808696 | W54: Sans incorporation | Y54: 7.7 | Z54: 14.4 | AA54: 26 | AB54: =$C$4*Y54/100 -> 0.1078 | AC54: 0.2016 | AD54: 0.364 | AE54: =AB54/0.27 -> 0.3992592593 | AF54: =AC54/0.27 -> 0.7466666667 | AG54: =AD54/0.27 -> 1.348148148 | AH54: 0.4040503704 | AI54: 0.7556266667 | AJ54: 1.364325926 | AK54: =AB54/0.46 -> 0.2343478261 | AL54: =AC54/0.46 -> 0.4382608696 | AM54: =AD54/0.46 -> 0.7913043478 | AN54: 0.2582513043 | AO54: 0.4829634783 | AP54: 0.8720173913
B56: Vitesse du vent (km/h) | C56: 10 | D56: km/h | W56: Vitesse du vent (km/h) | X56: 10 | Y56: km/h
B57: Délai avant incorporation | C57: Température | D57: 10 | E57: 20 | F57: 30 | G57: 10 | H57: 20 | I57: 30 | J57: 10 | K57: 20 | L57: 30 | M57: 10 | N57: 20 | O57: 30 | P57: 10 | Q57: 20 | R57: 30 | S57: 10 | T57: 20 | U57: 30 | W57: Délai avant incorporation | X57: Température | Y57: 10 | Z57: 20 | AA57: 30 | AB57: 10 | AC57: 20 | AD57: 30 | AE57: 10 | AF57: 20 | AG57: 30 | AH57: 10 | AI57: 20 | AJ57: 30 | AK57: 10 | AL57: 20 | AM57: 30 | AN57: 10 | AO57: 20 | AP57: 30
B58: 0h | D58: 9.5 | E58: 12.5 | F58: 14.2 | G58: =$C$4*D58/100 -> 0.133 | H58: 0.175 | I58: 0.1988 | J58: =G58/0.27 -> 0.4925925926 | K58: 0.6481481481 | L58: 0.7362962963 | M58: =J58*$N$3 -> 0.4985037037 | N58: =K58*$N$3 -> 0.6559259259 | O58: =L58*$N$3 -> 0.7451318519 | P58: =G58/0.46 -> 0.2891304348 | Q58: 0.3804347826 | R58: 0.432173913 | S58: =P58*$N$4 -> 0.3186217391 | T58: =Q58*$N$4 -> 0.4192391304 | U58: =R58*$N$4 -> 0.4762556522 | W58: 0h | Y58: 3.9 | Z58: 5.9 | AA58: 8.8 | AB58: =$C$4*Y58/100 -> 0.0546 | AC58: =$C$4*Z58/100 -> 0.0826 | AD58: =$C$4*AA58/100 -> 0.1232 | AE58: =AB58/0.27 -> 0.2022222222 | AF58: 0.3059259259 | AG58: 0.4562962963 | AH58: =AE58*$N$3 -> 0.2046488889 | AI58: =AF58*$N$3 -> 0.309597037 | AJ58: =AG58*$N$3 -> 0.4617718519 | AK58: =AB58/0.46 -> 0.1186956522 | AL58: 0.1795652174 | AM58: 0.267826087 | AN58: =AK58*$N$4 -> 0.1308026087 | AO58: =AL58*$N$4 -> 0.1978808696 | AP58: =AM58*$N$4 -> 0.2951443478
B59: 3h | D59: 23.9 | E59: 38.8 | F59: 55.4 | G59: 0.3346 | H59: 0.5432 | I59: 0.7756 | J59: 1.239259259 | K59: 2.011851852 | L59: 2.872592593 | M59: =J59*$N$3 -> 1.25413037 | N59: 2.035994074 | O59: 2.907063704 | P59: 0.7273913043 | Q59: 1.180869565 | R59: 1.686086957 | S59: =P59*$N$4 -> 0.8015852174 | T59: 1.301318261 | U59: 1.858067826 | W59: 3h | Y59: 6.7 | Z59: 11.9 | AA59: 21.3 | AB59: =$C$4*Y59/100 -> 0.0938 | AC59: 0.1666 | AD59: 0.2982 | AE59: 0.3474074074 | AF59: 0.617037037 | AG59: 1.104444444 | AH59: =AE59*$N$3 -> 0.3515762963 | AI59: 0.6244414815 | AJ59: 1.117697778 | AK59: 0.2039130435 | AL59: 0.362173913 | AM59: 0.6482608696 | AN59: =AK59*$N$4 -> 0.2247121739 | AO59: 0.3991156522 | AP59: 0.7143834783
B60: 6h | D60: 32.3 | E60: 49.4 | F60: 62.8 | G60: 0.4522 | H60: 0.6916 | I60: 0.8792 | J60: 1.674814815 | K60: 2.561481481 | L60: 3.256296296 | M60: 1.694912593 | N60: 2.592219259 | O60: 3.295371852 | P60: 0.9830434783 | Q60: 1.503478261 | R60: 1.911304348 | S60: 1.083313913 | T60: 1.656833043 | U60: 2.106257391 | W60: 6h | Y60: 8.9 | Z60: 16.3 | AA60: 28.9 | AB60: 0.1246 | AC60: 0.2282 | AD60: 0.4046 | AE60: 0.4614814815 | AF60: 0.8451851852 | AG60: 1.498518519 | AH60: 0.4670192593 | AI60: 0.8553274074 | AJ60: 1.516500741 | AK60: 0.2708695652 | AL60: 0.4960869565 | AM60: 0.8795652174 | AN60: 0.2984982609 | AO60: 0.5466878261 | AP60: 0.9692808696
B61: 12h | D61: 40.3 | E61: 55.4 | F61: 64.3 | G61: 0.5642 | H61: 0.7756 | I61: 0.9002 | J61: 2.08962963 | K61: 2.872592593 | L61: 3.334074074 | M61: 2.114705185 | N61: 2.907063704 | O61: 3.374082963 | P61: 1.226521739 | Q61: 1.686086957 | R61: 1.956956522 | S61: 1.351626957 | T61: 1.858067826 | U61: 2.156566087 | W61: 12h | Y61: 11.8 | Z61: 21.7 | AA61: 36.6 | AB61: 0.1652 | AC61: 0.3038 | AD61: 0.5124 | AE61: 0.6118518519 | AF61: 1.125185185 | AG61: 1.897777778 | AH61: 0.6191940741 | AI61: 1.138687407 | AJ61: 1.920551111 | AK61: 0.3591304348 | AL61: 0.6604347826 | AM61: 1.113913043 | AN61: 0.3957617391 | AO61: 0.7277991304 | AP61: 1.227532174
B62: Sans incorporation | D62: 40.3 | E62: 55.4 | F62: 64.3 | G62: =$C$4*D62/100 -> 0.5642 | H62: =$C$4*E62/100 -> 0.7756 | I62: =$C$4*F62/100 -> 0.9002 | J62: =G62/0.27 -> 2.08962963 | K62: =H62/0.27 -> 2.872592593 | L62: =I62/0.27 -> 3.334074074 | M62: =J62*$N$3 -> 2.114705185 | N62: =K62*$N$3 -> 2.907063704 | O62: =L62*$N$3 -> 3.374082963 | P62: =G62/0.46 -> 1.226521739 | Q62: =H62/0.46 -> 1.686086957 | R62: =I62/0.46 -> 1.956956522 | S62: 1.351626957 | T62: 1.858067826 | U62: 2.156566087 | W62: Sans incorporation | Y62: 11.8 | Z62: 21.7 | AA62: 36.6 | AB62: =$C$4*Y62/100 -> 0.1652 | AC62: 0.3038 | AD62: 0.5124 | AE62: =AB62/0.27 -> 0.6118518519 | AF62: =AC62/0.27 -> 1.125185185 | AG62: =AD62/0.27 -> 1.897777778 | AH62: 0.6191940741 | AI62: 1.138687407 | AJ62: 1.920551111 | AK62: =AB62/0.46 -> 0.3591304348 | AL62: =AC62/0.46 -> 0.6604347826 | AM62: =AD62/0.46 -> 1.113913043 | AN62: 0.3957617391 | AO62: 0.7277991304 | AP62: 1.227532174
B64: Vitesse du vent (km/h) | C64: 15 | D64: km/h | W64: Vitesse du vent (km/h) | X64: 15 | Y64: km/h
B65: Délai avant incorporation | C65: Température | D65: 10 | E65: 20 | F65: 30 | G65: 10 | H65: 20 | I65: 30 | J65: 10 | K65: 20 | L65: 30 | M65: 10 | N65: 20 | O65: 30 | P65: 10 | Q65: 20 | R65: 30 | S65: 10 | T65: 20 | U65: 30 | W65: Délai avant incorporation | X65: Température | Y65: 10 | Z65: 20 | AA65: 30 | AB65: 10 | AC65: 20 | AD65: 30 | AE65: 10 | AF65: 20 | AG65: 30 | AH65: 10 | AI65: 20 | AJ65: 30 | AK65: 10 | AL65: 20 | AM65: 30 | AN65: 10 | AO65: 20 | AP65: 30
B66: 0h | D66: 11.1 | E66: 13.5 | F66: 14.7 | G66: =$C$4*D66/100 -> 0.1554 | H66: 0.189 | I66: 0.2058 | J66: =G66/0.27 -> 0.5755555556 | K66: 0.7 | L66: 0.7622222222 | M66: =J66*$N$3 -> 0.5824622222 | N66: =K66*$N$3 -> 0.7084 | O66: =L66*$N$3 -> 0.7713688889 | P66: =G66/0.46 -> 0.337826087 | Q66: 0.4108695652 | R66: 0.4473913043 | S66: =P66*$N$4 -> 0.3722843478 | T66: =Q66*$N$4 -> 0.4527782609 | U66: =R66*$N$4 -> 0.4930252174 | W66: 0h | Y66: 4.8 | Z66: 7.3 | AA66: 10.5 | AB66: =$C$4*Y66/100 -> 0.0672 | AC66: =$C$4*Z66/100 -> 0.1022 | AD66: =$C$4*AA66/100 -> 0.147 | AE66: =AB66/0.27 -> 0.2488888889 | AF66: 0.3785185185 | AG66: 0.5444444444 | AH66: =AE66*$N$3 -> 0.2518755556 | AI66: =AF66*$N$3 -> 0.3830607407 | AJ66: =AG66*$N$3 -> 0.5509777778 | AK66: =AB66/0.46 -> 0.1460869565 | AL66: 0.222173913 | AM66: 0.3195652174 | AN66: =AK66*$N$4 -> 0.1609878261 | AO66: =AL66*$N$4 -> 0.2448356522 | AP66: =AM66*$N$4 -> 0.3521608696
B67: 3h | D67: 31.2 | E67: 47.6 | F67: 62.5 | G67: 0.4368 | H67: =$C$4*E67/100 -> 0.6664 | I67: 0.875 | J67: 1.617777778 | K67: 2.468148148 | L67: 3.240740741 | M67: =J67*$N$3 -> 1.637191111 | N67: 2.497765926 | O67: 3.27962963 | P67: 0.9495652174 | Q67: 1.448695652 | R67: 1.902173913 | S67: =P67*$N$4 -> 1.04642087 | T67: 1.596462609 | U67: 2.096195652 | W67: 3h | Y67: 9 | Z67: 16.2 | AA67: 27.9 | AB67: =$C$4*Y67/100 -> 0.126 | AC67: 0.2268 | AD67: 0.3906 | AE67: 0.4666666667 | AF67: 0.84 | AG67: 1.446666667 | AH67: =AE67*$N$3 -> 0.4722666667 | AI67: 0.85008 | AJ67: 1.464026667 | AK67: 0.2739130435 | AL67: 0.4930434783 | AM67: 0.8491304348 | AN67: =AK67*$N$4 -> 0.3018521739 | AO67: 0.543333913 | AP67: 0.9357417391
B68: 6h | D68: 41.2 | E68: 57.3 | F68: 66.5 | G68: 0.5768 | H68: =$C$4*E68/100 -> 0.8022 | I68: 0.931 | J68: 2.136296296 | K68: 2.971111111 | L68: 3.448148148 | M68: 2.161931852 | N68: 3.006764444 | O68: 3.489525926 | P68: 1.253913043 | Q68: 1.743913043 | R68: 2.023913043 | S68: 1.381812174 | T68: 1.921792174 | U68: 2.230352174 | W68: 6h | Y68: 12.2 | Z68: 22.2 | AA68: 37.4 | AB68: 0.1708 | AC68: 0.3108 | AD68: 0.5236 | AE68: 0.6325925926 | AF68: 1.151111111 | AG68: 1.939259259 | AH68: 0.6401837037 | AI68: 1.164924444 | AJ68: 1.96253037 | AK68: 0.3713043478 | AL68: 0.6756521739 | AM68: 1.13826087 | AN68: 0.4091773913 | AO68: 0.7445686957 | AP68: 1.254363478
B69: 12h | D69: 48.7 | E69: 60.9 | F69: 66.9 | G69: 0.6818 | H69: 0.8526 | I69: 0.9366 | J69: 2.525185185 | K69: 3.157777778 | L69: 3.468888889 | M69: 2.555487407 | N69: 3.195671111 | O69: 3.510515556 | P69: 1.482173913 | Q69: 1.853478261 | R69: 2.036086957 | S69: 1.633355652 | T69: 2.042533043 | U69: 2.243767826 | W69: 12h | Y69: 16.3 | Z69: 28.9 | AA69: 45.3 | AB69: 0.2282 | AC69: 0.4046 | AD69: 0.6342 | AE69: 0.8451851852 | AF69: 1.498518519 | AG69: 2.348888889 | AH69: 0.8553274074 | AI69: 1.516500741 | AJ69: 2.377075556 | AK69: 0.4960869565 | AL69: 0.8795652174 | AM69: 1.378695652 | AN69: 0.5466878261 | AO69: 0.9692808696 | AP69: 1.519322609
B70: Sans incorporation | D70: 48.7 | E70: 60.9 | F70: 66.9 | G70: =$C$4*D70/100 -> 0.6818 | H70: =$C$4*E70/100 -> 0.8526 | I70: =$C$4*F70/100 -> 0.9366 | J70: =G70/0.27 -> 2.525185185 | K70: =H70/0.27 -> 3.157777778 | L70: =I70/0.27 -> 3.468888889 | M70: =J70*$N$3 -> 2.555487407 | N70: =K70*$N$3 -> 3.195671111 | O70: =L70*$N$3 -> 3.510515556 | P70: =G70/0.46 -> 1.482173913 | Q70: =H70/0.46 -> 1.853478261 | R70: =I70/0.46 -> 2.036086957 | S70: 1.633355652 | T70: 2.042533043 | U70: 2.243767826 | W70: Sans incorporation | Y70: 16.3 | Z70: 28.9 | AA70: 45.3 | AB70: =$C$4*Y70/100 -> 0.2282 | AC70: 0.4046 | AD70: 0.6342 | AE70: =AB70/0.27 -> 0.8451851852 | AF70: =AC70/0.27 -> 1.498518519 | AG70: =AD70/0.27 -> 2.348888889 | AH70: 0.8553274074 | AI70: 1.516500741 | AJ70: 2.377075556 | AK70: =AB70/0.46 -> 0.4960869565 | AL70: =AC70/0.46 -> 0.8795652174 | AM70: =AD70/0.46 -> 1.378695652 | AN70: 0.5466878261 | AO70: 0.9692808696 | AP70: 1.519322609
B72: Vitesse du vent (km/h) | C72: 25 | D72: km/h | W72: Vitesse du vent (km/h) | X72: 25 | Y72: km/h
B73: Délai avant incorporation | C73: Température | D73: 10 | E73: 20 | F73: 30 | G73: 10 | H73: 20 | I73: 30 | J73: 10 | K73: 20 | L73: 30 | M73: 10 | N73: 20 | O73: 30 | P73: 10 | Q73: 20 | R73: 30 | S73: 10 | T73: 20 | U73: 30 | W73: Délai avant incorporation | X73: Température | Y73: 10 | Z73: 20 | AA73: 30 | AB73: 10 | AC73: 20 | AD73: 30 | AE73: 10 | AF73: 20 | AG73: 30 | AH73: 10 | AI73: 20 | AJ73: 30 | AK73: 10 | AL73: 20 | AM73: 30 | AN73: 10 | AO73: 20 | AP73: 30
B74: 0h | D74: 13.2 | E74: 14.5 | F74: 15.2 | G74: =$C$4*D74/100 -> 0.1848 | H74: 0.203 | I74: 0.2128 | J74: =G74/0.27 -> 0.6844444444 | K74: 0.7518518519 | L74: 0.7881481481 | M74: =J74*$N$3 -> 0.6926577778 | N74: =K74*$N$3 -> 0.7608740741 | O74: =L74*$N$3 -> 0.7976059259 | P74: =G74/0.46 -> 0.4017391304 | Q74: 0.4413043478 | R74: 0.4626086957 | S74: =P74*$N$4 -> 0.4427165217 | T74: =Q74*$N$4 -> 0.4863173913 | U74: =R74*$N$4 -> 0.5097947826 | W74: 0h | Y74: 6.7 | Z74: 9.8 | AA74: 12.7 | AB74: =$C$4*Y74/100 -> 0.0938 | AC74: =$C$4*Z74/100 -> 0.1372 | AD74: =$C$4*AA74/100 -> 0.1778 | AE74: =AB74/0.27 -> 0.3474074074 | AF74: 0.5081481481 | AG74: 0.6585185185 | AH74: =AE74*$N$3 -> 0.3515762963 | AI74: =AF74*$N$3 -> 0.5142459259 | AJ74: =AG74*$N$3 -> 0.6664207407 | AK74: =AB74/0.46 -> 0.2039130435 | AL74: 0.2982608696 | AM74: 0.3865217391 | AN74: =AK74*$N$4 -> 0.2247121739 | AO74: =AL74*$N$4 -> 0.3286834783 | AP74: =AM74*$N$4 -> 0.4259469565
B75: 3h | D75: 44.2 | E75: 60 | F75: 68.8 | G75: 0.6188 | H75: 0.84 | I75: 0.9632 | J75: 2.291851852 | K75: 3.111111111 | L75: 3.567407407 | M75: =J75*$N$3 -> 2.319354074 | N75: 3.148444444 | O75: 3.610216296 | P75: 1.345217391 | Q75: 1.826086957 | R75: 2.093913043 | S75: =P75*$N$4 -> 1.482429565 | T75: 2.012347826 | U75: 2.307492174 | W75: 3h | Y75: 14.4 | Z75: 25.2 | AA75: 40.5 | AB75: =$C$4*Y75/100 -> 0.2016 | AC75: 0.3528 | AD75: 0.567 | AE75: 0.7466666667 | AF75: 1.306666667 | AG75: 2.1 | AH75: =AE75*$N$3 -> 0.7556266667 | AI75: 1.322346667 | AJ75: 2.1252 | AK75: 0.4382608696 | AL75: 0.7669565217 | AM75: 1.232608696 | AN75: =AK75*$N$4 -> 0.4829634783 | AO75: 0.845186087 | AP75: 1.358334783
B76: 6h | D76: 54.5 | E76: 65.3 | F76: 69.5 | G76: 0.763 | H76: 0.9142 | I76: 0.973 | J76: 2.825925926 | K76: 3.385925926 | L76: 3.603703704 | M76: 2.859837037 | N76: 3.426557037 | O76: 3.646948148 | P76: 1.658695652 | Q76: 1.987391304 | R76: 2.115217391 | S76: 1.827882609 | T76: 2.190105217 | U76: 2.330969565 | W76: 6h | Y76: 19.7 | Z76: 34 | AA76: 51.1 | AB76: 0.2758 | AC76: 0.476 | AD76: 0.7154 | AE76: 1.021481481 | AF76: 1.762962963 | AG76: 2.64962963 | AH76: 1.033739259 | AI76: 1.784118519 | AJ76: 2.681425185 | AK76: 0.5995652174 | AL76: 1.034782609 | AM76: 1.555217391 | AN76: 0.6607208696 | AO76: 1.140330435 | AP76: 1.713849565
B77: 12h | D77: 59 | E77: 66 | F77: 69.5 | G77: 0.826 | H77: 0.924 | I77: 0.973 | J77: 3.059259259 | K77: 3.422222222 | L77: 3.603703704 | M77: 3.09597037 | N77: 3.463288889 | O77: 3.646948148 | P77: 1.795652174 | Q77: 2.008695652 | R77: 2.115217391 | S77: 1.978808696 | T77: 2.213582609 | U77: 2.330969565 | W77: 12h | Y77: 26 | Z77: 42 | AA77: 56.7 | AB77: 0.364 | AC77: 0.588 | AD77: 0.7938 | AE77: 1.348148148 | AF77: 2.177777778 | AG77: 2.94 | AH77: 1.364325926 | AI77: 2.203911111 | AJ77: 2.97528 | AK77: 0.7913043478 | AL77: 1.27826087 | AM77: 1.725652174 | AN77: 0.8720173913 | AO77: 1.408643478 | AP77: 1.901668696
B78: Sans incorporation | D78: 59 | E78: 66 | F78: 69.5 | G78: =$C$4*D78/100 -> 0.826 | H78: =$C$4*E78/100 -> 0.924 | I78: =$C$4*F78/100 -> 0.973 | J78: =G78/0.27 -> 3.059259259 | K78: =H78/0.27 -> 3.422222222 | L78: =I78/0.27 -> 3.603703704 | M78: =J78*$N$3 -> 3.09597037 | N78: =K78*$N$3 -> 3.463288889 | O78: =L78*$N$3 -> 3.646948148 | P78: =G78/0.46 -> 1.795652174 | Q78: =H78/0.46 -> 2.008695652 | R78: =I78/0.46 -> 2.115217391 | S78: 1.978808696 | T78: 2.213582609 | U78: 2.330969565 | W78: Sans incorporation | Y78: 26 | Z78: 42 | AA78: 56.7 | AB78: =$C$4*Y78/100 -> 0.364 | AC78: 0.588 | AD78: 0.7938 | AE78: =AB78/0.27 -> 1.348148148 | AF78: =AC78/0.27 -> 2.177777778 | AG78: =AD78/0.27 -> 2.94 | AH78: 1.364325926 | AI78: 2.203911111 | AJ78: 2.97528 | AK78: =AB78/0.46 -> 0.7913043478 | AL78: =AC78/0.46 -> 1.27826087 | AM78: =AD78/0.46 -> 1.725652174 | AN78: 0.8720173913 | AO78: 1.408643478 | AP78: 1.901668696

Sheet Lisier de porc
B1: LISIER DE PORC | W1: LISIER DE PORC
B2: M.S (%) | C2: 3.5 | J2: Prix 2025 | L2: Formule | M2: $/t | N2: $/kg | W2: M.S (%) | X2: 3.5 | AE2: Prix 2025 | AG2: Formule | AH2: $/t | AI2: $/kg
B3: N total (kg/t) | C3: 3.5 | J3: Nitrate d'ammonium calcique (CAN) | L3: 27-0-0 | M3: 1012 | N3: =M3/1000 -> 1.012 | W3: N total (kg/t) | X3: 3.5 | AE3: Nitrate d'ammonium calcique (CAN) | AG3: 27-0-0 | AH3: 1012 | AI3: =AH3/1000 -> 1.012
B4: Azote ammoniacal total ou N-NH4+ (kg/t) | C4: 2.4 | J4: Urée | L4: 46-0-0 | M4: 1102 | N4: =M4/1000 -> 1.102 | W4: Azote ammoniacal total ou N-NH4+ (kg/t) | X4: 2.4 | AE4: Urée | AG4: 46-0-0 | AH4: 1102 | AI4: =AH4/1000 -> 1.102
B6: Aspersion basse | D6: Pourcentage d’azote ammoniacal (% N-NH4+) appliqué qui est émis sous forme d’ammoniac (N-NH3) lors des 12 heures suivant l'épandage | G6: Émissions cumulatives de N-NH3 (kg/t de lisier épandu) | J6: =$J$3 -> Nitrate d'ammonium calcique (CAN) | P6: =$J$4 -> Urée | W6: Pendillards | Y6: Pourcentage d’azote ammoniacal (% N-NH4+) appliqué qui est émis sous forme d’ammoniac (N-NH3) lors des 12 heures suivant l'épandage | AB6: Émissions cumulatives de N-NH3 (kg/t de lisier épandu) | AE6: =$J$3 -> Nitrate d'ammonium calcique (CAN) | AK6: =$J$4 -> Urée
J7: Masse de fertilisant requise pour compenser l'azote perdu (kg/t de lisier épandu) | M7: $/t de lisier épandu | P7: Masse de fertilisant requise pour compenser l'azote perdu (kg/t de lisier épandu) | S7: $/t de lisier épandu | AE7: Masse de fertilisant requise pour compenser l'azote perdu (kg/t de lisier épandu) | AH7: $/t de lisier épandu | AK7: Masse de fertilisant requise pour compenser l'azote perdu (kg/t de lisier épandu) | AN7: $/t de lisier épandu
B8: Vitesse du vent (km/h) | C8: 5 | W8: Vitesse du vent (km/h) | X8: 5
B9: Délai avant incorporation | C9: Température | D9: 10 | E9: 20 | F9: 30 | G9: 10 | H9: 20 | I9: 30 | J9: 10 | K9: 20 | L9: 30 | M9: 10 | N9: 20 | O9: 30 | P9: 10 | Q9: 20 | R9: 30 | S9: 10 | T9: 20 | U9: 30 | W9: Délai avant incorporation | X9: Température | Y9: 10 | Z9: 20 | AA9: 30 | AB9: 10 | AC9: 20 | AD9: 30 | AE9: 10 | AF9: 20 | AG9: 30 | AH9: 10 | AI9: 20 | AJ9: 30 | AK9: 10 | AL9: 20 | AM9: 30 | AN9: 10 | AO9: 20 | AP9: 30
B10: 0h | D10: 3.4 | E10: 4 | F10: 4.4 | G10: =$C$4*D10/100 -> 0.0816 | H10: 0.096 | I10: 0.1056 | J10: =G10/0.27 -> 0.3022222222 | K10: 0.3555555556 | L10: 0.3911111111 | M10: =J10*$N$3 -> 0.3058488889 | N10: =K10*$N$3 -> 0.3598222222 | O10: 0.3958044444 | P10: =G10/0.46 -> 0.1773913043 | Q10: 0.2086956522 | R10: 0.2295652174 | S10: =P10*$N$4 -> 0.1954852174 | T10: =Q10*$N$4 -> 0.2299826087 | U10: 0.2529808696 | W10: 0h | Y10: 2.3 | Z10: 2.7 | AA10: 3.2 | AB10: =$X$4*Y10/100 -> 0.0552 | AC10: =$X$4*Z10/100 -> 0.0648 | AD10: 0.0768 | AE10: =AB10/0.27 -> 0.2044444444 | AF10: 0.24 | AG10: 0.2844444444 | AH10: =AE10*$N$3 -> 0.2068977778 | AI10: =AF10*$N$3 -> 0.24288 | AJ10: 0.2878577778 | AK10: =AB10/0.46 -> 0.12 | AL10: 0.1408695652 | AM10: 0.1669565217 | AN10: =AK10*$N$4 -> 0.13224 | AO10: =AL10*$N$4 -> 0.1552382609 | AP10: 0.183986087
B11: 3h | D11: 5.7 | E11: 8.5 | F11: 11.9 | G11: 0.1368 | H11: 0.204 | I11: 0.2856 | J11: 0.5066666667 | K11: 0.7555555556 | L11: 1.057777778 | M11: =J11*$N$3 -> 0.5127466667 | N11: =K11*$N$3 -> 0.7646222222 | O11: =L11*$N$3 -> 1.070471111 | P11: 0.2973913043 | Q11: 0.4434782609 | R11: 0.6208695652 | S11: =P11*$N$4 -> 0.3277252174 | T11: =Q11*$N$4 -> 0.4887130435 | U11: =R11*$N$4 -> 0.6841982609 | W11: 3h | Y11: 2.8 | Z11: 3.6 | AA11: 5.2 | AB11: =$X$4*Y11/100 -> 0.0672 | AC11: =$X$4*Z11/100 -> 0.0864 | AD11: =$X$4*AA11/100 -> 0.1248 | AE11: 0.2488888889 | AF11: 0.32 | AG11: 0.4622222222 | AH11: =AE11*$N$3 -> 0.2518755556 | AI11: =AF11*$N$3 -> 0.32384 | AJ11: =AG11*$N$3 -> 0.4677688889 | AK11: 0.1460869565 | AL11: 0.187826087 | AM11: 0.2713043478 | AN11: =AK11*$N$4 -> 0.1609878261 | AO11: =AL11*$N$4 -> 0.2069843478 | AP11: =AM11*$N$4 -> 0.2989773913
B12: 6h | D12: 7.2 | E12: 10.6 | F12: 13.8 | G12: 0.1728 | H12: 0.2544 | I12: 0.3312 | J12: 0.64 | K12: 0.9422222222 | L12: 1.226666667 | M12: 0.64768 | N12: 0.9535288889 | O12: 1.241386667 | P12: 0.3756521739 | Q12: 0.5530434783 | R12: 0.72 | S12: 0.4139686957 | T12: 0.609453913 | U12: 0.79344 | W12: 6h | Y12: 3.1 | Z12: 4.4 | AA12: 6.6 | AB12: =$X$4*Y12/100 -> 0.0744 | AC12: 0.1056 | AD12: 0.1584 | AE12: 0.2755555556 | AF12: 0.3911111111 | AG12: 0.5866666667 | AH12: 0.2788622222 | AI12: 0.3958044444 | AJ12: 0.5937066667 | AK12: 0.1617391304 | AL12: 0.2295652174 | AM12: 0.3443478261 | AN12: 0.1782365217 | AO12: 0.2529808696 | AP12: 0.3794713043
B13: 12h | D13: 8.8 | E13: 12.1 | F13: 14.4 | G13: 0.2112 | H13: 0.2904 | I13: 0.3456 | J13: 0.7822222222 | K13: 1.075555556 | L13: 1.28 | M13: 0.7916088889 | N13: 1.088462222 | O13: 1.29536 | P13: 0.4591304348 | Q13: 0.6313043478 | R13: 0.7513043478 | S13: 0.5059617391 | T13: 0.6956973913 | U13: 0.8279373913 | W13: 12h | Y13: 3.6 | Z13: 5.3 | AA13: 8 | AB13: 0.0864 | AC13: 0.1272 | AD13: 0.192 | AE13: 0.32 | AF13: 0.4711111111 | AG13: 0.7111111111 | AH13: 0.32384 | AI13: 0.4767644444 | AJ13: 0.7196444444 | AK13: 0.187826087 | AL13: 0.2765217391 | AM13: 0.4173913043 | AN13: 0.2069843478 | AO13: 0.3047269565 | AP13: 0.4599652174
B14: Sans incorporation | D14: 8.8 | E14: 12.1 | F14: 14.4 | G14: 0.2112 | H14: 0.2904 | I14: 0.3456 | J14: =G14/0.27 -> 0.7822222222 | K14: =H14/0.27 -> 1.075555556 | L14: =I14/0.27 -> 1.28 | M14: 0.7916088889 | N14: 1.088462222 | O14: 1.29536 | P14: =G14/0.46 -> 0.4591304348 | Q14: =H14/0.46 -> 0.6313043478 | R14: =I14/0.46 -> 0.7513043478 | S14: 0.5059617391 | T14: 0.6956973913 | U14: 0.8279373913 | W14: Sans incorporation | Y14: 3.6 | Z14: 5.3 | AA14: 8 | AB14: =$X$4*Y14/100 -> 0.0864 | AC14: =$X$4*Z14/100 -> 0.1272 | AD14: =$X$4*AA14/100 -> 0.192 | AE14: =AB14/0.27 -> 0.32 | AF14: =AC14/0.27 -> 0.4711111111 | AG14: =AD14/0.27 -> 0.7111111111 | AH14: 0.32384 | AI14: 0.4767644444 | AJ14: 0.7196444444 | AK14: =AB14/0.46 -> 0.187826087 | AL14: =AC14/0.46 -> 0.2765217391 | AM14: =AD14/0.46 -> 0.4173913043 | AN14: 0.2069843478 | AO14: 0.3047269565 | AP14: 0.4599652174
B16: Vitesse du vent (km/h) | C16: 10 | W16: Vitesse du vent (km/h) | X16: 10
B17: Délai avant incorporation | C17: Température | D17: 10 | E17: 20 | F17: 30 | G17: 10 | H17: 20 | I17: 30 | J17: 10 | K17: 20 | L17: 30 | M17: 10 | N17: 20 | O17: 30 | P17: 10 | Q17: 20 | R17: 30 | S17: 10 | T17: 20 | U17: 30 | W17: Délai avant incorporation | X17: Température | Y17: 10 | Z17: 20 | AA17: 30 | AB17: 10 | AC17: 20 | AD17: 30 | AE17: 10 | AF17: 20 | AG17: 30 | AH17: 10 | AI17: 20 | AJ17: 30 | AK17: 10 | AL17: 20 | AM17: 30 | AN17: 10 | AO17: 20 | AP17: 30
B18: 0h | D18: 3.8 | E18: 4.3 | F18: 4.6 | G18: =$C$4*D18/100 -> 0.0912 | H18: 0.1032 | I18: 0.1104 | J18: =G18/0.27 -> 0.3377777778 | K18: 0.3822222222 | L18: 0.4088888889 | M18: =J18*$N$3 -> 0.3418311111 | N18: =K18*$N$3 -> 0.3868088889 | O18: 0.4137955556 | P18: =G18/0.46 -> 0.1982608696 | Q18: =H18/0.46 -> 0.2243478261 | R18: 0.24 | S18: =P18*$N$4 -> 0.2184834783 | T18: =Q18*$N$4 -> 0.2472313043 | U18: 0.26448 | W18: 0h | Y18: 2.5 | Z18: 3 | AA18: 3.7 | AB18: =$X$4*Y18/100 -> 0.06 | AC18: =$X$4*Z18/100 -> 0.072 | AD18: =$X$4*AA18/100 -> 0.0888 | AE18: =AB18/0.27 -> 0.2222222222 | AF18: =AC18/0.27 -> 0.2666666667 | AG18: =AD18/0.27 -> 0.3288888889 | AH18: =AE18*$N$3 -> 0.2248888889 | AI18: =AF18*$N$3 -> 0.2698666667 | AJ18: =AG18*$N$3 -> 0.3328355556 | AK18: =AB18/0.46 -> 0.1304347826 | AL18: =AC18/0.46 -> 0.1565217391 | AM18: =AD18/0.46 -> 0.1930434783 | AN18: =AK18*$N$4 -> 0.1437391304 | AO18: =AL18*$N$4 -> 0.1724869565 | AP18: =AM18*$N$4 -> 0.212733913
B19: 3h | D19: 7.5 | E19: 10.8 | F19: 14.4 | G19: 0.18 | H19: 0.2592 | I19: 0.3456 | J19: 0.6666666667 | K19: 0.96 | L19: 1.28 | M19: =J19*$N$3 -> 0.6746666667 | N19: =K19*$N$3 -> 0.97152 | O19: =L19*$N$3 -> 1.29536 | P19: 0.3913043478 | Q19: 0.5634782609 | R19: 0.7513043478 | S19: =P19*$N$4 -> 0.4312173913 | T19: =Q19*$N$4 -> 0.6209530435 | U19: =R19*$N$4 -> 0.8279373913 | W19: 3h | Y19: 3.3 | Z19: 4.6 | AA19: 6.9 | AB19: =$X$4*Y19/100 -> 0.0792 | AC19: =$X$4*Z19/100 -> 0.1104 | AD19: 0.1656 | AE19: 0.2933333333 | AF19: 0.4088888889 | AG19: 0.6133333333 | AH19: =AE19*$N$3 -> 0.2968533333 | AI19: 0.4137955556 | AJ19: 0.6206933333 | AK19: 0.172173913 | AL19: 0.24 | AM19: 0.36 | AN19: =AK19*$N$4 -> 0.1897356522 | AO19: 0.26448 | AP19: 0.39672
B20: 6h | D20: 9.5 | E20: 12.9 | F20: 15.1 | G20: 0.228 | H20: 0.3096 | I20: 0.3624 | J20: 0.8444444444 | K20: 1.146666667 | L20: 1.342222222 | M20: 0.8545777778 | N20: 1.160426667 | O20: 1.358328889 | P20: 0.4956521739 | Q20: 0.6730434783 | R20: 0.787826087 | S20: 0.5462086957 | T20: 0.741693913 | U20: 0.8681843478 | W20: 6h | Y20: 3.9 | Z20: 5.7 | AA20: 8.7 | AB20: 0.0936 | AC20: =$X$4*Z20/100 -> 0.1368 | AD20: 0.2088 | AE20: 0.3466666667 | AF20: 0.5066666667 | AG20: 0.7733333333 | AH20: 0.3508266667 | AI20: 0.5127466667 | AJ20: 0.7826133333 | AK20: 0.2034782609 | AL20: 0.2973913043 | AM20: 0.4539130435 | AN20: 0.2242330435 | AO20: 0.3277252174 | AP20: 0.5002121739
B21: 12h | D21: 11.1 | E21: 13.8 | F21: 15.2 | G21: 0.2664 | H21: 0.3312 | I21: 0.3648 | J21: 0.9866666667 | K21: 1.226666667 | L21: 1.351111111 | M21: 0.9985066667 | N21: 1.241386667 | O21: 1.367324444 | P21: 0.5791304348 | Q21: 0.72 | R21: 0.7930434783 | S21: 0.6382017391 | T21: 0.79344 | U21: 0.873933913 | W21: 12h | Y21: 4.6 | Z21: 7 | AA21: 10.3 | AB21: 0.1104 | AC21: 0.168 | AD21: 0.2472 | AE21: 0.4088888889 | AF21: 0.6222222222 | AG21: 0.9155555556 | AH21: 0.4137955556 | AI21: 0.6296888889 | AJ21: 0.9265422222 | AK21: 0.24 | AL21: 0.3652173913 | AM21: 0.5373913043 | AN21: 0.26448 | AO21: 0.4024695652 | AP21: 0.5922052174
B22: Sans incorporation | D22: 11.1 | E22: 13.8 | F22: 15.2 | G22: =$C$4*D22/100 -> 0.2664 | H22: =$C$4*E22/100 -> 0.3312 | I22: =$C$4*F22/100 -> 0.3648 | J22: =G22/0.27 -> 0.9866666667 | K22: =H22/0.27 -> 1.226666667 | L22: =I22/0.27 -> 1.351111111 | M22: 0.9985066667 | N22: 1.241386667 | O22: 1.367324444 | P22: =G22/0.46 -> 0.5791304348 | Q22: =H22/0.46 -> 0.72 | R22: =I22/0.46 -> 0.7930434783 | S22: 0.6382017391 | T22: 0.79344 | U22: 0.873933913 | W22: Sans incorporation | Y22: 4.6 | Z22: 7 | AA22: 10.3 | AB22: 0.1104 | AC22: 0.168 | AD22: 0.2472 | AE22: 0.4088888889 | AF22: 0.6222222222 | AG22: 0.9155555556 | AH22: 0.4137955556 | AI22: 0.6296888889 | AJ22: 0.9265422222 | AK22: 0.24 | AL22: 0.3652173913 | AM22: 0.5373913043 | AN22: 0.26448 | AO22: 0.4024695652 | AP22: 0.5922052174
B24: Vitesse du vent (km/h) | C24: 15 | W24: Vitesse du vent (km/h) | X24: 15
B25: Délai avant incorporation | C25: Température | D25: 10 | E25: 20 | F25: 30 | G25: 10 | H25: 20 | I25: 30 | J25: 10 | K25: 20 | L25: 30 | M25: 10 | N25: 20 | O25: 30 | P25: 10 | Q25: 20 | R25: 30 | S25: 10 | T25: 20 | U25: 30 | W25: Délai avant incorporation | X25: Température | Y25: 10 | Z25: 20 | AA25: 30 | AB25: 10 | AC25: 20 | AD25: 30 | AE25: 10 | AF25: 20 | AG25: 30 | AH25: 10 | AI25: 20 | AJ25: 30 | AK25: 10 | AL25: 20 | AM25: 30 | AN25: 10 | AO25: 20 | AP25: 30
B26: 0h | D26: 4.1 | E26: 4.5 | F26: 4.7 | G26: =$C$4*D26/100 -> 0.0984 | H26: 0.108 | I26: 0.1128 | J26: =G26/0.27 -> 0.3644444444 | K26: 0.4 | L26: 0.4177777778 | M26: =J26*$N$3 -> 0.3688177778 | N26: =K26*$N$3 -> 0.4048 | O26: 0.4227911111 | P26: =G26/0.46 -> 0.2139130435 | Q26: 0.2347826087 | R26: 0.2452173913 | S26: =P26*$N$4 -> 0.2357321739 | T26: =Q26*$N$4 -> 0.2587304348 | U26: 0.2702295652 | W26: 0h | Y26: 2.8 | Z26: 3.3 | AA26: 4 | AB26: =$X$4*Y26/100 -> 0.0672 | AC26: =$X$4*Z26/100 -> 0.0792 | AD26: =$X$4*AA26/100 -> 0.096 | AE26: =AB26/0.27 -> 0.2488888889 | AF26: =AC26/0.27 -> 0.2933333333 | AG26: =AD26/0.27 -> 0.3555555556 | AH26: =AE26*$N$3 -> 0.2518755556 | AI26: =AF26*$N$3 -> 0.2968533333 | AJ26: =AG26*$N$3 -> 0.3598222222 | AK26: =AB26/0.46 -> 0.1460869565 | AL26: =AC26/0.46 -> 0.172173913 | AM26: =AD26/0.46 -> 0.2086956522 | AN26: =AK26*$N$4 -> 0.1609878261 | AO26: =AL26*$N$4 -> 0.1897356522 | AP26: =AM26*$N$4 -> 0.2299826087
B27: 3h | D27: 9.1 | E27: 12.6 | F27: 15.2 | G27: 0.2184 | H27: 0.3024 | I27: 0.3648 | J27: 0.8088888889 | K27: 1.12 | L27: 1.351111111 | M27: =J27*$N$3 -> 0.8185955556 | N27: =K27*$N$3 -> 1.13344 | O27: =L27*$N$3 -> 1.367324444 | P27: 0.4747826087 | Q27: 0.6573913043 | R27: 0.7930434783 | S27: =P27*$N$4 -> 0.5232104348 | T27: =Q27*$N$4 -> 0.7244452174 | U27: =R27*$N$4 -> 0.873933913 | W27: 3h | Y27: 3.9 | Z27: 5.7 | AA27: 8.4 | AB27: =$X$4*Y27/100 -> 0.0936 | AC27: 0.1368 | AD27: 0.2016 | AE27: 0.3466666667 | AF27: 0.5066666667 | AG27: 0.7466666667 | AH27: =AE27*$N$3 -> 0.3508266667 | AI27: 0.5127466667 | AJ27: 0.7556266667 | AK27: 0.2034782609 | AL27: 0.2973913043 | AM27: 0.4382608696 | AN27: =AK27*$N$4 -> 0.2242330435 | AO27: 0.3277252174 | AP27: 0.4829634783
B28: 6h | D28: 11.3 | E28: 14.3 | F28: 15.6 | G28: 0.2712 | H28: 0.3432 | I28: 0.3744 | J28: 1.004444444 | K28: 1.271111111 | L28: 1.386666667 | M28: 1.016497778 | N28: 1.286364444 | O28: 1.403306667 | P28: 0.5895652174 | Q28: 0.7460869565 | R28: 0.8139130435 | S28: 0.6497008696 | T28: 0.8221878261 | U28: 0.8969321739 | W28: 6h | Y28: 4.7 | Z28: 7.2 | AA28: 10.5 | AB28: 0.1128 | AC28: 0.1728 | AD28: 0.252 | AE28: 0.4177777778 | AF28: 0.64 | AG28: 0.9333333333 | AH28: 0.4227911111 | AI28: 0.64768 | AJ28: 0.9445333333 | AK28: 0.2452173913 | AL28: 0.3756521739 | AM28: 0.547826087 | AN28: 0.2702295652 | AO28: 0.4139686957 | AP28: 0.6037043478
B29: 12h | D29: 12.7 | E29: 14.7 | F29: 15.6 | G29: 0.3048 | H29: 0.3528 | I29: 0.3744 | J29: 1.128888889 | K29: 1.306666667 | L29: 1.386666667 | M29: 1.142435556 | N29: 1.322346667 | O29: 1.403306667 | P29: 0.6626086957 | Q29: 0.7669565217 | R29: 0.8139130435 | S29: 0.7301947826 | T29: 0.845186087 | U29: 0.8969321739 | W29: 12h | Y29: 5.8 | Z29: 8.7 | AA29: 12 | AB29: 0.1392 | AC29: 0.2088 | AD29: 0.288 | AE29: 0.5155555556 | AF29: 0.7733333333 | AG29: 1.066666667 | AH29: 0.5217422222 | AI29: 0.7826133333 | AJ29: 1.079466667 | AK29: 0.3026086957 | AL29: 0.4539130435 | AM29: 0.6260869565 | AN29: 0.3334747826 | AO29: 0.5002121739 | AP29: 0.6899478261
B30: Sans incorporation | D30: 12.7 | E30: 14.7 | F30: 15.6 | G30: =$C$4*D30/100 -> 0.3048 | H30: =$C$4*E30/100 -> 0.3528 | I30: =$C$4*F30/100 -> 0.3744 | J30: =G30/0.27 -> 1.128888889 | K30: =H30/0.27 -> 1.306666667 | L30: =I30/0.27 -> 1.386666667 | M30: =J30*$N$3 -> 1.142435556 | N30: =K30*$N$3 -> 1.322346667 | O30: =L30*$N$3 -> 1.403306667 | P30: =G30/0.46 -> 0.6626086957 | Q30: =H30/0.46 -> 0.7669565217 | R30: =I30/0.46 -> 0.8139130435 | S30: =P30*$N$4 -> 0.7301947826 | T30: =Q30*$N$4 -> 0.845186087 | U30: =R30*$N$4 -> 0.8969321739 | W30: Sans incorporation | Y30: 5.8 | Z30: 8.7 | AA30: 12 | AB30: 0.1392 | AC30: 0.2088 | AD30: 0.288 | AE30: 0.5155555556 | AF30: 0.7733333333 | AG30: 1.066666667 | AH30: 0.5217422222 | AI30: 0.7826133333 | AJ30: 1.079466667 | AK30: 0.3026086957 | AL30: 0.4539130435 | AM30: 0.6260869565 | AN30: 0.3334747826 | AO30: 0.5002121739 | AP30: 0.6899478261
B32: Vitesse du vent (km/h) | C32: 25 | W32: Vitesse du vent (km/h) | X32: 25
B33: Délai avant incorporation | C33: Température | D33: 10 | E33: 20 | F33: 30 | G33: 10 | H33: 20 | I33: 30 | J33: 10 | K33: 20 | L33: 30 | M33: 10 | N33: 20 | O33: 30 | P33: 10 | Q33: 20 | R33: 30 | S33: 10 | T33: 20 | U33: 30 | W33: Délai avant incorporation | X33: Température | Y33: 10 | Z33: 20 | AA33: 30 | AB33: 10 | AC33: 20 | AD33: 30 | AE33: 10 | AF33: 20 | AG33: 30 | AH33: 10 | AI33: 20 | AJ33: 30 | AK33: 10 | AL33: 20 | AM33: 30 | AN33: 10 | AO33: 20 | AP33: 30
B34: 0h | D34: 4.4 | E34: 4.7 | F34: 4.8 | G34: =$C$4*D34/100 -> 0.1056 | H34: 0.1128 | I34: 0.1152 | J34: =G34/0.27 -> 0.3911111111 | K34: 0.4177777778 | L34: 0.4266666667 | M34: =J34*$N$3 -> 0.3958044444 | N34: =K34*$N$3 -> 0.4227911111 | O34: 0.4317866667 | P34: =G34/0.46 -> 0.2295652174 | Q34: 0.2452173913 | R34: 0.2504347826 | S34: =P34*$N$4 -> 0.2529808696 | T34: =Q34*$N$4 -> 0.2702295652 | U34: 0.2759791304 | W34: 0h | Y34: 3.2 | Z34: 3.9 | AA34: 4.4 | AB34: =$X$4*Y34/100 -> 0.0768 | AC34: =$X$4*Z34/100 -> 0.0936 | AD34: =$X$4*AA34/100 -> 0.1056 | AE34: =AB34/0.27 -> 0.2844444444 | AF34: =AC34/0.27 -> 0.3466666667 | AG34: =AD34/0.27 -> 0.3911111111 | AH34: =AE34*$N$3 -> 0.2878577778 | AI34: =AF34*$N$3 -> 0.3508266667 | AJ34: =AG34*$N$3 -> 0.3958044444 | AK34: =AB34/0.46 -> 0.1669565217 | AL34: =AC34/0.46 -> 0.2034782609 | AM34: =AD34/0.46 -> 0.2295652174 | AN34: =AK34*$N$4 -> 0.183986087 | AO34: =AL34*$N$4 -> 0.2242330435 | AP34: =AM34*$N$4 -> 0.2529808696
B35: 3h | D35: 11.9 | E35: 14.8 | F35: 16 | G35: 0.2856 | H35: 0.3552 | I35: 0.384 | J35: 1.057777778 | K35: 1.315555556 | L35: 1.422222222 | M35: =J35*$N$3 -> 1.070471111 | N35: =K35*$N$3 -> 1.331342222 | O35: =L35*$N$3 -> 1.439288889 | P35: 0.6208695652 | Q35: 0.772173913 | R35: 0.8347826087 | S35: =P35*$N$4 -> 0.6841982609 | T35: =Q35*$N$4 -> 0.8509356522 | U35: =R35*$N$4 -> 0.9199304348 | W35: 3h | Y35: 5.2 | Z35: 7.8 | AA35: 11.2 | AB35: =$X$4*Y35/100 -> 0.1248 | AC35: 0.1872 | AD35: 0.2688 | AE35: 0.4622222222 | AF35: 0.6933333333 | AG35: 0.9955555556 | AH35: =AE35*$N$3 -> 0.4677688889 | AI35: 0.7016533333 | AJ35: 1.007502222 | AK35: 0.2713043478 | AL35: 0.4069565217 | AM35: 0.5843478261 | AN35: =AK35*$N$4 -> 0.2989773913 | AO35: 0.448466087 | AP35: 0.6439513043
B36: 6h | D36: 13.8 | E36: 15.4 | F36: 16 | G36: 0.3312 | H36: 0.3696 | I36: 0.384 | J36: 1.226666667 | K36: 1.368888889 | L36: 1.422222222 | M36: =J36*$N$3 -> 1.241386667 | N36: 1.385315556 | O36: 1.439288889 | P36: 0.72 | Q36: 0.8034782609 | R36: 0.8347826087 | S36: 0.79344 | T36: 0.8854330435 | U36: 0.9199304348 | W36: 6h | Y36: 6.6 | Z36: 9.8 | AA36: 13.2 | AB36: 0.1584 | AC36: 0.2352 | AD36: 0.3168 | AE36: 0.5866666667 | AF36: 0.8711111111 | AG36: 1.173333333 | AH36: 0.5937066667 | AI36: 0.8815644444 | AJ36: 1.187413333 | AK36: 0.3443478261 | AL36: 0.5113043478 | AM36: 0.6886956522 | AN36: 0.3794713043 | AO36: 0.5634573913 | AP36: 0.7589426087
B37: 12h | D37: 14.4 | E37: 15.5 | F37: 16 | G37: 0.3456 | H37: 0.372 | I37: 0.384 | J37: 1.28 | K37: 1.377777778 | L37: 1.422222222 | M37: 1.29536 | N37: 1.394311111 | O37: 1.439288889 | P37: 0.7513043478 | Q37: 0.8086956522 | R37: 0.8347826087 | S37: 0.8279373913 | T37: 0.8911826087 | U37: 0.9199304348 | W37: 12h | Y37: 8 | Z37: 11.4 | AA37: 14 | AB37: =$X$4*Y37/100 -> 0.192 | AC37: 0.2736 | AD37: 0.336 | AE37: 0.7111111111 | AF37: 1.013333333 | AG37: 1.244444444 | AH37: 0.7196444444 | AI37: 1.025493333 | AJ37: 1.259377778 | AK37: 0.4173913043 | AL37: 0.5947826087 | AM37: 0.7304347826 | AN37: 0.4599652174 | AO37: 0.6554504348 | AP37: 0.8049391304
B38: Sans incorporation | D38: 14.4 | E38: 15.5 | F38: 16 | G38: =$C$4*D38/100 -> 0.3456 | H38: =$C$4*E38/100 -> 0.372 | I38: =$C$4*F38/100 -> 0.384 | J38: =G38/0.27 -> 1.28 | K38: =H38/0.27 -> 1.377777778 | L38: =I38/0.27 -> 1.422222222 | M38: 1.29536 | N38: 1.394311111 | O38: 1.439288889 | P38: =G38/0.46 -> 0.7513043478 | Q38: =H38/0.46 -> 0.8086956522 | R38: =I38/0.46 -> 0.8347826087 | S38: =P38*$N$4 -> 0.8279373913 | T38: 0.8911826087 | U38: 0.9199304348 | W38: Sans incorporation | Y38: 8 | Z38: 11.4 | AA38: 14 | AB38: 0.192 | AC38: 0.2736 | AD38: 0.336 | AE38: 0.7111111111 | AF38: 1.013333333 | AG38: 1.244444444 | AH38: 0.7196444444 | AI38: 1.025493333 | AJ38: 1.259377778 | AK38: 0.4173913043 | AL38: 0.5947826087 | AM38: 0.7304347826 | AN38: 0.4599652174 | AO38: 0.6554504348 | AP38: 0.8049391304
B41: LISIER DE PORC | W41: LISIER DE PORC
B42: M.S (%) | C42: 7 | J42: Prix 2025 | L42: Formule | M42: $/t | N42: $/kg | W42: M.S (%) | X42: 7 | AE42: Prix 2025 | AG42: Formule | AH42: $/t | AI42: $/kg
B43: N total (kg/t) | C43: 3.5 | J43: Nitrate d'ammonium calcique (CAN) | L43: 27-0-0 | M43: 1012 | N43: =M43/1000 -> 1.012 | W43: N total (kg/t) | X43: 3.5 | AE43: Nitrate d'ammonium calcique (CAN) | AG43: 27-0-0 | AH43: 1012 | AI43: =AH43/1000 -> 1.012
B44: Azote ammoniacal total ou N-NH4+ (kg/t) | C44: 2.4 | J44: Urée | L44: 46-0-0 | M44: 1102 | N44: =M44/1000 -> 1.102 | W44: Azote ammoniacal total ou N-NH4+ (kg/t) | X44: 2.4 | AE44: Urée | AG44: 46-0-0 | AH44: 1102 | AI44: =AH44/1000 -> 1.102
B46: Aspersion basse | D46: Pourcentage d’azote ammoniacal (% N-NH4+) appliqué qui est émis sous forme d’ammoniac (N-NH3) lors des 12 heures suivant l'épandage | G46: Émissions cumulatives de N-NH3 (kg/t de lisier épandu) | J46: =$J$3 -> Nitrate d'ammonium calcique (CAN) | P46: =$J$4 -> Urée | W46: Pendillards | Y46: Pourcentage d’azote ammoniacal (% N-NH4+) appliqué qui est émis sous forme d’ammoniac (N-NH3) lors des 12 heures suivant l'épandage | AB46: Émissions cumulatives de N-NH3 (kg/t de lisier épandu) | AE46: =$J$3 -> Nitrate d'ammonium calcique (CAN) | AK46: =$J$4 -> Urée
J47: Masse de fertilisant requise pour compenser l'azote perdu (kg/t de lisier épandu) | M47: $/t de lisier épandu | P47: Masse de fertilisant requise pour compenser l'azote perdu (kg/t de lisier épandu) | S47: $/t de lisier épandu | AE47: Masse de fertilisant requise pour compenser l'azote perdu (kg/t de lisier épandu) | AH47: $/t de lisier épandu | AK47: Masse de fertilisant requise pour compenser l'azote perdu (kg/t de lisier épandu) | AN47: $/t de lisier épandu
B48: Vitesse du vent (km/h) | C48: 5 | W48: Vitesse du vent (km/h) | X48: 5
B49: Délai avant incorporation | C49: Température | D49: 10 | E49: 20 | F49: 30 | G49: 10 | H49: 20 | I49: 30 | J49: 10 | K49: 20 | L49: 30 | M49: 10 | N49: 20 | O49: 30 | P49: 10 | Q49: 20 | R49: 30 | S49: 10 | T49: 20 | U49: 30 | W49: Délai avant incorporation | X49: Température | Y49: 10 | Z49: 20 | AA49: 30 | AB49: 10 | AC49: 20 | AD49: 30 | AE49: 10 | AF49: 20 | AG49: 30 | AH49: 10 | AI49: 20 | AJ49: 30 | AK49: 10 | AL49: 20 | AM49: 30 | AN49: 10 | AO49: 20 | AP49: 30
B50: 0h | D50: 5.7 | E50: 7.9 | F50: 9.7 | G50: =$C$4*D50/100 -> 0.1368 | H50: 0.1896 | I50: 0.2328 | J50: =G50/0.27 -> 0.5066666667 | K50: 0.7022222222 | L50: 0.8622222222 | M50: =J50*$N$3 -> 0.5127466667 | N50: =K50*$N$3 -> 0.7106488889 | O50: 0.8725688889 | P50: =G50/0.46 -> 0.2973913043 | Q50: 0.412173913 | R50: 0.5060869565 | S50: =P50*$N$4 -> 0.3277252174 | T50: =Q50*$N$4 -> 0.4542156522 | U50: 0.5577078261 | W50: 0h | Y50: 2.8 | Z50: 3.7 | AA50: 5.3 | AB50: =$X$4*Y50/100 -> 0.0672 | AC50: =$X$4*Z50/100 -> 0.0888 | AD50: =$X$4*AA50/100 -> 0.1272 | AE50: =AB50/0.27 -> 0.2488888889 | AF50: =AC50/0.27 -> 0.3288888889 | AG50: =AD50/0.27 -> 0.4711111111 | AH50: =AE50*$N$3 -> 0.2518755556 | AI50: =AF50*$N$3 -> 0.3328355556 | AJ50: =AG50*$N$3 -> 0.4767644444 | AK50: =AB50/0.46 -> 0.1460869565 | AL50: =AC50/0.46 -> 0.1930434783 | AM50: =AD50/0.46 -> 0.2765217391 | AN50: =AK50*$N$4 -> 0.1609878261 | AO50: =AL50*$N$4 -> 0.212733913 | AP50: =AM50*$N$4 -> 0.3047269565
B51: 3h | D51: 11.9 | E51: 20.2 | F51: 31.2 | G51: 0.2856 | H51: 0.4848 | I51: 0.7488 | J51: 1.057777778 | K51: 1.795555556 | L51: 2.773333333 | M51: =J51*$N$3 -> 1.070471111 | N51: =K51*$N$3 -> 1.817102222 | O51: =L51*$N$3 -> 2.806613333 | P51: 0.6208695652 | Q51: 1.053913043 | R51: 1.627826087 | S51: =P51*$N$4 -> 0.6841982609 | T51: =Q51*$N$4 -> 1.161412174 | U51: =R51*$N$4 -> 1.793864348 | W51: 3h | Y51: 3.9 | Z51: 6.2 | AA51: 10.6 | AB51: =$X$4*Y51/100 -> 0.0936 | AC51: 0.1488 | AD51: 0.2544 | AE51: 0.3466666667 | AF51: 0.5511111111 | AG51: 0.9422222222 | AH51: =AE51*$N$3 -> 0.3508266667 | AI51: 0.5577244444 | AJ51: 0.9535288889 | AK51: 0.2034782609 | AL51: 0.3234782609 | AM51: 0.5530434783 | AN51: =AK51*$N$4 -> 0.2242330435 | AO51: 0.3564730435 | AP51: 0.609453913
B52: 6h | D52: 16.1 | E52: 26.7 | F52: 38.4 | G52: 0.3864 | H52: 0.6408 | I52: 0.9216 | J52: 1.431111111 | K52: 2.373333333 | L52: 3.413333333 | M52: 1.448284444 | N52: 2.401813333 | O52: 3.454293333 | P52: 0.84 | Q52: 1.393043478 | R52: 2.003478261 | S52: 0.92568 | T52: 1.535133913 | U52: 2.207833043 | W52: 6h | Y52: 4.8 | Z52: 8.1 | AA52: 14.3 | AB52: 0.1152 | AC52: 0.1944 | AD52: 0.3432 | AE52: 0.4266666667 | AF52: 0.72 | AG52: 1.271111111 | AH52: 0.4317866667 | AI52: 0.72864 | AJ52: 1.286364444 | AK52: 0.2504347826 | AL52: 0.4226086957 | AM52: 0.7460869565 | AN52: 0.2759791304 | AO52: 0.4657147826 | AP52: 0.8221878261
B53: 12h | D53: 20.9 | E53: 32.2 | F53: 41.5 | G53: 0.5016 | H53: 0.7728 | I53: 0.996 | J53: 1.857777778 | K53: 2.862222222 | L53: 3.688888889 | M53: 1.880071111 | N53: 2.896568889 | O53: 3.733155556 | P53: 1.090434783 | Q53: 1.68 | R53: 2.165217391 | S53: 1.20165913 | T53: 1.85136 | U53: 2.386069565 | W53: 12h | Y53: 6 | Z53: 10.6 | AA53: 18.6 | AB53: 0.144 | AC53: 0.2544 | AD53: 0.4464 | AE53: 0.5333333333 | AF53: 0.9422222222 | AG53: 1.653333333 | AH53: 0.5397333333 | AI53: 0.9535288889 | AJ53: 1.673173333 | AK53: 0.3130434783 | AL53: 0.5530434783 | AM53: 0.9704347826 | AN53: 0.344973913 | AO53: 0.609453913 | AP53: 1.06941913
B54: Sans incorporation | D54: 20.9 | E54: 32.2 | F54: 41.5 | G54: =$C$4*D54/100 -> 0.5016 | H54: =$C$4*E54/100 -> 0.7728 | I54: =$C$4*F54/100 -> 0.996 | J54: =G54/0.27 -> 1.857777778 | K54: =H54/0.27 -> 2.862222222 | L54: =I54/0.27 -> 3.688888889 | M54: 1.880071111 | N54: 2.896568889 | O54: 3.733155556 | P54: =G54/0.46 -> 1.090434783 | Q54: =H54/0.46 -> 1.68 | R54: =I54/0.46 -> 2.165217391 | S54: 1.20165913 | T54: 1.85136 | U54: 2.386069565 | W54: Sans incorporation | Y54: 6 | Z54: 10.6 | AA54: 18.6 | AB54: 0.144 | AC54: 0.2544 | AD54: 0.4464 | AE54: 0.5333333333 | AF54: 0.9422222222 | AG54: 1.653333333 | AH54: 0.5397333333 | AI54: 0.9535288889 | AJ54: 1.673173333 | AK54: 0.3130434783 | AL54: 0.5530434783 | AM54: 0.9704347826 | AN54: 0.344973913 | AO54: 0.609453913 | AP54: 1.06941913
B56: Vitesse du vent (km/h) | C56: 10 | W56: Vitesse du vent (km/h) | X56: 10
B57: Délai avant incorporation | C57: Température | D57: 10 | E57: 20 | F57: 30 | G57: 10 | H57: 20 | I57: 30 | J57: 10 | K57: 20 | L57: 30 | M57: 10 | N57: 20 | O57: 30 | P57: 10 | Q57: 20 | R57: 30 | S57: 10 | T57: 20 | U57: 30 | W57: Délai avant incorporation | X57: Température | Y57: 10 | Z57: 20 | AA57: 30 | AB57: 10 | AC57: 20 | AD57: 30 | AE57: 10 | AF57: 20 | AG57: 30 | AH57: 10 | AI57: 20 | AJ57: 30 | AK57: 10 | AL57: 20 | AM57: 30 | AN57: 10 | AO57: 20 | AP57: 30
B58: 0h | D58: 7.2 | E58: 9.3 | F58: 10.5 | G58: =$C$4*D58/100 -> 0.1728 | H58: 0.2232 | I58: 0.252 | J58: =G58/0.27 -> 0.64 | K58: 0.8266666667 | L58: 0.9333333333 | M58: =J58*$N$3 -> 0.64768 | N58: =K58*$N$3 -> 0.8365866667 | O58: 0.9445333333 | P58: =G58/0.46 -> 0.3756521739 | Q58: 0.4852173913 | R58: 0.547826087 | S58: =P58*$N$4 -> 0.4139686957 | T58: =Q58*$N$4 -> 0.5347095652 | U58: =R58*$N$4 -> 0.6037043478 | W58: 0h | Y58: 3.4 | Z58: 4.7 | AA58: 6.7 | AB58: =$X$4*Y58/100 -> 0.0816 | AC58: =$X$4*Z58/100 -> 0.1128 | AD58: =$X$4*AA58/100 -> 0.1608 | AE58: =AB58/0.27 -> 0.3022222222 | AF58: =AC58/0.27 -> 0.4177777778 | AG58: =AD58/0.27 -> 0.5955555556 | AH58: =AE58*$N$3 -> 0.3058488889 | AI58: =AF58*$N$3 -> 0.4227911111 | AJ58: =AG58*$N$3 -> 0.6027022222 | AK58: =AB58/0.46 -> 0.1773913043 | AL58: =AC58/0.46 -> 0.2452173913 | AM58: =AD58/0.46 -> 0.3495652174 | AN58: =AK58*$N$4 -> 0.1954852174 | AO58: =AL58*$N$4 -> 0.2702295652 | AP58: =AM58*$N$4 -> 0.3852208696
B59: 3h | D59: 17.2 | E59: 27.5 | F59: 39 | G59: 0.4128 | H59: 0.66 | I59: 0.936 | J59: 1.528888889 | K59: 2.444444444 | L59: 3.466666667 | M59: =J59*$N$3 -> 1.547235556 | N59: =K59*$N$3 -> 2.473777778 | O59: =L59*$N$3 -> 3.508266667 | P59: 0.8973913043 | Q59: 1.434782609 | R59: 2.034782609 | S59: =P59*$N$4 -> 0.9889252174 | T59: =Q59*$N$4 -> 1.581130435 | U59: =R59*$N$4 -> 2.242330435 | W59: 3h | Y59: 5.3 | Z59: 8.9 | AA59: 15.3 | AB59: =$X$4*Y59/100 -> 0.1272 | AC59: 0.2136 | AD59: 0.3672 | AE59: 0.4711111111 | AF59: 0.7911111111 | AG59: 1.36 | AH59: =AE59*$N$3 -> 0.4767644444 | AI59: 0.8006044444 | AJ59: 1.37632 | AK59: 0.2765217391 | AL59: 0.4643478261 | AM59: 0.7982608696 | AN59: =AK59*$N$4 -> 0.3047269565 | AO59: 0.5117113043 | AP59: 0.8796834783
B60: 6h | D60: 23 | E60: 34.9 | F60: 44.1 | G60: 0.552 | H60: 0.8376 | I60: 1.0584 | J60: 2.044444444 | K60: 3.102222222 | L60: 3.92 | M60: 2.068977778 | N60: 3.139448889 | O60: 3.96704 | P60: 1.2 | Q60: 1.820869565 | R60: 2.300869565 | S60: 1.3224 | T60: 2.006598261 | U60: 2.535558261 | W60: 6h | Y60: 6.8 | Z60: 11.9 | AA60: 20.6 | AB60: 0.1632 | AC60: 0.2856 | AD60: 0.4944 | AE60: 0.6044444444 | AF60: 1.057777778 | AG60: 1.831111111 | AH60: 0.6116977778 | AI60: 1.070471111 | AJ60: 1.853084444 | AK60: 0.3547826087 | AL60: 0.6208695652 | AM60: 1.074782609 | AN60: 0.3909704348 | AO60: 0.6841982609 | AP60: 1.184410435
B61: 12h | D61: 28.5 | E61: 39 | F61: 45.2 | G61: 0.684 | H61: 0.936 | I61: 1.0848 | J61: 2.533333333 | K61: 3.466666667 | L61: 4.017777778 | M61: 2.563733333 | N61: 3.508266667 | O61: 4.065991111 | P61: 1.486956522 | Q61: 2.034782609 | R61: 2.35826087 | S61: 1.638626087 | T61: 2.242330435 | U61: 2.598803478 | W61: 12h | Y61: 8.8 | Z61: 15.7 | AA61: 26 | AB61: 0.2112 | AC61: 0.3768 | AD61: 0.624 | AE61: 0.7822222222 | AF61: 1.395555556 | AG61: 2.311111111 | AH61: 0.7916088889 | AI61: 1.412302222 | AJ61: 2.338844444 | AK61: 0.4591304348 | AL61: 0.8191304348 | AM61: 1.356521739 | AN61: 0.5059617391 | AO61: 0.9026817391 | AP61: 1.494886957
B62: Sans incorporation | D62: 28.5 | E62: 39 | F62: 45.2 | G62: =$C$4*D62/100 -> 0.684 | H62: =$C$4*E62/100 -> 0.936 | I62: =$C$4*F62/100 -> 1.0848 | J62: =G62/0.27 -> 2.533333333 | K62: =H62/0.27 -> 3.466666667 | L62: =I62/0.27 -> 4.017777778 | M62: 2.563733333 | N62: 3.508266667 | O62: 4.065991111 | P62: =G62/0.46 -> 1.486956522 | Q62: =H62/0.46 -> 2.034782609 | R62: =I62/0.46 -> 2.35826087 | S62: 1.638626087 | T62: 2.242330435 | U62: 2.598803478 | W62: Sans incorporation | Y62: 8.8 | Z62: 15.7 | AA62: 26 | AB62: 0.2112 | AC62: 0.3768 | AD62: 0.624 | AE62: 0.7822222222 | AF62: 1.395555556 | AG62: 2.311111111 | AH62: 0.7916088889 | AI62: 1.412302222 | AJ62: 2.338844444 | AK62: 0.4591304348 | AL62: 0.8191304348 | AM62: 1.356521739 | AN62: 0.5059617391 | AO62: 0.9026817391 | AP62: 1.494886957
B64: Vitesse du vent (km/h) | C64: 15 | W64: Vitesse du vent (km/h) | X64: 15
B65: Délai avant incorporation | C65: Température | D65: 10 | E65: 20 | F65: 30 | G65: 10 | H65: 20 | I65: 30 | J65: 10 | K65: 20 | L65: 30 | M65: 10 | N65: 20 | O65: 30 | P65: 10 | Q65: 20 | R65: 30 | S65: 10 | T65: 20 | U65: 30 | W65: Délai avant incorporation | X65: Température | Y65: 10 | Z65: 20 | AA65: 30 | AB65: 10 | AC65: 20 | AD65: 30 | AE65: 10 | AF65: 20 | AG65: 30 | AH65: 10 | AI65: 20 | AJ65: 30 | AK65: 10 | AL65: 20 | AM65: 30 | AN65: 10 | AO65: 20 | AP65: 30
B66: 0h | D66: 8.4 | E66: 10 | F66: 10.8 | G66: =$C$4*D66/100 -> 0.2016 | H66: 0.24 | I66: 0.2592 | J66: =G66/0.27 -> 0.7466666667 | K66: 0.8888888889 | L66: 0.96 | M66: =J66*$N$3 -> 0.7556266667 | N66: =K66*$N$3 -> 0.8995555556 | O66: 0.97152 | P66: =G66/0.46 -> 0.4382608696 | Q66: 0.5217391304 | R66: 0.5634782609 | S66: =P66*$N$4 -> 0.4829634783 | T66: =Q66*$N$4 -> 0.5749565217 | U66: =R66*$N$4 -> 0.6209530435 | W66: 0h | Y66: 4 | Z66: 5.7 | AA66: 7.9 | AB66: =$X$4*Y66/100 -> 0.096 | AC66: =$X$4*Z66/100 -> 0.1368 | AD66: =$X$4*AA66/100 -> 0.1896 | AE66: =AB66/0.27 -> 0.3555555556 | AF66: =AC66/0.27 -> 0.5066666667 | AG66: =AD66/0.27 -> 0.7022222222 | AH66: =AE66*$N$3 -> 0.3598222222 | AI66: =AF66*$N$3 -> 0.5127466667 | AJ66: =AG66*$N$3 -> 0.7106488889 | AK66: =AB66/0.46 -> 0.2086956522 | AL66: =AC66/0.46 -> 0.2973913043 | AM66: =AD66/0.46 -> 0.412173913 | AN66: =AK66*$N$4 -> 0.2299826087 | AO66: =AL66*$N$4 -> 0.3277252174 | AP66: =AM66*$N$4 -> 0.4542156522
B67: 3h | D67: 22.2 | E67: 33.6 | F67: 43.9 | G67: 0.5328 | H67: 0.8064 | I67: 1.0536 | J67: 1.973333333 | K67: 2.986666667 | L67: 3.902222222 | M67: =J67*$N$3 -> 1.997013333 | N67: =K67*$N$3 -> 3.022506667 | O67: =L67*$N$3 -> 3.949048889 | P67: 1.15826087 | Q67: 1.753043478 | R67: 2.290434783 | S67: =P67*$N$4 -> 1.276403478 | T67: =Q67*$N$4 -> 1.931853913 | U67: =R67*$N$4 -> 2.52405913 | W67: 3h | Y67: 6.9 | Z67: 11.8 | AA67: 20 | AB67: =$X$4*Y67/100 -> 0.1656 | AC67: 0.2832 | AD67: 0.48 | AE67: 0.6133333333 | AF67: 1.048888889 | AG67: 1.777777778 | AH67: =AE67*$N$3 -> 0.6206933333 | AI67: 1.061475556 | AJ67: 1.799111111 | AK67: 0.36 | AL67: 0.6156521739 | AM67: 1.043478261 | AN67: =AK67*$N$4 -> 0.39672 | AO67: 0.6784486957 | AP67: 1.149913043
B68: 6h | D68: 29.2 | E68: 40.4 | F68: 46.7 | G68: 0.7008 | H68: 0.9696 | I68: 1.1208 | J68: 2.595555556 | K68: 3.591111111 | L68: 4.151111111 | M68: 2.626702222 | N68: 3.634204444 | O68: 4.200924444 | P68: 1.523478261 | Q68: 2.107826087 | R68: 2.436521739 | S68: 1.678873043 | T68: 2.322824348 | U68: 2.685046957 | W68: 6h | Y68: 9.1 | Z68: 16 | AA68: 26.5 | AB68: 0.2184 | AC68: 0.384 | AD68: 0.636 | AE68: 0.8088888889 | AF68: 1.422222222 | AG68: 2.355555556 | AH68: 0.8185955556 | AI68: 1.439288889 | AJ68: 2.383822222 | AK68: 0.4747826087 | AL68: 0.8347826087 | AM68: 1.382608696 | AN68: 0.5232104348 | AO68: 0.9199304348 | AP68: 1.523634783
B69: 12h | D69: 34.4 | E69: 42.8 | F69: 47 | G69: 0.8256 | H69: 1.0272 | I69: 1.128 | J69: 3.057777778 | K69: 3.804444444 | L69: 4.177777778 | M69: 3.094471111 | N69: 3.850097778 | O69: 4.227911111 | P69: 1.794782609 | Q69: 2.233043478 | R69: 2.452173913 | S69: 1.977850435 | T69: 2.460813913 | U69: 2.702295652 | W69: 12h | Y69: 11.9 | Z69: 20.7 | AA69: 32 | AB69: 0.2856 | AC69: 0.4968 | AD69: 0.768 | AE69: 1.057777778 | AF69: 1.84 | AG69: 2.844444444 | AH69: 1.070471111 | AI69: 1.86208 | AJ69: 2.878577778 | AK69: 0.6208695652 | AL69: 1.08 | AM69: 1.669565217 | AN69: 0.6841982609 | AO69: 1.19016 | AP69: 1.83986087
B70: Sans incorporation | D70: 34.4 | E70: 42.8 | F70: 47 | G70: =$C$4*D70/100 -> 0.8256 | H70: =$C$4*E70/100 -> 1.0272 | I70: =$C$4*F70/100 -> 1.128 | J70: =G70/0.27 -> 3.057777778 | K70: =H70/0.27 -> 3.804444444 | L70: =I70/0.27 -> 4.177777778 | M70: 3.094471111 | N70: 3.850097778 | O70: 4.227911111 | P70: =G70/0.46 -> 1.794782609 | Q70: =H70/0.46 -> 2.233043478 | R70: =I70/0.46 -> 2.452173913 | S70: 1.977850435 | T70: 2.460813913 | U70: 2.702295652 | W70: Sans incorporation | Y70: 11.9 | Z70: 20.7 | AA70: 32 | AB70: 0.2856 | AC70: 0.4968 | AD70: 0.768 | AE70: 1.057777778 | AF70: 1.84 | AG70: 2.844444444 | AH70: 1.070471111 | AI70: 1.86208 | AJ70: 2.878577778 | AK70: 0.6208695652 | AL70: 1.08 | AM70: 1.669565217 | AN70: 0.6841982609 | AO70: 1.19016 | AP70: 1.83986087
B72: Vitesse du vent (km/h) | C72: 25 | W72: Vitesse du vent (km/h) | X72: 25
B73: Délai avant incorporation | C73: Température | D73: 10 | E73: 20 | F73: 30 | G73: 10 | H73: 20 | I73: 30 | J73: 10 | K73: 20 | L73: 30 | M73: 10 | N73: 20 | O73: 30 | P73: 10 | Q73: 20 | R73: 30 | S73: 10 | T73: 20 | U73: 30 | W73: Délai avant incorporation | X73: Température | Y73: 10 | Z73: 20 | AA73: 30 | AB73: 10 | AC73: 20 | AD73: 30 | AE73: 10 | AF73: 20 | AG73: 30 | AH73: 10 | AI73: 20 | AJ73: 30 | AK73: 10 | AL73: 20 | AM73: 30 | AN73: 10 | AO73: 20 | AP73: 30
B74: 0h | D74: 9.7 | E74: 10.7 | F74: 11.2 | G74: =$C$4*D74/100 -> 0.2328 | H74: 0.2568 | I74: 0.2688 | J74: =G74/0.27 -> 0.8622222222 | K74: 0.9511111111 | L74: 0.9955555556 | M74: =J74*$N$3 -> 0.8725688889 | N74: =K74*$N$3 -> 0.9625244444 | O74: 1.007502222 | P74: =G74/0.46 -> 0.5060869565 | Q74: 0.5582608696 | R74: 0.5843478261 | S74: =P74*$N$4 -> 0.5577078261 | T74: =Q74*$N$4 -> 0.6152034783 | U74: =R74*$N$4 -> 0.6439513043 | W74: 0h | Y74: 5.3 | Z74: 7.4 | AA74: 9.4 | AB74: =$X$4*Y74/100 -> 0.1272 | AC74: =$X$4*Z74/100 -> 0.1776 | AD74: =$X$4*AA74/100 -> 0.2256 | AE74: =AB74/0.27 -> 0.4711111111 | AF74: =AC74/0.27 -> 0.6577777778 | AG74: =AD74/0.27 -> 0.8355555556 | AH74: =AE74*$N$3 -> 0.4767644444 | AI74: =AF74*$N$3 -> 0.6656711111 | AJ74: =AG74*$N$3 -> 0.8455822222 | AK74: =AB74/0.46 -> 0.2765217391 | AL74: =AC74/0.46 -> 0.3860869565 | AM74: =AD74/0.46 -> 0.4904347826 | AN74: =AK74*$N$4 -> 0.3047269565 | AO74: =AL74*$N$4 -> 0.4254678261 | AP74: =AM74*$N$4 -> 0.5404591304
B75: 3h | D75: 31.3 | E75: 42.2 | F75: 48.3 | G75: 0.7512 | H75: 1.0128 | I75: 1.1592 | J75: 2.782222222 | K75: 3.751111111 | L75: 4.293333333 | M75: =J75*$N$3 -> 2.815608889 | N75: =K75*$N$3 -> 3.796124444 | O75: =L75*$N$3 -> 4.344853333 | P75: 1.633043478 | Q75: 2.20173913 | R75: 2.52 | S75: =P75*$N$4 -> 1.799613913 | T75: =Q75*$N$4 -> 2.426316522 | U75: =R75*$N$4 -> 2.77704 | W75: 3h | Y75: 10.6 | Z75: 18.1 | AA75: 28.7 | AB75: =$X$4*Y75/100 -> 0.2544 | AC75: 0.4344 | AD75: 0.6888 | AE75: 0.9422222222 | AF75: 1.608888889 | AG75: 2.551111111 | AH75: =AE75*$N$3 -> 0.9535288889 | AI75: 1.628195556 | AJ75: 2.581724444 | AK75: 0.5530434783 | AL75: 0.9443478261 | AM75: 1.497391304 | AN75: =AK75*$N$4 -> 0.609453913 | AO75: 1.040671304 | AP75: 1.650125217
B76: 6h | D76: 38.4 | E76: 45.9 | F76: 48.8 | G76: 0.9216 | H76: 1.1016 | I76: 1.1712 | J76: 3.413333333 | K76: 4.08 | L76: 4.337777778 | M76: 3.454293333 | N76: 4.12896 | O76: 4.389831111 | P76: 2.003478261 | Q76: 2.394782609 | R76: 2.546086957 | S76: 2.207833043 | T76: 2.639050435 | U76: 2.805787826 | W76: 6h | Y76: 14.3 | Z76: 24.2 | AA76: 36 | AB76: =$X$4*Y76/100 -> 0.3432 | AC76: 0.5808 | AD76: 0.864 | AE76: 1.271111111 | AF76: 2.151111111 | AG76: 3.2 | AH76: 1.286364444 | AI76: 2.176924444 | AJ76: 3.2384 | AK76: 0.7460869565 | AL76: 1.262608696 | AM76: 1.87826087 | AN76: 0.8221878261 | AO76: 1.391394783 | AP76: 2.069843478
B77: 12h | D77: 41.5 | E77: 46.4 | F77: 48.8 | G77: 0.996 | H77: 1.1136 | I77: 1.1712 | J77: 3.688888889 | K77: 4.124444444 | L77: 4.337777778 | M77: 3.733155556 | N77: 4.173937778 | O77: 4.389831111 | P77: 2.165217391 | Q77: 2.420869565 | R77: 2.546086957 | S77: 2.386069565 | T77: 2.667798261 | U77: 2.805787826 | W77: 12h | Y77: 18.7 | Z77: 29.7 | AA77: 39.9 | AB77: 0.4488 | AC77: 0.7128 | AD77: 0.9576 | AE77: 1.662222222 | AF77: 2.64 | AG77: 3.546666667 | AH77: 1.682168889 | AI77: 2.67168 | AJ77: 3.589226667 | AK77: 0.9756521739 | AL77: 1.549565217 | AM77: 2.08173913 | AN77: 1.075168696 | AO77: 1.70762087 | AP77: 2.294076522
B78: Sans incorporation | D78: 41.5 | E78: 46.4 | F78: 48.8 | G78: =$C$4*D78/100 -> 0.996 | H78: =$C$4*E78/100 -> 1.1136 | I78: =$C$4*F78/100 -> 1.1712 | J78: =G78/0.27 -> 3.688888889 | K78: =H78/0.27 -> 4.124444444 | L78: =I78/0.27 -> 4.337777778 | M78: 3.733155556 | N78: 4.173937778 | O78: 4.389831111 | P78: =G78/0.46 -> 2.165217391 | Q78: =H78/0.46 -> 2.420869565 | R78: =I78/0.46 -> 2.546086957 | S78: 2.386069565 | T78: 2.667798261 | U78: 2.805787826 | W78: Sans incorporation | Y78: 18.7 | Z78: 29.7 | AA78: 39.9 | AB78: 0.4488 | AC78: 0.7128 | AD78: 0.9576 | AE78: 1.662222222 | AF78: 2.64 | AG78: 3.546666667 | AH78: 1.682168889 | AI78: 2.67168 | AJ78: 3.589226667 | AK78: 0.9756521739 | AL78: 1.549565217 | AM78: 2.08173913 | AN78: 1.075168696 | AO78: 1.70762087 | AP78: 2.294076522

Sheet Base de données (hidden)
A1: Type fumier | B1: M.S | C1: Méthode | D1: Incorporé | E1: Température | F1: Vent | G1: % pertes
A2: Vache | B2: 3.5 | C2: Aspersion basse | D2: 0h | E2: 10 | F2: 5 | G2: ='Lisier de vache'!D10/100 -> 0.048 | J2: Prix 2025 | K2: Formule | L2: % | N2: Analyses | O2: Oui | P2: --------
A3: Vache | B3: 3.5 | C3: Aspersion basse | D3: 3h | E3: 10 | F3: 5 | G3: ='Lisier de vache'!D11/100 -> 0.097 | J3: Nitrate d'ammonium calcique (CAN) | K3: 27-0-0 | L3: 0.27 | O3: Non
A4: Vache | B4: 3.5 | C4: Aspersion basse | D4: 6h | E4: 10 | F4: 5 | G4: ='Lisier de vache'!D12/100 -> 0.129 | J4: Urée | K4: 46-0-0 | L4: 0.46
A5: Vache | B5: 3.5 | C5: Aspersion basse | D5: 12h | E5: 10 | F5: 5 | G5: ='Lisier de vache'!D13/100 -> 0.161
A6: Vache | B6: 3.5 | C6: Aspersion basse | D6: Sans | E6: 10 | F6: 5 | G6: ='Lisier de vache'!D14/100 -> 0.161
A7: Vache | B7: 3.5 | C7: Aspersion basse | D7: 0h | E7: 20 | F7: 5 | G7: ='Lisier de vache'!E10/100 -> 0.061
A8: Vache | B8: 3.5 | C8: Aspersion basse | D8: 3h | E8: 20 | F8: 5 | G8: ='Lisier de vache'!E11/100 -> 0.155
A9: Vache | B9: 3.5 | C9: Aspersion basse | D9: 6h | E9: 20 | F9: 5 | G9: ='Lisier de vache'!E12/100 -> 0.2
A10: Vache | B10: 3.5 | C10: Aspersion basse | D10: 12h | E10: 20 | F10: 5 | G10: ='Lisier de vache'!E13/100 -> 0.231
A11: Vache | B11: 3.5 | C11: Aspersion basse | D11: Sans | E11: 20 | F11: 5 | G11: ='Lisier de vache'!E14/100 -> 0.231
A12: Vache | B12: 3.5 | C12: Aspersion basse | D12: 0h | E12: 30 | F12: 5 | G12: ='Lisier de vache'!F10/100 -> 0.071 | J12: Engrais organique | K12: Matière sèche (% sur base humide) | L12: Ntotal (kg/t) | M12: N-NH4 (kg/t) | N12: Fumier
A13: Vache | B13: 3.5 | C13: Aspersion basse | D13: 3h | E13: 30 | F13: 5 | G13: ='Lisier de vache'!F11/100 -> 0.227 | J13: Lisier - porc à l'engraissement | K13: 3.5 | L13: 3.5 | M13: 2.4 | N13: Porc
A14: Vache | B14: 3.5 | C14: Aspersion basse | D14: 6h | E14: 30 | F14: 5 | G14: ='Lisier de vache'!F12/100 -> 0.267 | J14: Lisier - Bovins laitiers | K14: 7 | L14: 2.6 | M14: 1.4 | N14: Vache
A15: Vache | B15: 3.5 | C15: Aspersion basse | D15: 12h | E15: 30 | F15: 5 | G15: ='Lisier de vache'!F13/100 -> 0.279
A16: Vache | B16: 3.5 | C16: Aspersion basse | D16: Sans | E16: 30 | F16: 5 | G16: ='Lisier de vache'!F14/100 -> 0.279
A17: Vache | B17: 3.5 | C17: Aspersion basse | D17: 0h | E17: 10 | F17: 10 | G17: ='Lisier de vache'!D18/100 -> 0.057
A18: Vache | B18: 3.5 | C18: Aspersion basse | D18: 3h | E18: 10 | F18: 10 | G18: ='Lisier de vache'!D19/100 -> 0.135
A19: Vache | B19: 3.5 | C19: Aspersion basse | D19: 6h | E19: 10 | F19: 10 | G19: ='Lisier de vache'!D20/100 -> 0.176
A20: Vache | B20: 3.5 | C20: Aspersion basse | D20: 12h | E20: 10 | F20: 10 | G20: ='Lisier de vache'!D21/100 -> 0.21
A21: Vache | B21: 3.5 | C21: Aspersion basse | D21: Sans | E21: 10 | F21: 10 | G21: ='Lisier de vache'!D22/100 -> 0.21
A22: Vache | B22: 3.5 | C22: Aspersion basse | D22: 0h | E22: 20 | F22: 10 | G22: ='Lisier de vache'!E18/100 -> 0.069
A23: Vache | B23: 3.5 | C23: Aspersion basse | D23: 3h | E23: 20 | F23: 10 | G23: ='Lisier de vache'!E19/100 -> 0.204
A24: Vache | B24: 3.5 | C24: Aspersion basse | D24: 6h | E24: 20 | F24: 10 | G24: ='Lisier de vache'!E20/100 -> 0.248
A25: Vache | B25: 3.5 | C25: Aspersion basse | D25: 12h | E25: 20 | F25: 10 | G25: ='Lisier de vache'!E21/100 -> 0.267
A26: Vache | B26: 3.5 | C26: Aspersion basse | D26: Sans | E26: 20 | F26: 10 | G26: ='Lisier de vache'!E22/100 -> 0.267
A27: Vache | B27: 3.5 | C27: Aspersion basse | D27: 0h | E27: 30 | F27: 10 | G27: ='Lisier de vache'!F18/100 -> 0.074
A28: Vache | B28: 3.5 | C28: Aspersion basse | D28: 3h | E28: 30 | F28: 10 | G28: ='Lisier de vache'!F19/100 -> 0.272
A29: Vache | B29: 3.5 | C29: Aspersion basse | D29: 6h | E29: 30 | F29: 10 | G29: ='Lisier de vache'!F20/100 -> 0.294
A30: Vache | B30: 3.5 | C30: Aspersion basse | D30: 12h | E30: 30 | F30: 10 | G30: ='Lisier de vache'!F21/100 -> 0.297
A31: Vache | B31: 3.5 | C31: Aspersion basse | D31: Sans | E31: 30 | F31: 10 | G31: ='Lisier de vache'!F22/100 -> 0.297
A32: Vache | B32: 3.5 | C32: Aspersion basse | D32: 0h | E32: 10 | F32: 15 | G32: ='Lisier de vache'!D26/100 -> 0.064
A33: Vache | B33: 3.5 | C33: Aspersion basse | D33: 3h | E33: 10 | F33: 15 | G33: ='Lisier de vache'!D27/100 -> 0.169
A34: Vache | B34: 3.5 | C34: Aspersion basse | D34: 6h | E34: 10 | F34: 15 | G34: ='Lisier de vache'!D28/100 -> 0.245
A35: Vache | B35: 3.5 | C35: Aspersion basse | D35: 12h | E35: 10 | F35: 15 | G35: ='Lisier de vache'!D29/100 -> 0.243
A36: Vache | B36: 3.5 | C36: Aspersion basse | D36: Sans | E36: 10 | F36: 15 | G36: ='Lisier de vache'!D30/100 -> 0.243
A37: Vache | B37: 3.5 | C37: Aspersion basse | D37: 0h | E37: 20 | F37: 15 | G37: ='Lisier de vache'!E26/100 -> 0.072
A38: Vache | B38: 3.5 | C38: Aspersion basse | D38: 3h | E38: 20 | F38: 15 | G38: ='Lisier de vache'!E27/100 -> 0.241
A39: Vache | B39: 3.5 | C39: Aspersion basse | D39: 6h | E39: 20 | F39: 15 | G39: ='Lisier de vache'!E28/100 -> 0.276
A40: Vache | B40: 3.5 | C40: Aspersion basse | D40: 12h | E40: 20 | F40: 15 | G40: ='Lisier de vache'!E29/100 -> 0.285
A41: Vache | B41: 3.5 | C41: Aspersion basse | D41: Sans | E41: 20 | F41: 15 | G41: ='Lisier de vache'!E30/100 -> 0.285
A42: Vache | B42: 3.5 | C42: Aspersion basse | D42: 0h | E42: 30 | F42: 15 | G42: ='Lisier de vache'!F26/100 -> 0.076
A43: Vache | B43: 3.5 | C43: Aspersion basse | D43: 3h | E43: 30 | F43: 15 | G43: ='Lisier de vache'!F27/100 -> 0.296
A44: Vache | B44: 3.5 | C44: Aspersion basse | D44: 6h | E44: 30 | F44: 15 | G44: ='Lisier de vache'!F28/100 -> 0.305
A45: Vache | B45: 3.5 | C45: Aspersion basse | D45: 12h | E45: 30 | F45: 15 | G45: ='Lisier de vache'!F29/100 -> 0.305
A46: Vache | B46: 3.5 | C46: Aspersion basse | D46: Sans | E46: 30 | F46: 15 | G46: ='Lisier de vache'!F30/100 -> 0.305
A47: Vache | B47: 3.5 | C47: Aspersion basse | D47: 0h | E47: 10 | F47: 25 | G47: ='Lisier de vache'!D34/100 -> 0.071
A48: Vache | B48: 3.5 | C48: Aspersion basse | D48: 3h | E48: 10 | F48: 25 | G48: ='Lisier de vache'!D35/100 -> 0.227
A49: Vache | B49: 3.5 | C49: Aspersion basse | D49: 6h | E49: 10 | F49: 25 | G49: ='Lisier de vache'!D36/100 -> 0.267
A50: Vache | B50: 3.5 | C50: Aspersion basse | D50: 12h | E50: 10 | F50: 25 | G50: ='Lisier de vache'!D37/100 -> 0.279
A51: Vache | B51: 3.5 | C51: Aspersion basse | D51: Sans | E51: 10 | F51: 25 | G51: ='Lisier de vache'!D38/100 -> 0.279
A52: Vache | B52: 3.5 | C52: Aspersion basse | D52: 0h | E52: 20 | F52: 25 | G52: ='Lisier de vache'!E34/100 -> 0.075
A53: Vache | B53: 3.5 | C53: Aspersion basse | D53: 3h | E53: 20 | F53: 25 | G53: ='Lisier de vache'!E35/100 -> 0.288
A54: Vache | B54: 3.5 | C54: Aspersion basse | D54: 6h | E54: 20 | F54: 25 | G54: ='Lisier de vache'!E36/100 -> 0.301
A55: Vache | B55: 3.5 | C55: Aspersion basse | D55: 12h | E55: 20 | F55: 25 | G55: ='Lisier de vache'!E37/100 -> 0.302
A56: Vache | B56: 3.5 | C56: Aspersion basse | D56: Sans | E56: 20 | F56: 25 | G56: ='Lisier de vache'!E38/100 -> 0.302
A57: Vache | B57: 3.5 | C57: Aspersion basse | D57: 0h | E57: 30 | F57: 25 | G57: ='Lisier de vache'!F34/100 -> 0.078
A58: Vache | B58: 3.5 | C58: Aspersion basse | D58: 3h | E58: 30 | F58: 25 | G58: ='Lisier de vache'!F35/100 -> 0.313
A59: Vache | B59: 3.5 | C59: Aspersion basse | D59: 6h | E59: 30 | F59: 25 | G59: ='Lisier de vache'!F36/100 -> 0.314
A60: Vache | B60: 3.5 | C60: Aspersion basse | D60: 12h | E60: 30 | F60: 25 | G60: ='Lisier de vache'!F37/100 -> 0.314
A61: Vache | B61: 3.5 | C61: Aspersion basse | D61: Sans | E61: 30 | F61: 25 | G61: ='Lisier de vache'!F38/100 -> 0.314
A62: Vache | B62: 3.5 | C62: Pendillards | D62: 0h | E62: 10 | F62: 5 | G62: ='Lisier de vache'!Y10/100 -> 0.027
A63: Vache | B63: 3.5 | C63: Pendillards | D63: 3h | E63: 10 | F63: 5 | G63: ='Lisier de vache'!Y11/100 -> 0.036
A64: Vache | B64: 3.5 | C64: Pendillards | D64: 6h | E64: 10 | F64: 5 | G64: ='Lisier de vache'!Y12/100 -> 0.043
A65: Vache | B65: 3.5 | C65: Pendillards | D65: 12h | E65: 10 | F65: 5 | G65: ='Lisier de vache'!Y13/100 -> 0.053
A66: Vache | B66: 3.5 | C66: Pendillards | D66: Sans | E66: 10 | F66: 5 | G66: ='Lisier de vache'!Y14/100 -> 0.053
A67: Vache | B67: 3.5 | C67: Pendillards | D67: 0h | E67: 20 | F67: 5 | G67: ='Lisier de vache'!Z10/100 -> 0.034
A68: Vache | B68: 3.5 | C68: Pendillards | D68: 3h | E68: 20 | F68: 5 | G68: ='Lisier de vache'!Z11/100 -> 0.054
A69: Vache | B69: 3.5 | C69: Pendillards | D69: 6h | E69: 20 | F69: 5 | G69: ='Lisier de vache'!Z12/100 -> 0.069
A70: Vache | B70: 3.5 | C70: Pendillards | D70: 12h | E70: 20 | F70: 5 | G70: ='Lisier de vache'!Z13/100 -> 0.088
A71: Vache | B71: 3.5 | C71: Pendillards | D71: Sans | E71: 20 | F71: 5 | G71: ='Lisier de vache'!Z14/100 -> 0.088
A72: Vache | B72: 3.5 | C72: Pendillards | D72: 0h | E72: 30 | F72: 5 | G72: ='Lisier de vache'!AA10/100 -> 0.045
A73: Vache | B73: 3.5 | C73: Pendillards | D73: 3h | E73: 30 | F73: 5 | G73: ='Lisier de vache'!AA11/100 -> 0.087
A74: Vache | B74: 3.5 | C74: Pendillards | D74: 6h | E74: 30 | F74: 5 | G74: ='Lisier de vache'!AA12/100 -> 0.115
A75: Vache | B75: 3.5 | C75: Pendillards | D75: 12h | E75: 30 | F75: 5 | G75: ='Lisier de vache'!AA13/100 -> 0.146
A76: Vache | B76: 3.5 | C76: Pendillards | D76: Sans | E76: 30 | F76: 5 | G76: ='Lisier de vache'!AA14/100 -> 0.146
A77: Vache | B77: 3.5 | C77: Pendillards | D77: 0h | E77: 10 | F77: 10 | G77: ='Lisier de vache'!Y18/100 -> 0.031
A78: Vache | B78: 3.5 | C78: Pendillards | D78: 3h | E78: 10 | F78: 10 | G78: ='Lisier de vache'!Y19/100 -> 0.047
A79: Vache | B79: 3.5 | C79: Pendillards | D79: 6h | E79: 10 | F79: 10 | G79: ='Lisier de vache'!Y20/100 -> 0.059
A80: Vache | B80: 3.5 | C80: Pendillards | D80: 12h | E80: 10 | F80: 10 | G80: ='Lisier de vache'!Y21/100 -> 0.075
A81: Vache | B81: 3.5 | C81: Pendillards | D81: Sans | E81: 10 | F81: 10 | G81: ='Lisier de vache'!Y22/100 -> 0.075
A82: Vache | B82: 3.5 | C82: Pendillards | D82: 0h | E82: 20 | F82: 10 | G82: ='Lisier de vache'!Z18/100 -> 0.041
A83: Vache | B83: 3.5 | C83: Pendillards | D83: 3h | E83: 20 | F83: 10 | G83: ='Lisier de vache'!Z19/100 -> 0.075
A84: Vache | B84: 3.5 | C84: Pendillards | D84: 6h | E84: 20 | F84: 10 | G84: ='Lisier de vache'!Z20/100 -> 0.098
A85: Vache | B85: 3.5 | C85: Pendillards | D85: 12h | E85: 20 | F85: 10 | G85: ='Lisier de vache'!Z21/100 -> 0.125
A86: Vache | B86: 3.5 | C86: Pendillards | D86: Sans | E86: 20 | F86: 10 | G86: ='Lisier de vache'!Z22/100 -> 0.125
A87: Vache | B87: 3.5 | C87: Pendillards | D87: 0h | E87: 30 | F87: 10 | G87: ='Lisier de vache'!AA18/100 -> 0.054
A88: Vache | B88: 3.5 | C88: Pendillards | D88: 3h | E88: 30 | F88: 10 | G88: ='Lisier de vache'!AA19/100 -> 0.122
A89: Vache | B89: 3.5 | C89: Pendillards | D89: 6h | E89: 30 | F89: 10 | G89: ='Lisier de vache'!AA20/100 -> 0.16
A90: Vache | B90: 3.5 | C90: Pendillards | D90: 12h | E90: 30 | F90: 10 | G90: ='Lisier de vache'!AA21/100 -> 0.194
A91: Vache | B91: 3.5 | C91: Pendillards | D91: Sans | E91: 30 | F91: 10 | G91: ='Lisier de vache'!AA22/100 -> 0.194
A92: Vache | B92: 3.5 | C92: Pendillards | D92: 0h | E92: 10 | F92: 15 | G92: ='Lisier de vache'!Y26/100 -> 0.036
A93: Vache | B93: 3.5 | C93: Pendillards | D93: 3h | E93: 10 | F93: 15 | G93: ='Lisier de vache'!Y27/100 -> 0.059
A94: Vache | B94: 3.5 | C94: Pendillards | D94: 6h | E94: 10 | F94: 15 | G94: ='Lisier de vache'!Y28/100 -> 0.077
A95: Vache | B95: 3.5 | C95: Pendillards | D95: 12h | E95: 10 | F95: 15 | G95: ='Lisier de vache'!Y29/100 -> 0.098
A96: Vache | B96: 3.5 | C96: Pendillards | D96: Sans | E96: 10 | F96: 15 | G96: ='Lisier de vache'!Y30/100 -> 0.098
A97: Vache | B97: 3.5 | C97: Pendillards | D97: 0h | E97: 20 | F97: 15 | G97: ='Lisier de vache'!Z26/100 -> 0.048
A98: Vache | B98: 3.5 | C98: Pendillards | D98: 3h | E98: 20 | F98: 15 | G98: ='Lisier de vache'!Z27/100 -> 0.096
A99: Vache | B99: 3.5 | C99: Pendillards | D99: 6h | E99: 20 | F99: 15 | G99: ='Lisier de vache'!Z28/100 -> 0.128
A100: Vache | B100: 3.5 | C100: Pendillards | D100: 12h | E100: 20 | F100: 15 | G100: ='Lisier de vache'!Z29/100 -> 0.16
A101: Vache | B101: 3.5 | C101: Pendillards | D101: Sans | E101: 20 | F101: 15 | G101: ='Lisier de vache'!Z30/100 -> 0.16
A102: Vache | B102: 3.5 | C102: Pendillards | D102: 0h | E102: 30 | F102: 15 | G102: ='Lisier de vache'!AA26/100 -> 0.061
A103: Vache | B103: 3.5 | C103: Pendillards | D103: 3h | E103: 30 | F103: 15 | G103: ='Lisier de vache'!AA27/100 -> 0.154
A104: Vache | B104: 3.5 | C104: Pendillards | D104: 6h | E104: 30 | F104: 15 | G104: ='Lisier de vache'!AA28/100 -> 0.199
A105: Vache | B105: 3.5 | C105: Pendillards | D105: 12h | E105: 30 | F105: 15 | G105: ='Lisier de vache'!AA29/100 -> 0.23
A106: Vache | B106: 3.5 | C106: Pendillards | D106: Sans | E106: 30 | F106: 15 | G106: ='Lisier de vache'!AA30/100 -> 0.23
A107: Vache | B107: 3.5 | C107: Pendillards | D107: 0h | E107: 10 | F107: 25 | G107: ='Lisier de vache'!Y34/100 -> 0.045
A108: Vache | B108: 3.5 | C108: Pendillards | D108: 3h | E108: 10 | F108: 25 | G108: ='Lisier de vache'!Y35/100 -> 0.087
A109: Vache | B109: 3.5 | C109: Pendillards | D109: 6h | E109: 10 | F109: 25 | G109: ='Lisier de vache'!Y36/100 -> 0.116
A110: Vache | B110: 3.5 | C110: Pendillards | D110: 12h | E110: 10 | F110: 25 | G110: ='Lisier de vache'!Y37/100 -> 0.146
A111: Vache | B111: 3.5 | C111: Pendillards | D111: Sans | E111: 10 | F111: 25 | G111: ='Lisier de vache'!Y38/100 -> 0.146
A112: Vache | B112: 3.5 | C112: Pendillards | D112: 0h | E112: 20 | F112: 25 | G112: ='Lisier de vache'!Z34/100 -> 0.059
A113: Vache | B113: 3.5 | C113: Pendillards | D113: 3h | E113: 20 | F113: 25 | G113: ='Lisier de vache'!Z35/100 -> 0.141
A114: Vache | B114: 3.5 | C114: Pendillards | D114: 6h | E114: 20 | F114: 25 | G114: ='Lisier de vache'!Z36/100 -> 0.184
A115: Vache | B115: 3.5 | C115: Pendillards | D115: 12h | E115: 20 | F115: 25 | G115: ='Lisier de vache'!Z37/100 -> 0.217
A116: Vache | B116: 3.5 | C116: Pendillards | D116: Sans | E116: 20 | F116: 25 | G116: ='Lisier de vache'!Z38/100 -> 0.217
A117: Vache | B117: 3.5 | C117: Pendillards | D117: 0h | E117: 30 | F117: 25 | G117: ='Lisier de vache'!AA34/100 -> 0.069
A118: Vache | B118: 3.5 | C118: Pendillards | D118: 3h | E118: 30 | F118: 25 | G118: ='Lisier de vache'!AA35/100 -> 0.212
A119: Vache | B119: 3.5 | C119: Pendillards | D119: 6h | E119: 30 | F119: 25 | G119: ='Lisier de vache'!AA36/100 -> 0.254
A120: Vache | B120: 3.5 | C120: Pendillards | D120: 12h | E120: 30 | F120: 25 | G120: ='Lisier de vache'!AA37/100 -> 0.271
A121: Vache | B121: 3.5 | C121: Pendillards | D121: Sans | E121: 30 | F121: 25 | G121: ='Lisier de vache'!AA38/100 -> 0.271
A122: Vache | B122: 7 | C122: Aspersion basse | D122: 0h | E122: 10 | F122: 5 | G122: ='Lisier de vache'!D50/100 -> 0.073
A123: Vache | B123: 7 | C123: Aspersion basse | D123: 3h | E123: 10 | F123: 5 | G123: ='Lisier de vache'!D51/100 -> 0.163
A124: Vache | B124: 7 | C124: Aspersion basse | D124: 6h | E124: 10 | F124: 5 | G124: ='Lisier de vache'!D52/100 -> 0.224
A125: Vache | B125: 7 | C125: Aspersion basse | D125: 12h | E125: 10 | F125: 5 | G125: ='Lisier de vache'!D53/100 -> 0.292
A126: Vache | B126: 7 | C126: Aspersion basse | D126: Sans | E126: 10 | F126: 5 | G126: ='Lisier de vache'!D54/100 -> 0.292
A127: Vache | B127: 7 | C127: Aspersion basse | D127: 0h | E127: 20 | F127: 5 | G127: ='Lisier de vache'!E50/100 -> 0.105
A128: Vache | B128: 7 | C128: Aspersion basse | D128: 3h | E128: 20 | F128: 5 | G128: ='Lisier de vache'!E51/100 -> 0.282
A129: Vache | B129: 7 | C129: Aspersion basse | D129: 6h | E129: 20 | F129: 5 | G129: ='Lisier de vache'!E52/100 -> 0.377
A130: Vache | B130: 7 | C130: Aspersion basse | D130: 12h | E130: 20 | F130: 5 | G130: ='Lisier de vache'!E53/100 -> 0.455
A131: Vache | B131: 7 | C131: Aspersion basse | D131: Sans | E131: 20 | F131: 5 | G131: ='Lisier de vache'!E54/100 -> 0.455
A132: Vache | B132: 7 | C132: Aspersion basse | D132: 0h | E132: 30 | F132: 5 | G132: ='Lisier de vache'!F50/100 -> 0.131
A133: Vache | B133: 7 | C133: Aspersion basse | D133: 3h | E133: 30 | F133: 5 | G133: ='Lisier de vache'!F51/100 -> 0.442
A134: Vache | B134: 7 | C134: Aspersion basse | D134: 6h | E134: 30 | F134: 5 | G134: ='Lisier de vache'!F52/100 -> 0.545
A135: Vache | B135: 7 | C135: Aspersion basse | D135: 12h | E135: 30 | F135: 5 | G135: ='Lisier de vache'!F53/100 -> 0.59
A136: Vache | B136: 7 | C136: Aspersion basse | D136: Sans | E136: 30 | F136: 5 | G136: ='Lisier de vache'!F54/100 -> 0.59
A137: Vache | B137: 7 | C137: Aspersion basse | D137: 0h | E137: 10 | F137: 10 | G137: ='Lisier de vache'!D58/100 -> 0.095
A138: Vache | B138: 7 | C138: Aspersion basse | D138: 3h | E138: 10 | F138: 10 | G138: ='Lisier de vache'!D59/100 -> 0.239
A139: Vache | B139: 7 | C139: Aspersion basse | D139: 6h | E139: 10 | F139: 10 | G139: ='Lisier de vache'!D60/100 -> 0.323
A140: Vache | B140: 7 | C140: Aspersion basse | D140: 12h | E140: 10 | F140: 10 | G140: ='Lisier de vache'!D61/100 -> 0.403
A141: Vache | B141: 7 | C141: Aspersion basse | D141: Sans | E141: 10 | F141: 10 | G141: ='Lisier de vache'!D62/100 -> 0.403
A142: Vache | B142: 7 | C142: Aspersion basse | D142: 0h | E142: 20 | F142: 10 | G142: ='Lisier de vache'!E58/100 -> 0.125
A143: Vache | B143: 7 | C143: Aspersion basse | D143: 3h | E143: 20 | F143: 10 | G143: ='Lisier de vache'!E59/100 -> 0.388
A144: Vache | B144: 7 | C144: Aspersion basse | D144: 6h | E144: 20 | F144: 10 | G144: ='Lisier de vache'!E60/100 -> 0.494
A145: Vache | B145: 7 | C145: Aspersion basse | D145: 12h | E145: 20 | F145: 10 | G145: ='Lisier de vache'!E61/100 -> 0.554
A146: Vache | B146: 7 | C146: Aspersion basse | D146: Sans | E146: 20 | F146: 10 | G146: ='Lisier de vache'!E62/100 -> 0.554
A147: Vache | B147: 7 | C147: Aspersion basse | D147: 0h | E147: 30 | F147: 10 | G147: ='Lisier de vache'!F58/100 -> 0.142
A148: Vache | B148: 7 | C148: Aspersion basse | D148: 3h | E148: 30 | F148: 10 | G148: ='Lisier de vache'!F59/100 -> 0.554
A149: Vache | B149: 7 | C149: Aspersion basse | D149: 6h | E149: 30 | F149: 10 | G149: ='Lisier de vache'!F60/100 -> 0.628
A150: Vache | B150: 7 | C150: Aspersion basse | D150: 12h | E150: 30 | F150: 10 | G150: ='Lisier de vache'!F61/100 -> 0.643
A151: Vache | B151: 7 | C151: Aspersion basse | D151: Sans | E151: 30 | F151: 10 | G151: ='Lisier de vache'!F62/100 -> 0.643
A152: Vache | B152: 7 | C152: Aspersion basse | D152: 0h | E152: 10 | F152: 15 | G152: ='Lisier de vache'!D66/100 -> 0.111
A153: Vache | B153: 7 | C153: Aspersion basse | D153: 3h | E153: 10 | F153: 15 | G153: ='Lisier de vache'!D67/100 -> 0.312
A154: Vache | B154: 7 | C154: Aspersion basse | D154: 6h | E154: 10 | F154: 15 | G154: ='Lisier de vache'!D68/100 -> 0.412
A155: Vache | B155: 7 | C155: Aspersion basse | D155: 12h | E155: 10 | F155: 15 | G155: ='Lisier de vache'!D69/100 -> 0.487
A156: Vache | B156: 7 | C156: Aspersion basse | D156: Sans | E156: 10 | F156: 15 | G156: ='Lisier de vache'!D70/100 -> 0.487
A157: Vache | B157: 7 | C157: Aspersion basse | D157: 0h | E157: 20 | F157: 15 | G157: ='Lisier de vache'!E66/100 -> 0.135
A158: Vache | B158: 7 | C158: Aspersion basse | D158: 3h | E158: 20 | F158: 15 | G158: ='Lisier de vache'!E67/100 -> 0.476
A159: Vache | B159: 7 | C159: Aspersion basse | D159: 6h | E159: 20 | F159: 15 | G159: ='Lisier de vache'!E68/100 -> 0.573
A160: Vache | B160: 7 | C160: Aspersion basse | D160: 12h | E160: 20 | F160: 15 | G160: ='Lisier de vache'!E69/100 -> 0.609
A161: Vache | B161: 7 | C161: Aspersion basse | D161: Sans | E161: 20 | F161: 15 | G161: ='Lisier de vache'!E70/100 -> 0.609
A162: Vache | B162: 7 | C162: Aspersion basse | D162: 0h | E162: 30 | F162: 15 | G162: ='Lisier de vache'!F66/100 -> 0.147
A163: Vache | B163: 7 | C163: Aspersion basse | D163: 3h | E163: 30 | F163: 15 | G163: ='Lisier de vache'!F67/100 -> 0.625
A164: Vache | B164: 7 | C164: Aspersion basse | D164: 6h | E164: 30 | F164: 15 | G164: ='Lisier de vache'!F68/100 -> 0.665
A165: Vache | B165: 7 | C165: Aspersion basse | D165: 12h | E165: 30 | F165: 15 | G165: ='Lisier de vache'!F69/100 -> 0.669
A166: Vache | B166: 7 | C166: Aspersion basse | D166: Sans | E166: 30 | F166: 15 | G166: ='Lisier de vache'!F70/100 -> 0.669
A167: Vache | B167: 7 | C167: Aspersion basse | D167: 0h | E167: 10 | F167: 25 | G167: ='Lisier de vache'!D74/100 -> 0.132
A168: Vache | B168: 7 | C168: Aspersion basse | D168: 3h | E168: 10 | F168: 25 | G168: ='Lisier de vache'!D75/100 -> 0.442
A169: Vache | B169: 7 | C169: Aspersion basse | D169: 6h | E169: 10 | F169: 25 | G169: ='Lisier de vache'!D76/100 -> 0.545
A170: Vache | B170: 7 | C170: Aspersion basse | D170: 12h | E170: 10 | F170: 25 | G170: ='Lisier de vache'!D77/100 -> 0.59
A171: Vache | B171: 7 | C171: Aspersion basse | D171: Sans | E171: 10 | F171: 25 | G171: ='Lisier de vache'!D78/100 -> 0.59
A172: Vache | B172: 7 | C172: Aspersion basse | D172: 0h | E172: 20 | F172: 25 | G172: ='Lisier de vache'!E74/100 -> 0.145
A173: Vache | B173: 7 | C173: Aspersion basse | D173: 3h | E173: 20 | F173: 25 | G173: ='Lisier de vache'!E75/100 -> 0.6
A174: Vache | B174: 7 | C174: Aspersion basse | D174: 6h | E174: 20 | F174: 25 | G174: ='Lisier de vache'!E76/100 -> 0.653
A175: Vache | B175: 7 | C175: Aspersion basse | D175: 12h | E175: 20 | F175: 25 | G175: ='Lisier de vache'!E77/100 -> 0.66
A176: Vache | B176: 7 | C176: Aspersion basse | D176: Sans | E176: 20 | F176: 25 | G176: ='Lisier de vache'!E78/100 -> 0.66
A177: Vache | B177: 7 | C177: Aspersion basse | D177: 0h | E177: 30 | F177: 25 | G177: ='Lisier de vache'!F74/100 -> 0.152
A178: Vache | B178: 7 | C178: Aspersion basse | D178: 3h | E178: 30 | F178: 25 | G178: ='Lisier de vache'!F75/100 -> 0.688
A179: Vache | B179: 7 | C179: Aspersion basse | D179: 6h | E179: 30 | F179: 25 | G179: ='Lisier de vache'!F76/100 -> 0.695
A180: Vache | B180: 7 | C180: Aspersion basse | D180: 12h | E180: 30 | F180: 25 | G180: ='Lisier de vache'!F77/100 -> 0.695
A181: Vache | B181: 7 | C181: Aspersion basse | D181: Sans | E181: 30 | F181: 25 | G181: ='Lisier de vache'!F78/100 -> 0.695
A182: Vache | B182: 7 | C182: Pendillards | D182: 0h | E182: 10 | F182: 5 | G182: ='Lisier de vache'!Y50/100 -> 0.031
A183: Vache | B183: 7 | C183: Pendillards | D183: 3h | E183: 10 | F183: 5 | G183: ='Lisier de vache'!Y51/100 -> 0.047
A184: Vache | B184: 7 | C184: Pendillards | D184: 6h | E184: 10 | F184: 5 | G184: ='Lisier de vache'!Y52/100 -> 0.06
A185: Vache | B185: 7 | C185: Pendillards | D185: 12h | E185: 10 | F185: 5 | G185: ='Lisier de vache'!Y53/100 -> 0.077
A186: Vache | B186: 7 | C186: Pendillards | D186: Sans | E186: 10 | F186: 5 | G186: ='Lisier de vache'!Y54/100 -> 0.077
A187: Vache | B187: 7 | C187: Pendillards | D187: 0h | E187: 20 | F187: 5 | G187: ='Lisier de vache'!Z50/100 -> 0.044
A188: Vache | B188: 7 | C188: Pendillards | D188: 3h | E188: 20 | F188: 5 | G188: ='Lisier de vache'!Z51/100 -> 0.08
A189: Vache | B189: 7 | C189: Pendillards | D189: 6h | E189: 20 | F189: 5 | G189: ='Lisier de vache'!Z52/100 -> 0.108
A190: Vache | B190: 7 | C190: Pendillards | D190: 12h | E190: 20 | F190: 5 | G190: ='Lisier de vache'!Z53/100 -> 0.144
A191: Vache | B191: 7 | C191: Pendillards | D191: Sans | E191: 20 | F191: 5 | G191: ='Lisier de vache'!Z54/100 -> 0.144
A192: Vache | B192: 7 | C192: Pendillards | D192: 0h | E192: 30 | F192: 5 | G192: ='Lisier de vache'!AA50/100 -> 0.067
A193: Vache | B193: 7 | C193: Pendillards | D193: 3h | E193: 30 | F193: 5 | G193: ='Lisier de vache'!AA51/100 -> 0.144
A194: Vache | B194: 7 | C194: Pendillards | D194: 6h | E194: 30 | F194: 5 | G194: ='Lisier de vache'!AA52/100 -> 0.197
A195: Vache | B195: 7 | C195: Pendillards | D195: 12h | E195: 30 | F195: 5 | G195: ='Lisier de vache'!AA53/100 -> 0.26
A196: Vache | B196: 7 | C196: Pendillards | D196: Sans | E196: 30 | F196: 5 | G196: ='Lisier de vache'!AA54/100 -> 0.26
A197: Vache | B197: 7 | C197: Pendillards | D197: 0h | E197: 10 | F197: 10 | G197: ='Lisier de vache'!Y58/100 -> 0.039
A198: Vache | B198: 7 | C198: Pendillards | D198: 3h | E198: 10 | F198: 10 | G198: ='Lisier de vache'!Y59/100 -> 0.067
A199: Vache | B199: 7 | C199: Pendillards | D199: 6h | E199: 10 | F199: 10 | G199: ='Lisier de vache'!Y60/100 -> 0.089
A200: Vache | B200: 7 | C200: Pendillards | D200: 12h | E200: 10 | F200: 10 | G200: ='Lisier de vache'!Y61/100 -> 0.118
... 281 more rows

Sheet Lisier de vache_72h (hidden)
B1: LISIER DE VACHE | W1: LISIER DE VACHE
B2: M.S (%) | C2: 3.5 | J2: Prix 2025 | L2: Formule | M2: $/t | N2: $/kg | W2: M.S (%) | X2: 3.5 | AE2: Prix 2025 | AG2: Formule | AH2: $/t | AI2: $/kg
B3: N total (kg/t) | C3: 2.6 | J3: Nitrate d'ammonium calcique (CAN) | L3: 27-0-0 | M3: 1012 | N3: =M3/1000 -> 1.012 | W3: N total (kg/t) | X3: 2.6 | AE3: Nitrate d'ammonium calcique (CAN) | AG3: 27-0-0 | AH3: 1012 | AI3: =AH3/1000 -> 1.012
B4: Azote ammoniacal total ou N-NH4+ (kg/t) | C4: 1.4 | J4: Urée | L4: 46-0-0 | M4: 1102 | N4: =M4/1000 -> 1.102 | W4: Azote ammoniacal total ou N-NH4+ (kg/t) | X4: 1.4 | AE4: Urée | AG4: 46-0-0 | AH4: 1102 | AI4: =AH4/1000 -> 1.102
B6: Aspersion basse | D6: Pourcentage d’azote ammoniacal (% N-NH4+) appliqué qui est émis sous forme d’ammoniac (N-NH3) lors des 72 heures suivant l'épandage | G6: Émissions cumulatives de N-NH3 (kg/t de lisier épandu) | J6: =$J$3 -> Nitrate d'ammonium calcique (CAN) | P6: =$J$4 -> Urée | W6: Pendillards | Y6: Pourcentage d’azote ammoniacal (% N-NH4+) appliqué qui est émis sous forme d’ammoniac (N-NH3) lors des 72 heures suivant l'épandage | AB6: Émissions cumulatives de N-NH3 (kg/t de lisier épandu) | AE6: =$J$3 -> Nitrate d'ammonium calcique (CAN) | AK6: =$J$4 -> Urée
J7: Masse de fertilisant requise pour compenser l'azote perdu (kg/t de lisier épandu) | M7: $/t de lisier épandu | P7: Masse de fertilisant requise pour compenser l'azote perdu (kg/t de lisier épandu) | S7: $/t de lisier épandu | AE7: Masse de fertilisant requise pour compenser l'azote perdu (kg/t de lisier épandu) | AH7: $/t de lisier épandu | AK7: Masse de fertilisant requise pour compenser l'azote perdu (kg/t de lisier épandu) | AN7: $/t de lisier épandu
B8: Vitesse du vent (km/h) | C8: 5 | W8: Vitesse du vent (km/h) | X8: 5
B9: Délai avant incorporation | C9: Température | D9: 10 | E9: 20 | F9: 30 | G9: 10 | H9: 20 | I9: 30 | J9: 10 | K9: 20 | L9: 30 | M9: 10 | N9: 20 | O9: 30 | P9: 10 | Q9: 20 | R9: 30 | S9: 10 | T9: 20 | U9: 30 | W9: Délai avant incorporation | X9: Température | Y9: 10 | Z9: 20 | AA9: 30 | AB9: 10 | AC9: 20 | AD9: 30 | AE9: 10 | AF9: 20 | AG9: 30 | AH9: 10 | AI9: 20 | AJ9: 30 | AK9: 10 | AL9: 20 | AM9: 30 | AN9: 10 | AO9: 20 | AP9: 30
B10: 0h | D10: 10.8 | E10: 11.8 | F10: 12.5 | G10: =$C$4*D10/100 -> 0.1512 | H10: =$C$4*E10/100 -> 0.1652 | I10: 0.175 | J10: =G10/0.27 -> 0.56 | K10: 0.6118518519 | L10: 0.6481481481 | M10: =J10*$N$3 -> 0.56672 | N10: =K10*$N$3 -> 0.6191940741 | O10: 0.6559259259 | P10: =G10/0.46 -> 0.3286956522 | Q10: 0.3591304348 | R10: 0.3804347826 | S10: =P10*$N$4 -> 0.3622226087 | T10: =Q10*$N$4 -> 0.3957617391 | U10: 0.4192391304 | W10: 0h | Y10: 8.7 | Z10: 9.5 | AA10: 10.6 | AB10: =$C$4*Y10/100 -> 0.1218 | AC10: =$C$4*Z10/100 -> 0.133 | AD10: 0.1484 | AE10: =AB10/0.27 -> 0.4511111111 | AF10: 0.4925925926 | AG10: 0.5496296296 | AH10: =AE10*$N$3 -> 0.4565244444 | AI10: =AF10*$N$3 -> 0.4985037037 | AJ10: 0.5562251852 | AK10: =AB10/0.46 -> 0.2647826087 | AL10: 0.2891304348 | AM10: 0.3226086957 | AN10: =AK10*$N$4 -> 0.2917904348 | AO10: =AL10*$N$4 -> 0.3186217391 | AP10: 0.3555147826
B11: 3h | D11: 15.5 | E11: 20.7 | F11: 27.2 | G11: 0.217 | H11: 0.2898 | I11: 0.3808 | J11: 0.8037037037 | K11: 1.073333333 | L11: 1.41037037 | M11: =J11*$N$3 -> 0.8133481481 | N11: 1.086213333 | O11: 1.427294815 | P11: 0.4717391304 | Q11: 0.63 | R11: 0.827826087 | S11: =P11*$N$4 -> 0.5198565217 | T11: 0.69426 | U11: 0.9122643478 | W11: 3h | Y11: 9.6 | Z11: 11.5 | AA11: 14.6 | AB11: =$C$4*Y11/100 -> 0.1344 | AC11: 0.161 | AD11: 0.2044 | AE11: 0.4977777778 | AF11: 0.5962962963 | AG11: 0.757037037 | AH11: =AE11*$N$3 -> 0.5037511111 | AI11: 0.6034518519 | AJ11: 0.7661214815 | AK11: 0.292173913 | AL11: 0.35 | AM11: 0.4443478261 | AN11: =AK11*$N$4 -> 0.3219756522 | AO11: 0.3857 | AP11: 0.4896713043
B12: 6h | D12: 18.5 | E12: 24.9 | F12: 30.9 | G12: 0.259 | H12: 0.3486 | I12: 0.4326 | J12: 0.9592592593 | K12: 1.291111111 | L12: 1.602222222 | M12: 0.9707703704 | N12: 1.306604444 | O12: 1.621448889 | P12: 0.5630434783 | Q12: 0.757826087 | R12: 0.9404347826 | S12: 0.620473913 | T12: 0.8351243478 | U12: 1.03635913 | W12: 6h | Y12: 10.3 | Z12: 12.9 | AA12: 17.3 | AB12: 0.1442 | AC12: 0.1806 | AD12: 0.2422 | AE12: 0.5340740741 | AF12: 0.6688888889 | AG12: 0.897037037 | AH12: 0.540482963 | AI12: 0.6769155556 | AJ12: 0.9078014815 | AK12: 0.3134782609 | AL12: 0.3926086957 | AM12: 0.5265217391 | AN12: 0.3454530435 | AO12: 0.4326547826 | AP12: 0.5802269565
B13: 24h | D13: 23.3 | E13: 28.6 | F13: 32.2 | G13: 0.3262 | H13: 0.4004 | I13: 0.4508 | J13: 1.208148148 | K13: 1.482962963 | L13: 1.66962963 | M13: 1.222645926 | N13: 1.500758519 | O13: 1.689665185 | P13: 0.7091304348 | Q13: 0.8704347826 | R13: 0.98 | S13: 0.7814617391 | T13: 0.9592191304 | U13: 1.07996 | W13: 24h | Y13: 12.3 | Z13: 16.4 | AA13: 22 | AB13: 0.1722 | AC13: 0.2296 | AD13: 0.308 | AE13: 0.6377777778 | AF13: 0.8503703704 | AG13: 1.140740741 | AH13: 0.6454311111 | AI13: 0.8605748148 | AJ13: 1.15442963 | AK13: 0.3743478261 | AL13: 0.4991304348 | AM13: 0.6695652174 | AN13: 0.4125313043 | AO13: 0.5500417391 | AP13: 0.7378608696
B14: Sans incorporation | D14: 23.6 | E14: 28.6 | F14: 32.2 | G14: 0.3304 | H14: 0.4004 | I14: 0.4508 | J14: 1.223703704 | K14: 1.482962963 | L14: 1.66962963 | M14: =J14*$N$3 -> 1.238388148 | N14: 1.500758519 | O14: 1.689665185 | P14: 0.7182608696 | Q14: 0.8704347826 | R14: 0.98 | S14: 0.7915234783 | T14: 0.9592191304 | U14: 1.07996 | W14: Sans incorporation | Y14: 12.8 | Z14: 17.1 | AA14: 22.4 | AB14: =$C$4*Y14/100 -> 0.1792 | AC14: 0.2394 | AD14: 0.3136 | AE14: 0.6637037037 | AF14: 0.8866666667 | AG14: 1.161481481 | AH14: 0.6716681481 | AI14: 0.8973066667 | AJ14: 1.175419259 | AK14: 0.3895652174 | AL14: 0.5204347826 | AM14: 0.6817391304 | AN14: 0.4293008696 | AO14: 0.5735191304 | AP14: 0.7512765217
O15: 0 | R15: 0 | U15: 0 | AB15: =(AB14-AB10)/AB14 -> 0.3203125 | AC15: 0.4444444444 | AD15: =(AD14-AD10)/AD14 -> 0.5267857143
B16: Vitesse du vent (km/h) | C16: 10 | W16: Vitesse du vent (km/h) | X16: 10
B17: Délai avant incorporation | C17: Température | D17: 10 | E17: 20 | F17: 30 | G17: 10 | H17: 20 | I17: 30 | J17: 10 | K17: 20 | L17: 30 | M17: 10 | N17: 20 | O17: 30 | P17: 10 | Q17: 20 | R17: 30 | S17: 10 | T17: 20 | U17: 30 | W17: Délai avant incorporation | X17: Température | Y17: 10 | Z17: 20 | AA17: 30 | AB17: 10 | AC17: 20 | AD17: 30 | AE17: 10 | AF17: 20 | AG17: 30 | AH17: 10 | AI17: 20 | AJ17: 30 | AK17: 10 | AL17: 20 | AM17: 30 | AN17: 10 | AO17: 20 | AP17: 30
B18: 0h | D18: 11.5 | E18: 12.3 | F18: 12.8 | G18: =$C$4*D18/100 -> 0.161 | H18: 0.1722 | I18: 0.1792 | J18: =G18/0.27 -> 0.5962962963 | K18: 0.6377777778 | L18: 0.6637037037 | M18: =J18*$N$3 -> 0.6034518519 | N18: =K18*$N$3 -> 0.6454311111 | O18: 0.6716681481 | P18: =G18/0.46 -> 0.35 | Q18: 0.3743478261 | R18: 0.3895652174 | S18: =P18*$N$4 -> 0.3857 | T18: =Q18*$N$4 -> 0.4125313043 | U18: 0.4293008696 | W18: 0h | Y18: 9.2 | Z18: 10.2 | AA18: 11.3 | AB18: =$C$4*Y18/100 -> 0.1288 | AC18: =$C$4*Z18/100 -> 0.1428 | AD18: 0.1582 | AE18: =AB18/0.27 -> 0.477037037 | AF18: 0.5288888889 | AG18: 0.5859259259 | AH18: =AE18*$N$3 -> 0.4827614815 | AI18: =AF18*$N$3 -> 0.5352355556 | AJ18: 0.592957037 | AK18: =AB18/0.46 -> 0.28 | AL18: 0.3104347826 | AM18: 0.3439130435 | AN18: =AK18*$N$4 -> 0.30856 | AO18: =AL18*$N$4 -> 0.3420991304 | AP18: 0.3789921739
B19: 3h | D19: 18.8 | E19: 25.1 | F19: 31.4 | G19: 0.2632 | H19: 0.3514 | I19: 0.4396 | J19: 0.9748148148 | K19: 1.301481481 | L19: 1.628148148 | M19: =J19*$N$3 -> 0.9865125926 | N19: 1.317099259 | O19: 1.647685926 | P19: 0.572173913 | Q19: 0.7639130435 | R19: 0.9556521739 | S19: =P19*$N$4 -> 0.6305356522 | T19: 0.8418321739 | U19: 1.053128696 | W19: 3h | Y19: 10.8 | Z19: 13.4 | AA19: 17.7 | AB19: =$C$4*Y19/100 -> 0.1512 | AC19: 0.1876 | AD19: 0.2478 | AE19: 0.56 | AF19: 0.6948148148 | AG19: 0.9177777778 | AH19: =AE19*$N$3 -> 0.56672 | AI19: 0.7031525926 | AJ19: 0.9287911111 | AK19: 0.3286956522 | AL19: 0.407826087 | AM19: 0.5386956522 | AN19: =AK19*$N$4 -> 0.3622226087 | AO19: 0.4494243478 | AP19: 0.5936426087
B20: 6h | D20: 22.7 | E20: 29.2 | F20: 33.5 | G20: 0.3178 | H20: 0.4088 | I20: 0.469 | J20: 1.177037037 | K20: 1.514074074 | L20: 1.737037037 | M20: 1.191161481 | N20: 1.532242963 | O20: 1.757881481 | P20: 0.6908695652 | Q20: 0.8886956522 | R20: 1.019565217 | S20: 0.7613382609 | T20: 0.9793426087 | U20: 1.12356087 | W20: 6h | Y20: 11.9 | Z20: 15.7 | AA20: 21.3 | AB20: 0.1666 | AC20: 0.2198 | AD20: 0.2982 | AE20: 0.617037037 | AF20: 0.8140740741 | AG20: 1.104444444 | AH20: 0.6244414815 | AI20: 0.823842963 | AJ20: 1.117697778 | AK20: 0.362173913 | AL20: 0.477826087 | AM20: 0.6482608696 | AN20: 0.3991156522 | AO20: 0.5265643478 | AP20: 0.7143834783
B21: 24h | D21: 27.1 | E21: 31.2 | F21: 33.7 | G21: 0.3794 | H21: 0.4368 | I21: 0.4718 | J21: 1.405185185 | K21: 1.617777778 | L21: 1.747407407 | M21: 1.422047407 | N21: 1.637191111 | O21: 1.768376296 | P21: 0.8247826087 | Q21: 0.9495652174 | R21: 1.025652174 | S21: 0.9089104348 | T21: 1.04642087 | U21: 1.130268696 | W21: 24h | Y21: 14.9 | Z21: 20.1 | AA21: 25.9 | AB21: 0.2086 | AC21: 0.2814 | AD21: 0.3626 | AE21: 0.7725925926 | AF21: 1.042222222 | AG21: 1.342962963 | AH21: 0.7818637037 | AI21: 1.054728889 | AJ21: 1.359078519 | AK21: 0.4534782609 | AL21: 0.6117391304 | AM21: 0.7882608696 | AN21: 0.4997330435 | AO21: 0.6741365217 | AP21: 0.8686634783
B22: Sans incorporation | D22: 27.2 | E22: 31.2 | F22: 33.7 | G22: 0.3808 | H22: 0.4368 | I22: 0.4718 | J22: 1.41037037 | K22: 1.617777778 | L22: 1.747407407 | M22: =J22*$N$3 -> 1.427294815 | N22: 1.637191111 | O22: 1.768376296 | P22: 0.827826087 | Q22: 0.9495652174 | R22: 1.025652174 | S22: 0.9122643478 | T22: 1.04642087 | U22: 1.130268696 | W22: Sans incorporation | Y22: 15.5 | Z22: 20.6 | AA22: 26.1 | AB22: =$C$4*Y22/100 -> 0.217 | AC22: 0.2884 | AD22: 0.3654 | AE22: 0.8037037037 | AF22: 1.068148148 | AG22: 1.353333333 | AH22: 0.8133481481 | AI22: 1.080965926 | AJ22: 1.369573333 | AK22: 0.4717391304 | AL22: 0.6269565217 | AM22: 0.7943478261 | AN22: 0.5198565217 | AO22: 0.690906087 | AP22: 0.8753713043
AB23: =(AB22-AB18)/AB22 -> 0.4064516129 | AC23: 0.5048543689 | AD23: =(AD22-AD18)/AD22 -> 0.5670498084
B24: Vitesse du vent (km/h) | C24: 15 | W24: Vitesse du vent (km/h) | X24: 15
B25: Délai avant incorporation | C25: Température | D25: 10 | E25: 20 | F25: 30 | G25: 10 | H25: 20 | I25: 30 | J25: 10 | K25: 20 | L25: 30 | M25: 10 | N25: 20 | O25: 30 | P25: 10 | Q25: 20 | R25: 30 | S25: 10 | T25: 20 | U25: 30 | W25: Délai avant incorporation | X25: Température | Y25: 10 | Z25: 20 | AA25: 30 | AB25: 10 | AC25: 20 | AD25: 30 | AE25: 10 | AF25: 20 | AG25: 30 | AH25: 10 | AI25: 20 | AJ25: 30 | AK25: 10 | AL25: 20 | AM25: 30 | AN25: 10 | AO25: 20 | AP25: 30
B26: 0h | D26: 11.9 | E26: 12.6 | F26: 12.9 | G26: =$C$4*D26/100 -> 0.1666 | H26: 0.1764 | I26: 0.1806 | J26: =G26/0.27 -> 0.617037037 | K26: 0.6533333333 | L26: 0.6688888889 | M26: =J26*$N$3 -> 0.6244414815 | N26: =K26*$N$3 -> 0.6611733333 | O26: 0.6769155556 | P26: =G26/0.46 -> 0.362173913 | Q26: 0.3834782609 | R26: 0.3926086957 | S26: =P26*$N$4 -> 0.3991156522 | T26: =Q26*$N$4 -> 0.4225930435 | U26: 0.4326547826 | W26: 0h | Y26: 9.7 | Z26: 10.8 | AA26: 11.7 | AB26: =$C$4*Y26/100 -> 0.1358 | AC26: =$C$4*Z26/100 -> 0.1512 | AD26: 0.1638 | AE26: =AB26/0.27 -> 0.502962963 | AF26: 0.56 | AG26: 0.6066666667 | AH26: =AE26*$N$3 -> 0.5089985185 | AI26: =AF26*$N$3 -> 0.56672 | AJ26: 0.6139466667 | AK26: =AB26/0.46 -> 0.2952173913 | AL26: 0.3286956522 | AM26: 0.3560869565 | AN26: =AK26*$N$4 -> 0.3253295652 | AO26: =AL26*$N$4 -> 0.3622226087 | AP26: 0.3924078261
B27: 3h | D27: 21.9 | E27: 28.5 | F27: 33.6 | G27: 0.3066 | H27: 0.399 | I27: 0.4704 | J27: 1.135555556 | K27: 1.477777778 | L27: 1.742222222 | M27: =J27*$N$3 -> 1.149182222 | N27: 1.495511111 | O27: 1.763128889 | P27: 0.6665217391 | Q27: 0.8673913043 | R27: 1.022608696 | S27: =P27*$N$4 -> 0.7345069565 | T27: 0.9558652174 | U27: 1.126914783 | W27: 3h | Y27: 12 | Z27: 15.4 | AA27: 20.6 | AB27: =$C$4*Y27/100 -> 0.168 | AC27: 0.2156 | AD27: 0.2884 | AE27: 0.6222222222 | AF27: 0.7985185185 | AG27: 1.068148148 | AH27: =AE27*$N$3 -> 0.6296888889 | AI27: 0.8081007407 | AJ27: 1.080965926 | AK27: 0.3652173913 | AL27: 0.4686956522 | AM27: 0.6269565217 | AN27: =AK27*$N$4 -> 0.4024695652 | AO27: 0.5165026087 | AP27: 0.690906087
B28: 6h | D28: 26.2 | E28: 31.8 | F28: 34.5 | G28: 0.3668 | H28: 0.4452 | I28: 0.483 | J28: 1.358518519 | K28: 1.648888889 | L28: 1.788888889 | M28: 1.374820741 | N28: 1.668675556 | O28: 1.810355556 | P28: 0.7973913043 | Q28: 0.967826087 | R28: 1.05 | S28: 0.8787252174 | T28: 1.066544348 | U28: 1.1571 | W28: 6h | Y28: 13.7 | Z28: 18.4 | AA28: 24.7 | AB28: 0.1918 | AC28: 0.2576 | AD28: 0.3458 | AE28: 0.7103703704 | AF28: 0.9540740741 | AG28: 1.280740741 | AH28: 0.7188948148 | AI28: 0.965522963 | AJ28: 1.29610963 | AK28: 0.4169565217 | AL28: 0.56 | AM28: 0.7517391304 | AN28: 0.459486087 | AO28: 0.61712 | AP28: 0.8284165217
B29: 24h | D29: 29.4 | E29: 32.7 | F29: 34.5 | G29: 0.4116 | H29: 0.4578 | I29: 0.483 | J29: 1.524444444 | K29: 1.695555556 | L29: 1.788888889 | M29: 1.542737778 | N29: 1.715902222 | O29: 1.810355556 | P29: 0.8947826087 | Q29: 0.9952173913 | R29: 1.05 | S29: 0.9860504348 | T29: 1.096729565 | U29: 1.1571 | W29: 24h | Y29: 17.4 | Z29: 23.2 | AA29: 28.5 | AB29: 0.2436 | AC29: 0.3248 | AD29: 0.399 | AE29: 0.9022222222 | AF29: 1.202962963 | AG29: 1.477777778 | AH29: 0.9130488889 | AI29: 1.217398519 | AJ29: 1.495511111 | AK29: 0.5295652174 | AL29: 0.7060869565 | AM29: 0.8673913043 | AN29: 0.5835808696 | AO29: 0.7781078261 | AP29: 0.9558652174
B30: Sans incorporation | D30: 29.5 | E30: 32.7 | F30: 34.5 | G30: 0.413 | H30: 0.4578 | I30: 0.483 | J30: 1.52962963 | K30: 1.695555556 | L30: 1.788888889 | M30: =J30*$N$3 -> 1.547985185 | N30: 1.715902222 | O30: 1.810355556 | P30: 0.897826087 | Q30: 0.9952173913 | R30: 1.05 | S30: 0.9894043478 | T30: 1.096729565 | U30: 1.1571 | W30: Sans incorporation | Y30: 18.1 | Z30: 23.5 | AA30: 28.5 | AB30: =$C$4*Y30/100 -> 0.2534 | AC30: 0.329 | AD30: 0.399 | AE30: 0.9385185185 | AF30: 1.218518519 | AG30: 1.477777778 | AH30: 0.9497807407 | AI30: 1.233140741 | AJ30: 1.495511111 | AK30: 0.5508695652 | AL30: 0.7152173913 | AM30: 0.8673913043 | AN30: 0.6070582609 | AO30: 0.7881695652 | AP30: 0.9558652174
AB31: =(AB30-AB26)/AB30 -> 0.4640883978 | AC31: 0.5404255319 | AD31: =(AD30-AD26)/AD30 -> 0.5894736842
B32: Vitesse du vent (km/h) | C32: 25 | W32: Vitesse du vent (km/h) | X32: 25
B33: Délai avant incorporation | C33: Température | D33: 10 | E33: 20 | F33: 30 | G33: 10 | H33: 20 | I33: 30 | J33: 10 | K33: 20 | L33: 30 | M33: 10 | N33: 20 | O33: 30 | P33: 10 | Q33: 20 | R33: 30 | S33: 10 | T33: 20 | U33: 30 | W33: Délai avant incorporation | X33: Température | Y33: 10 | Z33: 20 | AA33: 30 | AB33: 10 | AC33: 20 | AD33: 30 | AE33: 10 | AF33: 20 | AG33: 30 | AH33: 10 | AI33: 20 | AJ33: 30 | AK33: 10 | AL33: 20 | AM33: 30 | AN33: 10 | AO33: 20 | AP33: 30
B34: 0h | D34: 12.5 | E34: 12.9 | F34: 13.1 | G34: =$C$4*D34/100 -> 0.175 | H34: 0.1806 | I34: 0.1834 | J34: =G34/0.27 -> 0.6481481481 | K34: 0.6688888889 | L34: 0.6792592593 | M34: =J34*$N$3 -> 0.6559259259 | N34: =K34*$N$3 -> 0.6769155556 | O34: 0.6874103704 | P34: =G34/0.46 -> 0.3804347826 | Q34: 0.3926086957 | R34: 0.3986956522 | S34: =P34*$N$4 -> 0.4192391304 | T34: =Q34*$N$4 -> 0.4326547826 | U34: 0.4393626087 | W34: 0h | Y34: 10.6 | Z34: 11.6 | AA34: 12.3 | AB34: =$C$4*Y34/100 -> 0.1484 | AC34: =$C$4*Z34/100 -> 0.1624 | AD34: 0.1722 | AE34: =AB34/0.27 -> 0.5496296296 | AF34: 0.6014814815 | AG34: 0.6377777778 | AH34: =AE34*$N$3 -> 0.5562251852 | AI34: =AF34*$N$3 -> 0.6086992593 | AJ34: 0.6454311111 | AK34: =AB34/0.46 -> 0.3226086957 | AL34: 0.3530434783 | AM34: 0.3743478261 | AN34: =AK34*$N$4 -> 0.3555147826 | AO34: =AL34*$N$4 -> 0.389053913 | AP34: 0.4125313043
B35: 3h | D35: 27.2 | E35: 32.9 | F35: 35.3 | G35: 0.3808 | H35: 0.4606 | I35: 0.4942 | J35: 1.41037037 | K35: 1.705925926 | L35: 1.83037037 | M35: =J35*$N$3 -> 1.427294815 | N35: 1.726397037 | O35: 1.852334815 | P35: 0.827826087 | Q35: 1.001304348 | R35: 1.074347826 | S35: =P35*$N$4 -> 0.9122643478 | T35: 1.103437391 | U35: 1.183931304 | W35: 3h | Y35: 14.6 | Z35: 19.4 | AA35: 25.8 | AB35: =$C$4*Y35/100 -> 0.2044 | AC35: 0.2716 | AD35: 0.3612 | AE35: 0.757037037 | AF35: 1.005925926 | AG35: 1.337777778 | AH35: =AE35*$N$3 -> 0.7661214815 | AI35: 1.017997037 | AJ35: 1.353831111 | AK35: 0.4443478261 | AL35: 0.5904347826 | AM35: 0.7852173913 | AN35: =AK35*$N$4 -> 0.4896713043 | AO35: 0.6506591304 | AP35: 0.8653095652
B36: 6h | D36: 30.9 | E36: 34.2 | F36: 35.4 | G36: 0.4326 | H36: 0.4788 | I36: 0.4956 | J36: 1.602222222 | K36: 1.773333333 | L36: 1.835555556 | M36: 1.621448889 | N36: 1.794613333 | O36: 1.857582222 | P36: 0.9404347826 | Q36: 1.040869565 | R36: 1.077391304 | S36: 1.03635913 | T36: 1.147038261 | U36: 1.187285217 | W36: 6h | Y36: 17.3 | Z36: 23.4 | AA36: 29.8 | AB36: 0.2422 | AC36: 0.3276 | AD36: 0.4172 | AE36: 0.897037037 | AF36: 1.213333333 | AG36: 1.545185185 | AH36: 0.9078014815 | AI36: 1.227893333 | AJ36: 1.563727407 | AK36: 0.5265217391 | AL36: 0.712173913 | AM36: 0.9069565217 | AN36: 0.5802269565 | AO36: 0.7848156522 | AP36: 0.999466087
B37: 24h | D37: 32.2 | E37: 34.3 | F37: 35.4 | G37: 0.4508 | H37: 0.4802 | I37: 0.4956 | J37: 1.66962963 | K37: 1.778518519 | L37: 1.835555556 | M37: 1.689665185 | N37: 1.799860741 | O37: 1.857582222 | P37: 0.98 | Q37: 1.043913043 | R37: 1.077391304 | S37: 1.07996 | T37: 1.150392174 | U37: 1.187285217 | W37: 24h | Y37: 22 | Z37: 27.6 | AA37: 31.5 | AB37: 0.308 | AC37: 0.3864 | AD37: 0.441 | AE37: 1.140740741 | AF37: 1.431111111 | AG37: 1.633333333 | AH37: 1.15442963 | AI37: 1.448284444 | AJ37: 1.652933333 | AK37: 0.6695652174 | AL37: 0.84 | AM37: 0.9586956522 | AN37: 0.7378608696 | AO37: 0.92568 | AP37: 1.056482609
B38: Sans incorporation | D38: 32.2 | E38: 34.3 | F38: 35.4 | G38: 0.4508 | H38: 0.4802 | I38: 0.4956 | J38: 1.66962963 | K38: 1.778518519 | L38: 1.835555556 | M38: =J38*$N$3 -> 1.689665185 | N38: 1.799860741 | O38: 1.857582222 | P38: 0.98 | Q38: 1.043913043 | R38: 1.077391304 | S38: 1.07996 | T38: 1.150392174 | U38: 1.187285217 | W38: Sans incorporation | Y38: 22.4 | Z38: 27.6 | AA38: 31.5 | AB38: =$C$4*Y38/100 -> 0.3136 | AC38: 0.3864 | AD38: 0.441 | AE38: 1.161481481 | AF38: 1.431111111 | AG38: 1.633333333 | AH38: 1.175419259 | AI38: 1.448284444 | AJ38: 1.652933333 | AK38: 0.6817391304 | AL38: 0.84 | AM38: 0.9586956522 | AN38: 0.7512765217 | AO38: 0.92568 | AP38: 1.056482609
AB39: =(AB38-AB34)/AB38 -> 0.5267857143 | AC39: 0.5797101449 | AD39: =(AD38-AD34)/AD38 -> 0.6095238095
B41: LISIER DE VACHE | W41: LISIER DE VACHE
B42: M.S (%) | C42: 7 | J42: Prix 2025 | L42: Formule | M42: $/t | N42: $/kg | W42: M.S (%) | X42: 7 | AE42: Prix 2025 | AG42: Formule | AH42: $/t | AI42: $/kg
B43: N total (kg/t) | C43: 2.6 | J43: Nitrate d'ammonium calcique (CAN) | L43: 27-0-0 | M43: 1012 | N43: =M43/1000 -> 1.012 | W43: N total (kg/t) | X43: 2.6 | AE43: Nitrate d'ammonium calcique (CAN) | AG43: 27-0-0 | AH43: 1012 | AI43: =AH43/1000 -> 1.012
B44: Azote ammoniacal total ou N-NH4+ (kg/t) | C44: 1.4 | J44: Urée | L44: 46-0-0 | M44: 1102 | N44: =M44/1000 -> 1.102 | W44: Azote ammoniacal total ou N-NH4+ (kg/t) | X44: 1.4 | AE44: Urée | AG44: 46-0-0 | AH44: 1102 | AI44: =AH44/1000 -> 1.102
B46: Aspersion basse | D46: Pourcentage d’azote ammoniacal (% N-NH4+) appliqué qui est émis sous forme d’ammoniac (N-NH3) lors des 72 heures suivant l'épandage | G46: Émissions cumulatives de N-NH3 (kg/t de lisier épandu) | J46: =$J$3 -> Nitrate d'ammonium calcique (CAN) | P46: =$J$4 -> Urée | W46: Pendillards | Y46: Pourcentage d’azote ammoniacal (% N-NH4+) appliqué qui est émis sous forme d’ammoniac (N-NH3) lors des 72 heures suivant l'épandage | AB46: Émissions cumulatives de N-NH3 (kg/t de lisier épandu) | AE46: =$J$3 -> Nitrate d'ammonium calcique (CAN) | AK46: =$J$4 -> Urée
J47: Masse de fertilisant requise pour compenser l'azote perdu (kg/t de lisier épandu) | M47: $/t de lisier épandu | P47: Masse de fertilisant requise pour compenser l'azote perdu (kg/t de lisier épandu) | S47: $/t de lisier épandu | AE47: Masse de fertilisant requise pour compenser l'azote perdu (kg/t de lisier épandu) | AH47: $/t de lisier épandu | AK47: Masse de fertilisant requise pour compenser l'azote perdu (kg/t de lisier épandu) | AN47: $/t de lisier épandu
B48: Vitesse du vent (km/h) | C48: 5 | D48: km/h | W48: Vitesse du vent (km/h) | X48: 5 | Y48: km/h
B49: Délai avant incorporation | C49: Température | D49: 10 | E49: 20 | F49: 30 | G49: 10 | H49: 20 | I49: 30 | J49: 10 | K49: 20 | L49: 30 | M49: 10 | N49: 20 | O49: 30 | P49: 10 | Q49: 20 | R49: 30 | S49: 10 | T49: 20 | U49: 30 | W49: Délai avant incorporation | X49: Température | Y49: 10 | Z49: 20 | AA49: 30 | AB49: 10 | AC49: 20 | AD49: 30 | AE49: 10 | AF49: 20 | AG49: 30 | AH49: 10 | AI49: 20 | AJ49: 30 | AK49: 10 | AL49: 20 | AM49: 30 | AN49: 10 | AO49: 20 | AP49: 30
B50: 0h | D50: 14 | E50: 16.4 | F50: 18.3 | G50: =$C$4*D50/100 -> 0.196 | H50: 0.2296 | I50: 0.2562 | J50: =G50/0.27 -> 0.7259259259 | K50: 0.8503703704 | L50: 0.9488888889 | M50: =J50*$N$3 -> 0.734637037 | N50: =K50*$N$3 -> 0.8605748148 | O50: 0.9602755556 | P50: =G50/0.46 -> 0.4260869565 | Q50: 0.4991304348 | R50: 0.5569565217 | S50: =P50*$N$4 -> 0.4695478261 | T50: =Q50*$N$4 -> 0.5500417391 | U50: 0.613766087 | W50: 0h | Y50: 9.5 | Z50: 11.2 | AA50: 13.5 | AB50: =$C$4*Y50/100 -> 0.133 | AC50: =$C$4*Z50/100 -> 0.1568 | AD50: 0.189 | AE50: =AB50/0.27 -> 0.4925925926 | AF50: 0.5807407407 | AG50: 0.7 | AH50: =AE50*$N$3 -> 0.4985037037 | AI50: =AF50*$N$3 -> 0.5877096296 | AJ50: 0.7084 | AK50: =AB50/0.46 -> 0.2891304348 | AL50: 0.3408695652 | AM50: 0.4108695652 | AN50: =AK50*$N$4 -> 0.3186217391 | AO50: =AL50*$N$4 -> 0.3756382609 | AP50: 0.4527782609
B51: 3h | D51: 22.6 | E51: 33.2 | F51: 47.6 | G51: 0.3164 | H51: 0.4648 | I51: 0.6664 | J51: 1.171851852 | K51: 1.721481481 | L51: 2.468148148 | M51: =J51*$N$3 -> 1.185914074 | N51: 1.742139259 | O51: 2.497765926 | P51: 0.687826087 | Q51: 1.010434783 | R51: 1.448695652 | S51: =P51*$N$4 -> 0.7579843478 | T51: 1.11349913 | U51: 1.596462609 | W51: 3h | Y51: 11.2 | Z51: 14.7 | AA51: 20.8 | AB51: =$C$4*Y51/100 -> 0.1568 | AC51: 0.2058 | AD51: 0.2912 | AE51: 0.5807407407 | AF51: 0.7622222222 | AG51: 1.078518519 | AH51: =AE51*$N$3 -> 0.5877096296 | AI51: 0.7713688889 | AJ51: 1.091460741 | AK51: 0.3408695652 | AL51: 0.4473913043 | AM51: 0.6330434783 | AN51: =AK51*$N$4 -> 0.3756382609 | AO51: 0.4930252174 | AP51: 0.697613913
B52: 6h | D52: 28.4 | E52: 42.1 | F52: 57.3 | G52: 0.3976 | H52: 0.5894 | I52: 0.8022 | J52: 1.472592593 | K52: 2.182962963 | L52: 2.971111111 | M52: 1.490263704 | N52: 2.209158519 | O52: 3.006764444 | P52: 0.8643478261 | Q52: 1.281304348 | R52: 1.743913043 | S52: 0.9525113043 | T52: 1.411997391 | U52: 1.921792174 | W52: 6h | Y52: 12.4 | Z52: 17.4 | AA52: 25.9 | AB52: 0.1736 | AC52: 0.2436 | AD52: 0.3626 | AE52: 0.642962963 | AF52: 0.9022222222 | AG52: 1.342962963 | AH52: 0.6506785185 | AI52: 0.9130488889 | AJ52: 1.359078519 | AK52: 0.3773913043 | AL52: 0.5295652174 | AM52: 0.7882608696 | AN52: 0.4158852174 | AO52: 0.5835808696 | AP52: 0.8686634783
B53: 24h | D53: 39.1 | E53: 52.3 | F53: 62.1 | G53: 0.5474 | H53: 0.7322 | I53: 0.8694 | J53: 2.027407407 | K53: 2.711851852 | L53: 3.22 | M53: 2.051736296 | N53: 2.744394074 | O53: 3.25864 | P53: 1.19 | Q53: 1.59173913 | R53: 1.89 | S53: 1.31138 | T53: 1.754096522 | U53: 2.08278 | W53: 24h | Y53: 16 | Z53: 24.1 | AA53: 36.1 | AB53: 0.224 | AC53: 0.3374 | AD53: 0.5054 | AE53: 0.8296296296 | AF53: 1.24962963 | AG53: 1.871851852 | AH53: 0.8395851852 | AI53: 1.264625185 | AJ53: 1.894314074 | AK53: 0.4869565217 | AL53: 0.7334782609 | AM53: 1.098695652 | AN53: 0.536626087 | AO53: 0.8082930435 | AP53: 1.210762609
B54: Sans incorporation | D54: 40.2 | E54: 52.6 | F54: 62.1 | G54: 0.5628 | H54: 0.7364 | I54: 0.8694 | J54: 2.084444444 | K54: 2.727407407 | L54: 3.22 | M54: 2.109457778 | N54: 2.760136296 | O54: 3.25864 | P54: 1.223478261 | Q54: 1.600869565 | R54: 1.89 | S54: 1.348273043 | T54: 1.764158261 | U54: 2.08278 | W54: Sans incorporation | Y54: 17.1 | Z54: 25.6 | AA54: 37.4 | AB54: =$C$4*Y54/100 -> 0.2394 | AC54: 0.3584 | AD54: 0.5236 | AE54: 0.8866666667 | AF54: 1.327407407 | AG54: 1.939259259 | AH54: 0.8973066667 | AI54: 1.343336296 | AJ54: 1.96253037 | AK54: 0.5204347826 | AL54: 0.7791304348 | AM54: 1.13826087 | AN54: 0.5735191304 | AO54: 0.8586017391 | AP54: 1.254363478
B56: Vitesse du vent (km/h) | C56: 10 | D56: km/h | W56: Vitesse du vent (km/h) | X56: 10 | Y56: km/h
B57: Délai avant incorporation | C57: Température | D57: 10 | E57: 20 | F57: 30 | G57: 10 | H57: 20 | I57: 30 | J57: 10 | K57: 20 | L57: 30 | M57: 10 | N57: 20 | O57: 30 | P57: 10 | Q57: 20 | R57: 30 | S57: 10 | T57: 20 | U57: 30 | W57: Délai avant incorporation | X57: Température | Y57: 10 | Z57: 20 | AA57: 30 | AB57: 10 | AC57: 20 | AD57: 30 | AE57: 10 | AF57: 20 | AG57: 30 | AH57: 10 | AI57: 20 | AJ57: 30 | AK57: 10 | AL57: 20 | AM57: 30 | AN57: 10 | AO57: 20 | AP57: 30
B58: 0h | D58: 15.7 | E58: 17.8 | F58: 19.1 | G58: =$C$4*D58/100 -> 0.2198 | H58: 0.2492 | I58: 0.2674 | J58: =G58/0.27 -> 0.8140740741 | K58: 0.922962963 | L58: 0.9903703704 | M58: =J58*$N$3 -> 0.823842963 | N58: =K58*$N$3 -> 0.9340385185 | O58: 1.002254815 | P58: =G58/0.46 -> 0.477826087 | Q58: 0.5417391304 | R58: 0.5813043478 | S58: =P58*$N$4 -> 0.5265643478 | T58: =Q58*$N$4 -> 0.5969965217 | U58: 0.6405973913 | W58: 0h | Y58: 10.6 | Z58: 12.7 | AA58: 15.2 | AB58: =$C$4*Y58/100 -> 0.1484 | AC58: =$C$4*Z58/100 -> 0.1778 | AD58: 0.2128 | AE58: =AB58/0.27 -> 0.5496296296 | AF58: 0.6585185185 | AG58: 0.7881481481 | AH58: =AE58*$N$3 -> 0.5562251852 | AI58: =AF58*$N$3 -> 0.6664207407 | AJ58: 0.7976059259 | AK58: =AB58/0.46 -> 0.3226086957 | AL58: 0.3865217391 | AM58: 0.4626086957 | AN58: =AK58*$N$4 -> 0.3555147826 | AO58: =AL58*$N$4 -> 0.4259469565 | AP58: 0.5097947826
B59: 3h | D59: 29.3 | E59: 42.6 | F59: 58 | G59: 0.4102 | H59: 0.5964 | I59: 0.812 | J59: 1.519259259 | K59: 2.208888889 | L59: 3.007407407 | M59: =J59*$N$3 -> 1.53749037 | N59: 2.235395556 | O59: 3.043496296 | P59: 0.8917391304 | Q59: 1.296521739 | R59: 1.765217391 | S59: =P59*$N$4 -> 0.9826965217 | T59: 1.428766957 | U59: 1.945269565 | W59: 3h | Y59: 13.3 | Z59: 18.5 | AA59: 27 | AB59: =$C$4*Y59/100 -> 0.1862 | AC59: 0.259 | AD59: 0.378 | AE59: 0.6896296296 | AF59: 0.9592592593 | AG59: 1.4 | AH59: =AE59*$N$3 -> 0.6979051852 | AI59: 0.9707703704 | AJ59: 1.4168 | AK59: 0.4047826087 | AL59: 0.5630434783 | AM59: 0.8217391304 | AN59: =AK59*$N$4 -> 0.4460704348 | AO59: 0.620473913 | AP59: 0.9055565217
B60: 6h | D60: 37.4 | E60: 52.7 | F60: 64.9 | G60: 0.5236 | H60: 0.7378 | I60: 0.9086 | J60: 1.939259259 | K60: 2.732592593 | L60: 3.365185185 | M60: 1.96253037 | N60: 2.765383704 | O60: 3.405567407 | P60: 1.13826087 | Q60: 1.603913043 | R60: 1.975217391 | S60: 1.254363478 | T60: 1.767512174 | U60: 2.176689565 | W60: 6h | Y60: 15.5 | Z60: 22.7 | AA60: 34.3 | AB60: 0.217 | AC60: 0.3178 | AD60: 0.4802 | AE60: 0.8037037037 | AF60: 1.177037037 | AG60: 1.778518519 | AH60: 0.8133481481 | AI60: 1.191161481 | AJ60: 1.799860741 | AK60: 0.4717391304 | AL60: 0.6908695652 | AM60: 1.043913043 | AN60: 0.5198565217 | AO60: 0.7613382609 | AP60: 1.150392174
B61: 24h | D61: 48.3 | E61: 59.4 | F61: 66.4 | G61: 0.6762 | H61: 0.8316 | I61: 0.9296 | J61: 2.504444444 | K61: 3.08 | L61: 3.442962963 | M61: 2.534497778 | N61: 3.11696 | O61: 3.484278519 | P61: 1.47 | Q61: 1.807826087 | R61: 2.020869565 | S61: 1.61994 | T61: 1.992224348 | U61: 2.226998261 | W61: 24h | Y61: 21.1 | Z61: 31.9 | AA61: 45.4 | AB61: 0.2954 | AC61: 0.4466 | AD61: 0.6356 | AE61: 1.094074074 | AF61: 1.654074074 | AG61: 2.354074074 | AH61: 1.107202963 | AI61: 1.673922963 | AJ61: 2.382322963 | AK61: 0.642173913 | AL61: 0.9708695652 | AM61: 1.38173913 | AN61: 0.7076756522 | AO61: 1.069898261 | AP61: 1.522676522
B62: Sans incorporation | D62: 48.8 | E62: 59.4 | F62: 66.4 | G62: 0.6832 | H62: 0.8316 | I62: 0.9296 | J62: 2.53037037 | K62: 3.08 | L62: 3.442962963 | M62: 2.560734815 | N62: 3.11696 | O62: 3.484278519 | P62: 1.485217391 | Q62: 1.807826087 | R62: 2.020869565 | S62: 1.636709565 | T62: 1.992224348 | U62: 2.226998261 | W62: Sans incorporation | Y62: 22.5 | Z62: 33.4 | AA62: 46.1 | AB62: =$C$4*Y62/100 -> 0.315 | AC62: 0.4676 | AD62: 0.6454 | AE62: 1.166666667 | AF62: 1.731851852 | AG62: 2.39037037 | AH62: 1.180666667 | AI62: 1.752634074 | AJ62: 2.419054815 | AK62: 0.6847826087 | AL62: 1.016521739 | AM62: 1.403043478 | AN62: 0.7546304348 | AO62: 1.120206957 | AP62: 1.546153913
B64: Vitesse du vent (km/h) | C64: 15 | D64: km/h | W64: Vitesse du vent (km/h) | X64: 15 | Y64: km/h
B65: Délai avant incorporation | C65: Température | D65: 10 | E65: 20 | F65: 30 | G65: 10 | H65: 20 | I65: 30 | J65: 10 | K65: 20 | L65: 30 | M65: 10 | N65: 20 | O65: 30 | P65: 10 | Q65: 20 | R65: 30 | S65: 10 | T65: 20 | U65: 30 | W65: Délai avant incorporation | X65: Température | Y65: 10 | Z65: 20 | AA65: 30 | AB65: 10 | AC65: 20 | AD65: 30 | AE65: 10 | AF65: 20 | AG65: 30 | AH65: 10 | AI65: 20 | AJ65: 30 | AK65: 10 | AL65: 20 | AM65: 30 | AN65: 10 | AO65: 20 | AP65: 30
B66: 0h | D66: 16.9 | E66: 18.6 | F66: 19.6 | G66: =$C$4*D66/100 -> 0.2366 | H66: 0.2604 | I66: 0.2744 | J66: =G66/0.27 -> 0.8762962963 | K66: 0.9644444444 | L66: 1.016296296 | M66: =J66*$N$3 -> 0.8868118519 | N66: =K66*$N$3 -> 0.9760177778 | O66: 1.028491852 | P66: =G66/0.46 -> 0.5143478261 | Q66: 0.5660869565 | R66: 0.5965217391 | S66: =P66*$N$4 -> 0.5668113043 | T66: =Q66*$N$4 -> 0.6238278261 | U66: 0.6573669565 | W66: 0h | Y66: 11.6 | Z66: 14 | AA66: 16.4 | AB66: =$C$4*Y66/100 -> 0.1624 | AC66: =$C$4*Z66/100 -> 0.196 | AD66: 0.2296 | AE66: =AB66/0.27 -> 0.6014814815 | AF66: 0.7259259259 | AG66: 0.8503703704 | AH66: =AE66*$N$3 -> 0.6086992593 | AI66: =AF66*$N$3 -> 0.734637037 | AJ66: 0.8605748148 | AK66: =AB66/0.46 -> 0.3530434783 | AL66: 0.4260869565 | AM66: 0.4991304348 | AN66: =AK66*$N$4 -> 0.389053913 | AO66: =AL66*$N$4 -> 0.4695478261 | AP66: 0.5500417391
B67: 3h | D67: 35.8 | E67: 50.7 | F67: 64.7 | G67: 0.5012 | H67: 0.7098 | I67: 0.9058 | J67: 1.856296296 | K67: 2.628888889 | L67: 3.354814815 | M67: =J67*$N$3 -> 1.878571852 | N67: 2.660435556 | O67: 3.395072593 | P67: 1.089565217 | Q67: 1.543043478 | R67: 1.969130435 | S67: =P67*$N$4 -> 1.20070087 | T67: 1.700433913 | U67: 2.169981739 | W67: 3h | Y67: 15.7 | Z67: 22.5 | AA67: 32.9 | AB67: =$C$4*Y67/100 -> 0.2198 | AC67: 0.315 | AD67: 0.4606 | AE67: 0.8140740741 | AF67: 1.166666667 | AG67: 1.705925926 | AH67: =AE67*$N$3 -> 0.823842963 | AI67: 1.180666667 | AJ67: 1.726397037 | AK67: 0.477826087 | AL67: 0.6847826087 | AM67: 1.001304348 | AN67: =AK67*$N$4 -> 0.5265643478 | AO67: 0.7546304348 | AP67: 1.103437391
B68: 6h | D68: 45.3 | E68: 59.9 | F68: 68.5 | G68: 0.6342 | H68: 0.8386 | I68: 0.959 | J68: 2.348888889 | K68: 3.105925926 | L68: 3.551851852 | M68: 2.377075556 | N68: 3.143197037 | O68: 3.594474074 | P68: 1.378695652 | Q68: 1.823043478 | R68: 2.084782609 | S68: 1.519322609 | T68: 2.008993913 | U68: 2.297430435 | W68: 6h | Y68: 18.8 | Z68: 28.2 | AA68: 41.9 | AB68: 0.2632 | AC68: 0.3948 | AD68: 0.5866 | AE68: 0.9748148148 | AF68: 1.462222222 | AG68: 2.172592593 | AH68: 0.9865125926 | AI68: 1.479768889 | AJ68: 2.198663704 | AK68: 0.572173913 | AL68: 0.8582608696 | AM68: 1.275217391 | AN68: 0.6305356522 | AO68: 0.9458034783 | AP68: 1.405289565
B69: 24h | D69: 54.6 | E69: 63.5 | F69: 68.8 | G69: 0.7644 | H69: 0.889 | I69: 0.9632 | J69: 2.831111111 | K69: 3.292592593 | L69: 3.567407407 | M69: 2.865084444 | N69: 3.332103704 | O69: 3.610216296 | P69: 1.66173913 | Q69: 1.932608696 | R69: 2.093913043 | S69: 1.831236522 | T69: 2.129734783 | U69: 2.307492174 | W69: 24h | Y69: 26.2 | Z69: 38.9 | AA69: 52.1 | AB69: 0.3668 | AC69: 0.5446 | AD69: 0.7294 | AE69: 1.358518519 | AF69: 2.017037037 | AG69: 2.701481481 | AH69: 1.374820741 | AI69: 2.041241481 | AJ69: 2.733899259 | AK69: 0.7973913043 | AL69: 1.183913043 | AM69: 1.585652174 | AN69: 0.8787252174 | AO69: 1.304672174 | AP69: 1.747388696
B70: Sans incorporation | D70: 54.8 | E70: 63.5 | F70: 68.8 | G70: 0.7672 | H70: 0.889 | I70: 0.9632 | J70: 2.841481481 | K70: 3.292592593 | L70: 3.567407407 | M70: 2.875579259 | N70: 3.332103704 | O70: 3.610216296 | P70: 1.667826087 | Q70: 1.932608696 | R70: 2.093913043 | S70: 1.837944348 | T70: 2.129734783 | U70: 2.307492174 | W70: Sans incorporation | Y70: 27.8 | Z70: 40 | AA70: 52.4 | AB70: =$C$4*Y70/100 -> 0.3892 | AC70: 0.56 | AD70: 0.7336 | AE70: 1.441481481 | AF70: 2.074074074 | AG70: 2.717037037 | AH70: 1.458779259 | AI70: 2.098962963 | AJ70: 2.749641481 | AK70: 0.8460869565 | AL70: 1.217391304 | AM70: 1.594782609 | AN70: 0.9323878261 | AO70: 1.341565217 | AP70: 1.757450435
B72: Vitesse du vent (km/h) | C72: 25 | D72: km/h | W72: Vitesse du vent (km/h) | X72: 25 | Y72: km/h
B73: Délai avant incorporation | C73: Température | D73: 10 | E73: 20 | F73: 30 | G73: 10 | H73: 20 | I73: 30 | J73: 10 | K73: 20 | L73: 30 | M73: 10 | N73: 20 | O73: 30 | P73: 10 | Q73: 20 | R73: 30 | S73: 10 | T73: 20 | U73: 30 | W73: Délai avant incorporation | X73: Température | Y73: 10 | Z73: 20 | AA73: 30 | AB73: 10 | AC73: 20 | AD73: 30 | AE73: 10 | AF73: 20 | AG73: 30 | AH73: 10 | AI73: 20 | AJ73: 30 | AK73: 10 | AL73: 20 | AM73: 30 | AN73: 10 | AO73: 20 | AP73: 30
B74: 0h | D74: 18.3 | E74: 19.4 | F74: 20.1 | G74: =$C$4*D74/100 -> 0.2562 | H74: 0.2716 | I74: 0.2814 | J74: =G74/0.27 -> 0.9488888889 | K74: 1.005925926 | L74: 1.042222222 | M74: =J74*$N$3 -> 0.9602755556 | N74: =K74*$N$3 -> 1.017997037 | O74: 1.054728889 | P74: =G74/0.46 -> 0.5569565217 | Q74: 0.5904347826 | R74: 0.6117391304 | S74: =P74*$N$4 -> 0.613766087 | T74: =Q74*$N$4 -> 0.6506591304 | U74: 0.6741365217 | W74: 0h | Y74: 13.5 | Z74: 15.9 | AA74: 17.9 | AB74: =$C$4*Y74/100 -> 0.189 | AC74: =$C$4*Z74/100 -> 0.2226 | AD74: 0.2506 | AE74: =AB74/0.27 -> 0.7 | AF74: 0.8244444444 | AG74: 0.9281481481 | AH74: =AE74*$N$3 -> 0.7084 | AI74: =AF74*$N$3 -> 0.8343377778 | AJ74: 0.9392859259 | AK74: =AB74/0.46 -> 0.4108695652 | AL74: 0.4839130435 | AM74: 0.5447826087 | AN74: =AK74*$N$4 -> 0.4527782609 | AO74: =AL74*$N$4 -> 0.5332721739 | AP74: 0.6003504348
B75: 3h | D75: 47.6 | E75: 62.4 | F75: 70.6 | G75: 0.6664 | H75: 0.8736 | I75: 0.9884 | J75: 2.468148148 | K75: 3.235555556 | L75: 3.660740741 | M75: =J75*$N$3 -> 2.497765926 | N75: 3.274382222 | O75: 3.70466963 | P75: 1.448695652 | Q75: 1.899130435 | R75: 2.148695652 | S75: =P75*$N$4 -> 1.596462609 | T75: 2.092841739 | U75: 2.367862609 | W75: 3h | Y75: 20.9 | Z75: 30.5 | AA75: 44.2 | AB75: =$C$4*Y75/100 -> 0.2926 | AC75: 0.427 | AD75: 0.6188 | AE75: 1.083703704 | AF75: 1.581481481 | AG75: 2.291851852 | AH75: =AE75*$N$3 -> 1.096708148 | AI75: 1.600459259 | AJ75: 2.319354074 | AK75: 0.6360869565 | AL75: 0.9282608696 | AM75: 1.345217391 | AN75: =AK75*$N$4 -> 0.7009678261 | AO75: 1.022943478 | AP75: 1.482429565
B76: 6h | D76: 57.3 | E76: 67.4 | F76: 71.2 | G76: 0.8022 | H76: 0.9436 | I76: 0.9968 | J76: 2.971111111 | K76: 3.494814815 | L76: 3.691851852 | M76: 3.006764444 | N76: 3.536752593 | O76: 3.736154074 | P76: 1.743913043 | Q76: 2.051304348 | R76: 2.166956522 | S76: 1.921792174 | T76: 2.260537391 | U76: 2.387986087 | W76: 6h | Y76: 26 | Z76: 38.9 | AA76: 54.2 | AB76: 0.364 | AC76: 0.5446 | AD76: 0.7588 | AE76: 1.348148148 | AF76: 2.017037037 | AG76: 2.81037037 | AH76: 1.364325926 | AI76: 2.041241481 | AJ76: 2.844094815 | AK76: 0.7913043478 | AL76: 1.183913043 | AM76: 1.649565217 | AN76: 0.8720173913 | AO76: 1.304672174 | AP76: 1.81782087
B77: 24h | D77: 62.1 | E77: 68 | F77: 71.2 | G77: 0.8694 | H77: 0.952 | I77: 0.9968 | J77: 3.22 | K77: 3.525925926 | L77: 3.691851852 | M77: 3.25864 | N77: 3.568237037 | O77: 3.736154074 | P77: 1.89 | Q77: 2.069565217 | R77: 2.166956522 | S77: 2.08278 | T77: 2.28066087 | U77: 2.387986087 | W77: 24h | Y77: 36.2 | Z77: 49.7 | AA77: 60.3 | AB77: 0.5068 | AC77: 0.6958 | AD77: 0.8442 | AE77: 1.877037037 | AF77: 2.577037037 | AG77: 3.126666667 | AH77: 1.899561481 | AI77: 2.607961481 | AJ77: 3.164186667 | AK77: 1.10173913 | AL77: 1.512608696 | AM77: 1.835217391 | AN77: 1.214116522 | AO77: 1.666894783 | AP77: 2.022409565
B78: Sans incorporation | D78: 62.1 | E78: 68 | F78: 71.2 | G78: 0.8694 | H78: 0.952 | I78: 0.9968 | J78: 3.22 | K78: 3.525925926 | L78: 3.691851852 | M78: 3.25864 | N78: 3.568237037 | O78: 3.736154074 | P78: 1.89 | Q78: 2.069565217 | R78: 2.166956522 | S78: 2.08278 | T78: 2.28066087 | U78: 2.387986087 | W78: Sans incorporation | Y78: 37.5 | Z78: 50.1 | AA78: 60.3 | AB78: =$C$4*Y78/100 -> 0.525 | AC78: 0.7014 | AD78: 0.8442 | AE78: 1.944444444 | AF78: 2.597777778 | AG78: 3.126666667 | AH78: 1.967777778 | AI78: 2.628951111 | AJ78: 3.164186667 | AK78: 1.141304348 | AL78: 1.524782609 | AM78: 1.835217391 | AN78: 1.257717391 | AO78: 1.680310435 | AP78: 2.022409565

Sheet Lisier de porc__72h (hidden)
B1: LISIER DE PORC | W1: LISIER DE PORC
B2: M.S (%) | C2: 3.5 | J2: Prix 2025 | L2: Formule | M2: $/t | N2: $/kg | W2: M.S (%) | X2: 3.5 | AE2: Prix 2025 | AG2: Formule | AH2: $/t | AI2: $/kg
B3: N total (kg/t) | C3: 3.5 | J3: Nitrate d'ammonium calcique (CAN) | L3: 27-0-0 | M3: 1012 | N3: =M3/1000 -> 1.012 | W3: N total (kg/t) | X3: 3.5 | AE3: Nitrate d'ammonium calcique (CAN) | AG3: 27-0-0 | AH3: 1012 | AI3: =AH3/1000 -> 1.012
B4: Azote ammoniacal total ou N-NH4+ (kg/t) | C4: 2.4 | J4: Urée | L4: 46-0-0 | M4: 1102 | N4: =M4/1000 -> 1.102 | W4: Azote ammoniacal total ou N-NH4+ (kg/t) | X4: 2.4 | AE4: Urée | AG4: 46-0-0 | AH4: 1102 | AI4: =AH4/1000 -> 1.102
B6: Aspersion basse | D6: Pourcentage d’azote ammoniacal (% N-NH4+) appliqué qui est émis sous forme d’ammoniac (N-NH3) lors des 72 heures suivant l'épandage | G6: Émissions cumulatives de N-NH3 (kg/t de lisier épandu) | J6: =$J$3 -> Nitrate d'ammonium calcique (CAN) | P6: =$J$4 -> Urée | W6: Pendillards | Y6: Pourcentage d’azote ammoniacal (% N-NH4+) appliqué qui est émis sous forme d’ammoniac (N-NH3) lors des 72 heures suivant l'épandage | AB6: Émissions cumulatives de NH3 (kg/t_lisier_épandu) | AE6: =$J$3 -> Nitrate d'ammonium calcique (CAN) | AK6: =$J$4 -> Urée
J7: Masse de fertilisant requise pour compenser l'azote perdu (kg/t de lisier épandu) | M7: $/t de lisier épandu | P7: Masse de fertilisant requise pour compenser l'azote perdu (kg/t de lisier épandu) | S7: $/t de lisier épandu | AE7: Masse de fertilisant requise pour compenser l'azote perdu (kg/t de lisier épandu) | AH7: $/t de lisier épandu | AK7: Masse de fertilisant requise pour compenser l'azote perdu (kg/t de lisier épandu) | AN7: $/t de lisier épandu
B8: Vitesse du vent (km/h) | C8: 5 | W8: Vitesse du vent (km/h) | X8: 5
B9: Délai avant incorporation | C9: Température | D9: 10 | E9: 20 | F9: 30 | G9: 10 | H9: 20 | I9: 30 | J9: 10 | K9: 20 | L9: 30 | M9: 10 | N9: 20 | O9: 30 | P9: 10 | Q9: 20 | R9: 30 | S9: 10 | T9: 20 | U9: 30 | W9: Délai avant incorporation | X9: Température | Y9: 10 | Z9: 20 | AA9: 30 | AB9: 10 | AC9: 20 | AD9: 30 | AE9: 10 | AF9: 20 | AG9: 30 | AH9: 10 | AI9: 20 | AJ9: 30 | AK9: 10 | AL9: 20 | AM9: 30 | AN9: 10 | AO9: 20 | AP9: 30
B10: 0h | D10: 9.2 | E10: 9.6 | F10: 10 | G10: =$C$4*D10/100 -> 0.2208 | H10: 0.2304 | I10: 0.24 | J10: =G10/0.27 -> 0.8177777778 | K10: 0.8533333333 | L10: 0.8888888889 | M10: =J10*$N$3 -> 0.8275911111 | N10: =K10*$N$3 -> 0.8635733333 | O10: 0.8995555556 | P10: =G10/0.46 -> 0.48 | Q10: 0.5008695652 | R10: 0.5217391304 | S10: =P10*$N$4 -> 0.52896 | T10: =Q10*$N$4 -> 0.5519582609 | U10: 0.5749565217 | W10: 0h | Y10: 8.2 | Z10: 8.6 | AA10: 9.1 | AB10: =$X$4*Y10/100 -> 0.1968 | AC10: =$X$4*Z10/100 -> 0.2064 | AD10: 0.2184 | AE10: =AB10/0.27 -> 0.7288888889 | AF10: 0.7644444444 | AG10: 0.8088888889 | AH10: =AE10*$N$3 -> 0.7376355556 | AI10: =AF10*$N$3 -> 0.7736177778 | AJ10: 0.8185955556 | AK10: =AB10/0.46 -> 0.427826087 | AL10: 0.4486956522 | AM10: 0.4747826087 | AN10: =AK10*$N$4 -> 0.4714643478 | AO10: =AL10*$N$4 -> 0.4944626087 | AP10: 0.5232104348
B11: 3h | D11: 11.4 | E11: 13.9 | F11: 17 | G11: 0.2736 | H11: 0.3336 | I11: 0.408 | J11: 1.013333333 | K11: 1.235555556 | L11: 1.511111111 | M11: =J11*$N$3 -> 1.025493333 | N11: 1.250382222 | O11: 1.529244444 | P11: 0.5947826087 | Q11: 0.7252173913 | R11: 0.8869565217 | S11: =P11*$N$4 -> 0.6554504348 | T11: 0.7991895652 | U11: 0.977426087 | W11: 3h | Y11: 8.6 | Z11: 9.5 | AA11: 11 | AB11: =$X$4*Y11/100 -> 0.2064 | AC11: 0.228 | AD11: 0.264 | AE11: 0.7644444444 | AF11: 0.8444444444 | AG11: 0.9777777778 | AH11: =AE11*$N$3 -> 0.7736177778 | AI11: 0.8545777778 | AJ11: 0.9895111111 | AK11: 0.4486956522 | AL11: 0.4956521739 | AM11: 0.5739130435 | AN11: =AK11*$N$4 -> 0.4944626087 | AO11: 0.5462086957 | AP11: 0.6324521739
B12: 6h | D12: 12.8 | E12: 15.9 | F12: 18.8 | G12: 0.3072 | H12: 0.3816 | I12: 0.4512 | J12: 1.137777778 | K12: 1.413333333 | L12: 1.671111111 | M12: 1.151431111 | N12: 1.430293333 | O12: 1.691164444 | P12: 0.667826087 | Q12: 0.8295652174 | R12: 0.9808695652 | S12: 0.7359443478 | T12: 0.9141808696 | U12: 1.080918261 | W12: 6h | Y12: 8.9 | Z12: 10.2 | AA12: 12.3 | AB12: 0.2136 | AC12: 0.2448 | AD12: 0.2952 | AE12: 0.7911111111 | AF12: 0.9066666667 | AG12: 1.093333333 | AH12: 0.8006044444 | AI12: 0.9175466667 | AJ12: 1.106453333 | AK12: 0.4643478261 | AL12: 0.532173913 | AM12: 0.6417391304 | AN12: 0.5117113043 | AO12: 0.5864556522 | AP12: 0.7071965217
B13: 24h | D13: 15.1 | E13: 17.6 | F13: 19.4 | G13: 0.3624 | H13: 0.4224 | I13: 0.4656 | J13: 1.342222222 | K13: 1.564444444 | L13: 1.724444444 | M13: 1.358328889 | N13: 1.583217778 | O13: 1.745137778 | P13: 0.787826087 | Q13: 0.9182608696 | R13: 1.012173913 | S13: 0.8681843478 | T13: 1.011923478 | U13: 1.115415652 | W13: 24h | Y13: 9.9 | Z13: 11.8 | AA13: 14.5 | AB13: 0.2376 | AC13: 0.2832 | AD13: 0.348 | AE13: 0.88 | AF13: 1.048888889 | AG13: 1.288888889 | AH13: 0.89056 | AI13: 1.061475556 | AJ13: 1.304355556 | AK13: 0.5165217391 | AL13: 0.6156521739 | AM13: 0.7565217391 | AN13: 0.5692069565 | AO13: 0.6784486957 | AP13: 0.8336869565
B14: Sans incorporation | D14: 15.3 | E14: 17.7 | F14: 19.3 | G14: 0.3672 | H14: 0.4248 | I14: 0.4632 | J14: 1.36 | K14: 1.573333333 | L14: 1.715555556 | M14: 1.37632 | N14: 1.592213333 | O14: 1.736142222 | P14: 0.7982608696 | Q14: 0.9234782609 | R14: 1.006956522 | S14: 0.8796834783 | T14: 1.017673043 | U14: 1.109666087 | W14: Sans incorporation | Y14: 10.1 | Z14: 12.2 | AA14: 14.7 | AB14: 0.2424 | AC14: 0.2928 | AD14: 0.3528 | AE14: 0.8977777778 | AF14: 1.084444444 | AG14: 1.306666667 | AH14: 0.9085511111 | AI14: 1.097457778 | AJ14: 1.322346667 | AK14: 0.5269565217 | AL14: 0.6365217391 | AM14: 0.7669565217 | AN14: 0.580706087 | AO14: 0.7014469565 | AP14: 0.845186087
B16: Vitesse du vent (km/h) | C16: 10 | W16: Vitesse du vent (km/h) | X16: 10
B17: Délai avant incorporation | C17: Température | D17: 10 | E17: 20 | F17: 30 | G17: 10 | H17: 20 | I17: 30 | J17: 10 | K17: 20 | L17: 30 | M17: 10 | N17: 20 | O17: 30 | P17: 10 | Q17: 20 | R17: 30 | S17: 10 | T17: 20 | U17: 30 | W17: Délai avant incorporation | X17: Température | Y17: 10 | Z17: 20 | AA17: 30 | AB17: 10 | AC17: 20 | AD17: 30 | AE17: 10 | AF17: 20 | AG17: 30 | AH17: 10 | AI17: 20 | AJ17: 30 | AK17: 10 | AL17: 20 | AM17: 30 | AN17: 10 | AO17: 20 | AP17: 30
B18: 0h | D18: 9.5 | E18: 9.9 | F18: 10.1 | G18: =$C$4*D18/100 -> 0.228 | H18: 0.2376 | I18: 0.2424 | J18: =G18/0.27 -> 0.8444444444 | K18: 0.88 | L18: 0.8977777778 | M18: =J18*$N$3 -> 0.8545777778 | N18: =K18*$N$3 -> 0.89056 | O18: 0.9085511111 | P18: =G18/0.46 -> 0.4956521739 | Q18: =H18/0.46 -> 0.5165217391 | R18: 0.5269565217 | S18: =P18*$N$4 -> 0.5462086957 | T18: =Q18*$N$4 -> 0.5692069565 | U18: 0.580706087 | W18: 0h | Y18: 8.4 | Z18: 8.9 | AA18: 9.4 | AB18: =$X$4*Y18/100 -> 0.2016 | AC18: =$X$4*Z18/100 -> 0.2136 | AD18: 0.2256 | AE18: =AB18/0.27 -> 0.7466666667 | AF18: 0.7911111111 | AG18: 0.8355555556 | AH18: =AE18*$N$3 -> 0.7556266667 | AI18: =AF18*$N$3 -> 0.8006044444 | AJ18: 0.8455822222 | AK18: =AB18/0.46 -> 0.4382608696 | AL18: 0.4643478261 | AM18: 0.4904347826 | AN18: =AK18*$N$4 -> 0.4829634783 | AO18: =AL18*$N$4 -> 0.5117113043 | AP18: 0.5404591304
B19: 3h | D19: 13 | E19: 16 | F19: 19 | G19: 0.312 | H19: 0.384 | I19: 0.456 | J19: 1.155555556 | K19: 1.422222222 | L19: 1.688888889 | M19: =J19*$N$3 -> 1.169422222 | N19: 1.439288889 | O19: 1.709155556 | P19: 0.6782608696 | Q19: 0.8347826087 | R19: 0.9913043478 | S19: =P19*$N$4 -> 0.7474434783 | T19: 0.9199304348 | U19: 1.092417391 | W19: 3h | Y19: 9.2 | Z19: 10.4 | AA19: 12.4 | AB19: =$X$4*Y19/100 -> 0.2208 | AC19: 0.2496 | AD19: 0.2976 | AE19: 0.8177777778 | AF19: 0.9244444444 | AG19: 1.102222222 | AH19: =AE19*$N$3 -> 0.8275911111 | AI19: 0.9355377778 | AJ19: 1.115448889 | AK19: 0.48 | AL19: 0.5426086957 | AM19: 0.6469565217 | AN19: =AK19*$N$4 -> 0.52896 | AO19: 0.5979547826 | AP19: 0.712946087
B20: 6h | D20: 14.9 | E20: 18 | F20: 20 | G20: 0.3576 | H20: 0.432 | I20: 0.48 | J20: 1.324444444 | K20: 1.6 | L20: 1.777777778 | M20: 1.340337778 | N20: 1.6192 | O20: 1.799111111 | P20: 0.7773913043 | Q20: 0.9391304348 | R20: 1.043478261 | S20: 0.8566852174 | T20: 1.034921739 | U20: 1.149913043 | W20: 6h | Y20: 9.7 | Z20: 11.5 | AA20: 14.2 | AB20: 0.2328 | AC20: 0.276 | AD20: 0.3408 | AE20: 0.8622222222 | AF20: 1.022222222 | AG20: 1.262222222 | AH20: 0.8725688889 | AI20: 1.034488889 | AJ20: 1.277368889 | AK20: 0.5060869565 | AL20: 0.6 | AM20: 0.7408695652 | AN20: 0.5577078261 | AO20: 0.6612 | AP20: 0.8164382609
B21: 24h | D21: 16.9 | E21: 18.9 | F21: 20.1 | G21: 0.4056 | H21: 0.4536 | I21: 0.4824 | J21: 1.502222222 | K21: 1.68 | L21: 1.786666667 | M21: 1.520248889 | N21: 1.70016 | O21: 1.808106667 | P21: 0.8817391304 | Q21: 0.9860869565 | R21: 1.048695652 | S21: 0.9716765217 | T21: 1.086667826 | U21: 1.155662609 | W21: 24h | Y21: 11.1 | Z21: 13.6 | AA21: 16.4 | AB21: 0.2664 | AC21: 0.3264 | AD21: 0.3936 | AE21: 0.9866666667 | AF21: 1.208888889 | AG21: 1.457777778 | AH21: 0.9985066667 | AI21: 1.223395556 | AJ21: 1.475271111 | AK21: 0.5791304348 | AL21: 0.7095652174 | AM21: 0.8556521739 | AN21: 0.6382017391 | AO21: 0.7819408696 | AP21: 0.9429286957
B22: Sans incorporation | D22: 17 | E22: 18.9 | F22: 20.1 | G22: 0.408 | H22: 0.4536 | I22: 0.4824 | J22: 1.511111111 | K22: 1.68 | L22: 1.786666667 | M22: 1.529244444 | N22: 1.70016 | O22: 1.808106667 | P22: 0.8869565217 | Q22: 0.9860869565 | R22: 1.048695652 | S22: 0.977426087 | T22: 1.086667826 | U22: 1.155662609 | W22: Sans incorporation | Y22: 11.4 | Z22: 13.9 | AA22: 16.5 | AB22: 0.2736 | AC22: 0.3336 | AD22: 0.396 | AE22: 1.013333333 | AF22: 1.235555556 | AG22: 1.466666667 | AH22: 1.025493333 | AI22: 1.250382222 | AJ22: 1.484266667 | AK22: 0.5947826087 | AL22: 0.7252173913 | AM22: 0.8608695652 | AN22: 0.6554504348 | AO22: 0.7991895652 | AP22: 0.9486782609
B24: Vitesse du vent (km/h) | C24: 15 | W24: Vitesse du vent (km/h) | X24: 15
B25: Délai avant incorporation | C25: Température | D25: 10 | E25: 20 | F25: 30 | G25: 10 | H25: 20 | I25: 30 | J25: 10 | K25: 20 | L25: 30 | M25: 10 | N25: 20 | O25: 30 | P25: 10 | Q25: 20 | R25: 30 | S25: 10 | T25: 20 | U25: 30 | W25: Délai avant incorporation | X25: Température | Y25: 10 | Z25: 20 | AA25: 30 | AB25: 10 | AC25: 20 | AD25: 30 | AE25: 10 | AF25: 20 | AG25: 30 | AH25: 10 | AI25: 20 | AJ25: 30 | AK25: 10 | AL25: 20 | AM25: 30 | AN25: 10 | AO25: 20 | AP25: 30
B26: 0h | D26: 9.7 | E26: 10 | F26: 10.2 | G26: =$C$4*D26/100 -> 0.2328 | H26: 0.24 | I26: 0.2448 | J26: =G26/0.27 -> 0.8622222222 | K26: 0.8888888889 | L26: 0.9066666667 | M26: =J26*$N$3 -> 0.8725688889 | N26: =K26*$N$3 -> 0.8995555556 | O26: 0.9175466667 | P26: =G26/0.46 -> 0.5060869565 | Q26: 0.5217391304 | R26: 0.532173913 | S26: =P26*$N$4 -> 0.5577078261 | T26: =Q26*$N$4 -> 0.5749565217 | U26: 0.5864556522 | W26: 0h | Y26: 8.6 | Z26: 9.2 | AA26: 9.6 | AB26: =$X$4*Y26/100 -> 0.2064 | AC26: =$X$4*Z26/100 -> 0.2208 | AD26: 0.2304 | AE26: =AB26/0.27 -> 0.7644444444 | AF26: 0.8177777778 | AG26: 0.8533333333 | AH26: =AE26*$N$3 -> 0.7736177778 | AI26: =AF26*$N$3 -> 0.8275911111 | AJ26: 0.8635733333 | AK26: =AB26/0.46 -> 0.4486956522 | AL26: 0.48 | AM26: 0.5008695652 | AN26: =AK26*$N$4 -> 0.4944626087 | AO26: =AL26*$N$4 -> 0.52896 | AP26: 0.5519582609
B27: 3h | D27: 14.5 | E27: 17.6 | F27: 20.1 | G27: 0.348 | H27: 0.4224 | I27: 0.4824 | J27: 1.288888889 | K27: 1.564444444 | L27: 1.786666667 | M27: =J27*$N$3 -> 1.304355556 | N27: 1.583217778 | O27: 1.808106667 | P27: 0.7565217391 | Q27: 0.9182608696 | R27: 1.048695652 | S27: =P27*$N$4 -> 0.8336869565 | T27: 1.011923478 | U27: 1.155662609 | W27: 3h | Y27: 9.7 | Z27: 11.4 | AA27: 13.8 | AB27: =$X$4*Y27/100 -> 0.2328 | AC27: 0.2736 | AD27: 0.3312 | AE27: 0.8622222222 | AF27: 1.013333333 | AG27: 1.226666667 | AH27: =AE27*$N$3 -> 0.8725688889 | AI27: 1.025493333 | AJ27: 1.241386667 | AK27: 0.5060869565 | AL27: 0.5947826087 | AM27: 0.72 | AN27: =AK27*$N$4 -> 0.5577078261 | AO27: 0.6554504348 | AP27: 0.79344
B28: 6h | D28: 16.5 | E28: 19.2 | F28: 20.5 | G28: 0.396 | H28: 0.4608 | I28: 0.492 | J28: 1.466666667 | K28: 1.706666667 | L28: 1.822222222 | M28: 1.484266667 | N28: 1.727146667 | O28: 1.844088889 | P28: 0.8608695652 | Q28: 1.00173913 | R28: 1.069565217 | S28: 0.9486782609 | T28: 1.103916522 | U28: 1.17866087 | W28: 6h | Y28: 10.5 | Z28: 12.8 | AA28: 15.8 | AB28: 0.252 | AC28: 0.3072 | AD28: 0.3792 | AE28: 0.9333333333 | AF28: 1.137777778 | AG28: 1.404444444 | AH28: 0.9445333333 | AI28: 1.151431111 | AJ28: 1.421297778 | AK28: 0.547826087 | AL28: 0.667826087 | AM28: 0.8243478261 | AN28: 0.6037043478 | AO28: 0.7359443478 | AP28: 0.9084313043
B29: 24h | D29: 18.1 | E29: 19.6 | F29: 20.5 | G29: 0.4344 | H29: 0.4704 | I29: 0.492 | J29: 1.608888889 | K29: 1.742222222 | L29: 1.822222222 | M29: 1.628195556 | N29: 1.763128889 | O29: 1.844088889 | P29: 0.9443478261 | Q29: 1.022608696 | R29: 1.069565217 | S29: 1.040671304 | T29: 1.126914783 | U29: 1.17866087 | W29: 24h | Y29: 12.3 | Z29: 15.1 | AA29: 17.6 | AB29: 0.2952 | AC29: 0.3624 | AD29: 0.4224 | AE29: 1.093333333 | AF29: 1.342222222 | AG29: 1.564444444 | AH29: 1.106453333 | AI29: 1.358328889 | AJ29: 1.583217778 | AK29: 0.6417391304 | AL29: 0.787826087 | AM29: 0.9182608696 | AN29: 0.7071965217 | AO29: 0.8681843478 | AP29: 1.011923478
B30: Sans incorporation | D30: 18.1 | E30: 19.6 | F30: 20.5 | G30: =$C$4*D30/100 -> 0.4344 | H30: =$C$4*E30/100 -> 0.4704 | I30: =$C$4*F30/100 -> 0.492 | J30: =G30/0.27 -> 1.608888889 | K30: =H30/0.27 -> 1.742222222 | L30: =I30/0.27 -> 1.822222222 | M30: =J30*$N$3 -> 1.628195556 | N30: =K30*$N$3 -> 1.763128889 | O30: =L30*$N$3 -> 1.844088889 | P30: =G30/0.46 -> 0.9443478261 | Q30: =H30/0.46 -> 1.022608696 | R30: =I30/0.46 -> 1.069565217 | S30: =P30*$N$4 -> 1.040671304 | T30: =Q30*$N$4 -> 1.126914783 | U30: =R30*$N$4 -> 1.17866087 | W30: Sans incorporation | Y30: 12.6 | Z30: 15.2 | AA30: 17.6 | AB30: 0.3024 | AC30: 0.3648 | AD30: 0.4224 | AE30: 1.12 | AF30: 1.351111111 | AG30: 1.564444444 | AH30: 1.13344 | AI30: 1.367324444 | AJ30: 1.583217778 | AK30: 0.6573913043 | AL30: 0.7930434783 | AM30: 0.9182608696 | AN30: 0.7244452174 | AO30: 0.873933913 | AP30: 1.011923478
B32: Vitesse du vent (km/h) | C32: 25 | W32: Vitesse du vent (km/h) | X32: 25
B33: Délai avant incorporation | C33: Température | D33: 10 | E33: 20 | F33: 30 | G33: 10 | H33: 20 | I33: 30 | J33: 10 | K33: 20 | L33: 30 | M33: 10 | N33: 20 | O33: 30 | P33: 10 | Q33: 20 | R33: 30 | S33: 10 | T33: 20 | U33: 30 | W33: Délai avant incorporation | X33: Température | Y33: 10 | Z33: 20 | AA33: 30 | AB33: 10 | AC33: 20 | AD33: 30 | AE33: 10 | AF33: 20 | AG33: 30 | AH33: 10 | AI33: 20 | AJ33: 30 | AK33: 10 | AL33: 20 | AM33: 30 | AN33: 10 | AO33: 20 | AP33: 30
B34: 0h | D34: 10 | E34: 10.2 | F34: 10.3 | G34: =$C$4*D34/100 -> 0.24 | H34: 0.2448 | I34: 0.2472 | J34: =G34/0.27 -> 0.8888888889 | K34: 0.9066666667 | L34: 0.9155555556 | M34: =J34*$N$3 -> 0.8995555556 | N34: =K34*$N$3 -> 0.9175466667 | O34: 0.9265422222 | P34: =G34/0.46 -> 0.5217391304 | Q34: 0.532173913 | R34: 0.5373913043 | S34: =P34*$N$4 -> 0.5749565217 | T34: =Q34*$N$4 -> 0.5864556522 | U34: 0.5922052174 | W34: 0h | Y34: 9.1 | Z34: 9.5 | AA34: 9.9 | AB34: =$X$4*Y34/100 -> 0.2184 | AC34: =$X$4*Z34/100 -> 0.228 | AD34: 0.2376 | AE34: =AB34/0.27 -> 0.8088888889 | AF34: 0.8444444444 | AG34: 0.88 | AH34: =AE34*$N$3 -> 0.8185955556 | AI34: =AF34*$N$3 -> 0.8545777778 | AJ34: 0.89056 | AK34: =AB34/0.46 -> 0.4747826087 | AL34: 0.4956521739 | AM34: 0.5165217391 | AN34: =AK34*$N$4 -> 0.5232104348 | AO34: =AL34*$N$4 -> 0.5462086957 | AP34: 0.5692069565
B35: 3h | D35: 17 | E35: 19.7 | F35: 20.8 | G35: 0.408 | H35: 0.4728 | I35: 0.4992 | J35: 1.511111111 | K35: 1.751111111 | L35: 1.848888889 | M35: =J35*$N$3 -> 1.529244444 | N35: 1.772124444 | O35: 1.871075556 | P35: 0.8869565217 | Q35: 1.027826087 | R35: 1.085217391 | S35: =P35*$N$4 -> 0.977426087 | T35: 1.132664348 | U35: 1.195909565 | W35: 3h | Y35: 11 | Z35: 13.3 | AA35: 16.3 | AB35: =$X$4*Y35/100 -> 0.264 | AC35: 0.3192 | AD35: 0.3912 | AE35: 0.9777777778 | AF35: 1.182222222 | AG35: 1.448888889 | AH35: =AE35*$N$3 -> 0.9895111111 | AI35: 1.196408889 | AJ35: 1.466275556 | AK35: 0.5739130435 | AL35: 0.6939130435 | AM35: 0.8504347826 | AN35: =AK35*$N$4 -> 0.6324521739 | AO35: 0.7646921739 | AP35: 0.9371791304
B36: 6h | D36: 18.8 | E36: 20.3 | F36: 20.9 | G36: 0.4512 | H36: 0.4872 | I36: 0.5016 | J36: 1.671111111 | K36: 1.804444444 | L36: 1.857777778 | M36: 1.691164444 | N36: 1.826097778 | O36: 1.880071111 | P36: 0.9808695652 | Q36: 1.059130435 | R36: 1.090434783 | S36: 1.080918261 | T36: 1.167161739 | U36: 1.20165913 | W36: 6h | Y36: 12.3 | Z36: 15.2 | AA36: 18.2 | AB36: 0.2952 | AC36: 0.3648 | AD36: 0.4368 | AE36: 1.093333333 | AF36: 1.351111111 | AG36: 1.617777778 | AH36: 1.106453333 | AI36: 1.367324444 | AJ36: 1.637191111 | AK36: 0.6417391304 | AL36: 0.7930434783 | AM36: 0.9495652174 | AN36: 0.7071965217 | AO36: 0.873933913 | AP36: 1.04642087
B37: 24h | D37: 19.4 | E37: 20.4 | F37: 20.9 | G37: 0.4656 | H37: 0.4896 | I37: 0.5016 | J37: 1.724444444 | K37: 1.813333333 | L37: 1.857777778 | M37: 1.745137778 | N37: 1.835093333 | O37: 1.880071111 | P37: 1.012173913 | Q37: 1.064347826 | R37: 1.090434783 | S37: 1.115415652 | T37: 1.172911304 | U37: 1.20165913 | W37: 24h | Y37: 14.5 | Z37: 17.2 | AA37: 19.1 | AB37: 0.348 | AC37: 0.4128 | AD37: 0.4584 | AE37: 1.288888889 | AF37: 1.528888889 | AG37: 1.697777778 | AH37: 1.304355556 | AI37: 1.547235556 | AJ37: 1.718151111 | AK37: 0.7565217391 | AL37: 0.8973913043 | AM37: 0.9965217391 | AN37: 0.8336869565 | AO37: 0.9889252174 | AP37: 1.098166957
B38: Sans incorporation | D38: 19.4 | E38: 20.4 | F38: 20.9 | G38: 0.4656 | H38: 0.4896 | I38: 0.5016 | J38: 1.724444444 | K38: 1.813333333 | L38: 1.857777778 | M38: 1.745137778 | N38: 1.835093333 | O38: 1.880071111 | P38: 1.012173913 | Q38: 1.064347826 | R38: 1.090434783 | S38: =P38*$N$4 -> 1.115415652 | T38: 1.172911304 | U38: 1.20165913 | W38: Sans incorporation | Y38: 14.7 | Z38: 17.2 | AA38: 19.1 | AB38: 0.3528 | AC38: 0.4128 | AD38: 0.4584 | AE38: 1.306666667 | AF38: 1.528888889 | AG38: 1.697777778 | AH38: 1.322346667 | AI38: 1.547235556 | AJ38: 1.718151111 | AK38: 0.7669565217 | AL38: 0.8973913043 | AM38: 0.9965217391 | AN38: 0.845186087 | AO38: 0.9889252174 | AP38: 1.098166957
B41: LISIER DE PORC | W41: LISIER DE PORC
B42: M.S (%) | C42: 7 | J42: Prix 2025 | L42: Formule | M42: $/t | N42: $/kg | W42: M.S (%) | X42: 7 | AE42: Prix 2025 | AG42: Formule | AH42: $/t | AI42: $/kg
B43: N total (kg/t) | C43: 3.5 | J43: Nitrate d'ammonium calcique (CAN) | L43: 27-0-0 | M43: 1012 | N43: =M43/1000 -> 1.012 | W43: N total (kg/t) | X43: 3.5 | AE43: Nitrate d'ammonium calcique (CAN) | AG43: 27-0-0 | AH43: 1012 | AI43: =AH43/1000 -> 1.012
B44: Azote ammoniacal total ou N-NH4+ (kg/t) | C44: 2.4 | J44: Urée | L44: 46-0-0 | M44: 1102 | N44: =M44/1000 -> 1.102 | W44: Azote ammoniacal total ou N-NH4+ (kg/t) | X44: 2.4 | AE44: Urée | AG44: 46-0-0 | AH44: 1102 | AI44: =AH44/1000 -> 1.102
B46: Aspersion basse | D46: Pourcentage d’azote ammoniacal (% N-NH4+) appliqué qui est émis sous forme d’ammoniac (N-NH3) lors des 72 heures suivant l'épandage | G46: Émissions cumulatives de NH3 (kg/t_lisier_épandu) | J46: =$J$3 -> Nitrate d'ammonium calcique (CAN) | P46: =$J$4 -> Urée | W46: Pendillards | Y46: Pourcentage d’azote ammoniacal (% N-NH4+) appliqué qui est émis sous forme d’ammoniac (N-NH3) lors des 72 heures suivant l'épandage | AB46: Émissions cumulatives de NH3 (kg/t_lisier_épandu) | AE46: =$J$3 -> Nitrate d'ammonium calcique (CAN) | AK46: =$J$4 -> Urée
J47: Masse de fertilisant requise pour compenser l'azote perdu (kg/t de lisier épandu) | M47: $/t de lisier épandu | P47: Masse de fertilisant requise pour compenser l'azote perdu (kg/t de lisier épandu) | S47: $/t de lisier épandu | AE47: Masse de fertilisant requise pour compenser l'azote perdu (kg/t de lisier épandu) | AH47: $/t de lisier épandu | AK47: Masse de fertilisant requise pour compenser l'azote perdu (kg/t de lisier épandu) | AN47: $/t de lisier épandu
B48: Vitesse du vent (km/h) | C48: 5 | W48: Vitesse du vent (km/h) | X48: 5
B49: Délai avant incorporation | C49: Température | D49: 10 | E49: 20 | F49: 30 | G49: 10 | H49: 20 | I49: 30 | J49: 10 | K49: 20 | L49: 30 | M49: 10 | N49: 20 | O49: 30 | P49: 10 | Q49: 20 | R49: 30 | S49: 10 | T49: 20 | U49: 30 | W49: Délai avant incorporation | X49: Température | Y49: 10 | Z49: 20 | AA49: 30 | AB49: 10 | AC49: 20 | AD49: 30 | AE49: 10 | AF49: 20 | AG49: 30 | AH49: 10 | AI49: 20 | AJ49: 30 | AK49: 10 | AL49: 20 | AM49: 30 | AN49: 10 | AO49: 20 | AP49: 30
B50: 0h | D50: 12.1 | E50: 13.7 | F50: 15 | G50: =$C$4*D50/100 -> 0.2904 | H50: 0.3288 | I50: 0.36 | J50: =G50/0.27 -> 1.075555556 | K50: 1.217777778 | L50: 1.333333333 | M50: =J50*$N$3 -> 1.088462222 | N50: =K50*$N$3 -> 1.232391111 | O50: 1.349333333 | P50: =G50/0.46 -> 0.6313043478 | Q50: 0.7147826087 | R50: 0.7826086957 | S50: =P50*$N$4 -> 0.6956973913 | T50: =Q50*$N$4 -> 0.7876904348 | U50: 0.8624347826 | W50: 0h | Y50: 9 | Z50: 10.1 | AA50: 11.7 | AB50: =$X$4*Y50/100 -> 0.216 | AC50: =$X$4*Z50/100 -> 0.2424 | AD50: 0.2808 | AE50: =AB50/0.27 -> 0.8 | AF50: 0.8977777778 | AG50: 1.04 | AH50: =AE50*$N$3 -> 0.8096 | AI50: =AF50*$N$3 -> 0.9085511111 | AJ50: 1.05248 | AK50: =AB50/0.46 -> 0.4695652174 | AL50: 0.5269565217 | AM50: 0.6104347826 | AN50: =AK50*$N$4 -> 0.5174608696 | AO50: =AL50*$N$4 -> 0.580706087 | AP50: 0.6726991304
B51: 3h | D51: 18 | E51: 25.3 | F51: 35.3 | G51: 0.432 | H51: 0.6072 | I51: 0.8472 | J51: 1.6 | K51: 2.248888889 | L51: 3.137777778 | M51: =J51*$N$3 -> 1.6192 | N51: 2.275875556 | O51: 3.175431111 | P51: 0.9391304348 | Q51: 1.32 | R51: 1.84173913 | S51: =P51*$N$4 -> 1.034921739 | T51: 1.45464 | U51: 2.029596522 | W51: 3h | Y51: 10.1 | Z51: 12.6 | AA51: 16.8 | AB51: =$X$4*Y51/100 -> 0.2424 | AC51: 0.3024 | AD51: 0.4032 | AE51: 0.8977777778 | AF51: 1.12 | AG51: 1.493333333 | AH51: =AE51*$N$3 -> 0.9085511111 | AI51: 1.13344 | AJ51: 1.511253333 | AK51: 0.5269565217 | AL51: 0.6573913043 | AM51: 0.8765217391 | AN51: =AK51*$N$4 -> 0.580706087 | AO51: 0.7244452174 | AP51: 0.9659269565
B52: 6h | D52: 22 | E52: 31.6 | F52: 42 | G52: 0.528 | H52: 0.7584 | I52: 1.008 | J52: 1.955555556 | K52: 2.808888889 | L52: 3.733333333 | M52: 1.979022222 | N52: 2.842595556 | O52: 3.778133333 | P52: 1.147826087 | Q52: 1.648695652 | R52: 2.191304348 | S52: 1.264904348 | T52: 1.816862609 | U52: 2.414817391 | W52: 6h | Y52: 11 | Z52: 14.4 | AA52: 20.3 | AB52: 0.264 | AC52: 0.3456 | AD52: 0.4872 | AE52: 0.9777777778 | AF52: 1.28 | AG52: 1.804444444 | AH52: 0.9895111111 | AI52: 1.29536 | AJ52: 1.826097778 | AK52: 0.5739130435 | AL52: 0.7513043478 | AM52: 1.059130435 | AN52: 0.6324521739 | AO52: 0.8279373913 | AP52: 1.167161739
B53: 24h | D53: 29.5 | E53: 38.6 | F53: 45.4 | G53: 0.708 | H53: 0.9264 | I53: 1.0896 | J53: 2.622222222 | K53: 3.431111111 | L53: 4.035555556 | M53: 2.653688889 | N53: 3.472284444 | O53: 4.083982222 | P53: 1.539130435 | Q53: 2.013913043 | R53: 2.368695652 | S53: 1.696121739 | T53: 2.219332174 | U53: 2.610302609 | W53: 24h | Y53: 13.5 | Z53: 19.1 | AA53: 27.4 | AB53: 0.324 | AC53: 0.4584 | AD53: 0.6576 | AE53: 1.2 | AF53: 1.697777778 | AG53: 2.435555556 | AH53: 1.2144 | AI53: 1.718151111 | AJ53: 2.464782222 | AK53: 0.7043478261 | AL53: 0.9965217391 | AM53: 1.429565217 | AN53: 0.7761913043 | AO53: 1.098166957 | AP53: 1.57538087
B54: Sans incorporation | D54: 30.2 | E54: 38.8 | F54: 45.4 | G54: 0.7248 | H54: 0.9312 | I54: 1.0896 | J54: 2.684444444 | K54: 3.448888889 | L54: 4.035555556 | M54: 2.716657778 | N54: 3.490275556 | O54: 4.083982222 | P54: 1.575652174 | Q54: 2.024347826 | R54: 2.368695652 | S54: 1.736368696 | T54: 2.230831304 | U54: 2.610302609 | W54: Sans incorporation | Y54: 14.2 | Z54: 20.1 | AA54: 28.3 | AB54: 0.3408 | AC54: 0.4824 | AD54: 0.6792 | AE54: 1.262222222 | AF54: 1.786666667 | AG54: 2.515555556 | AH54: 1.277368889 | AI54: 1.808106667 | AJ54: 2.545742222 | AK54: 0.7408695652 | AL54: 1.048695652 | AM54: 1.476521739 | AN54: 0.8164382609 | AO54: 1.155662609 | AP54: 1.627126957
B56: Vitesse du vent (km/h) | C56: 10 | W56: Vitesse du vent (km/h) | X56: 10
B57: Délai avant incorporation | C57: Température | D57: 10 | E57: 20 | F57: 30 | G57: 10 | H57: 20 | I57: 30 | J57: 10 | K57: 20 | L57: 30 | M57: 10 | N57: 20 | O57: 30 | P57: 10 | Q57: 20 | R57: 30 | S57: 10 | T57: 20 | U57: 30 | W57: Délai avant incorporation | X57: Température | Y57: 10 | Z57: 20 | AA57: 30 | AB57: 10 | AC57: 20 | AD57: 30 | AE57: 10 | AF57: 20 | AG57: 30 | AH57: 10 | AI57: 20 | AJ57: 30 | AK57: 10 | AL57: 20 | AM57: 30 | AN57: 10 | AO57: 20 | AP57: 30
B58: 0h | D58: 13.2 | E58: 14.7 | F58: 15.6 | G58: =$C$4*D58/100 -> 0.3168 | H58: 0.3528 | I58: 0.3744 | J58: =G58/0.27 -> 1.173333333 | K58: 1.306666667 | L58: 1.386666667 | M58: =J58*$N$3 -> 1.187413333 | N58: =K58*$N$3 -> 1.322346667 | O58: 1.403306667 | P58: =G58/0.46 -> 0.6886956522 | Q58: 0.7669565217 | R58: 0.8139130435 | S58: =P58*$N$4 -> 0.7589426087 | T58: =Q58*$N$4 -> 0.845186087 | U58: 0.8969321739 | W58: 0h | Y58: 9.7 | Z58: 11.2 | AA58: 12.9 | AB58: =$X$4*Y58/100 -> 0.2328 | AC58: =$X$4*Z58/100 -> 0.2688 | AD58: 0.3096 | AE58: =AB58/0.27 -> 0.8622222222 | AF58: 0.9955555556 | AG58: 1.146666667 | AH58: =AE58*$N$3 -> 0.8725688889 | AI58: =AF58*$N$3 -> 1.007502222 | AJ58: 1.160426667 | AK58: =AB58/0.46 -> 0.5060869565 | AL58: 0.5843478261 | AM58: 0.6730434783 | AN58: =AK58*$N$4 -> 0.5577078261 | AO58: =AL58*$N$4 -> 0.6439513043 | AP58: 0.741693913
B59: 3h | D59: 22.7 | E59: 31.9 | F59: 42.6 | G59: 0.5448 | H59: 0.7656 | I59: 1.0224 | J59: 2.017777778 | K59: 2.835555556 | L59: 3.786666667 | M59: =J59*$N$3 -> 2.041991111 | N59: 2.869582222 | O59: 3.832106667 | P59: 1.184347826 | Q59: 1.664347826 | R59: 2.222608696 | S59: =P59*$N$4 -> 1.305151304 | T59: 1.834111304 | U59: 2.449314783 | W59: 3h | Y59: 11.6 | Z59: 15.2 | AA59: 21 | AB59: =$X$4*Y59/100 -> 0.2784 | AC59: 0.3648 | AD59: 0.504 | AE59: 1.031111111 | AF59: 1.351111111 | AG59: 1.866666667 | AH59: =AE59*$N$3 -> 1.043484444 | AI59: 1.367324444 | AJ59: 1.889066667 | AK59: 0.6052173913 | AL59: 0.7930434783 | AM59: 1.095652174 | AN59: =AK59*$N$4 -> 0.6669495652 | AO59: 0.873933913 | AP59: 1.207408696
B60: 6h | D60: 28.3 | E60: 38.9 | F60: 47.4 | G60: 0.6792 | H60: 0.9336 | I60: 1.1376 | J60: 2.515555556 | K60: 3.457777778 | L60: 4.213333333 | M60: 2.545742222 | N60: 3.499271111 | O60: 4.263893333 | P60: 1.476521739 | Q60: 2.029565217 | R60: 2.473043478 | S60: 1.627126957 | T60: 2.23658087 | U60: 2.725293913 | W60: 6h | Y60: 13.1 | Z60: 18.1 | AA60: 26.1 | AB60: 0.3144 | AC60: 0.4344 | AD60: 0.6264 | AE60: 1.164444444 | AF60: 1.608888889 | AG60: 2.32 | AH60: 1.178417778 | AI60: 1.628195556 | AJ60: 2.34784 | AK60: 0.6834782609 | AL60: 0.9443478261 | AM60: 1.36173913 | AN60: 0.7531930435 | AO60: 1.040671304 | AP60: 1.500636522
B61: 24h | D61: 35.9 | E61: 43.5 | F61: 48.4 | G61: 0.8616 | H61: 1.044 | I61: 1.1616 | J61: 3.191111111 | K61: 3.866666667 | L61: 4.302222222 | M61: 3.229404444 | N61: 3.913066667 | O61: 4.353848889 | P61: 1.873043478 | Q61: 2.269565217 | R61: 2.525217391 | S61: 2.064093913 | T61: 2.50106087 | U61: 2.782789565 | W61: 24h | Y61: 17 | Z61: 24.5 | AA61: 33.9 | AB61: 0.408 | AC61: 0.588 | AD61: 0.8136 | AE61: 1.511111111 | AF61: 2.177777778 | AG61: 3.013333333 | AH61: 1.529244444 | AI61: 2.203911111 | AJ61: 3.049493333 | AK61: 0.8869565217 | AL61: 1.27826087 | AM61: 1.768695652 | AN61: 0.977426087 | AO61: 1.408643478 | AP61: 1.949102609
B62: Sans incorporation | D62: 36.2 | E62: 43.5 | F62: 48.4 | G62: 0.8688 | H62: 1.044 | I62: 1.1616 | J62: 3.217777778 | K62: 3.866666667 | L62: 4.302222222 | M62: 3.256391111 | N62: 3.913066667 | O62: 4.353848889 | P62: 1.888695652 | Q62: 2.269565217 | R62: 2.525217391 | S62: 2.081342609 | T62: 2.50106087 | U62: 2.782789565 | W62: Sans incorporation | Y62: 18 | Z62: 25.5 | AA62: 34.3 | AB62: 0.432 | AC62: 0.612 | AD62: 0.8232 | AE62: 1.6 | AF62: 2.266666667 | AG62: 3.048888889 | AH62: 1.6192 | AI62: 2.293866667 | AJ62: 3.085475556 | AK62: 0.9391304348 | AL62: 1.330434783 | AM62: 1.789565217 | AN62: 1.034921739 | AO62: 1.46613913 | AP62: 1.97210087
B64: Vitesse du vent (km/h) | C64: 15 | W64: Vitesse du vent (km/h) | X64: 15
B65: Délai avant incorporation | C65: Température | D65: 10 | E65: 20 | F65: 30 | G65: 10 | H65: 20 | I65: 30 | J65: 10 | K65: 20 | L65: 30 | M65: 10 | N65: 20 | O65: 30 | P65: 10 | Q65: 20 | R65: 30 | S65: 10 | T65: 20 | U65: 30 | W65: Délai avant incorporation | X65: Température | Y65: 10 | Z65: 20 | AA65: 30 | AB65: 10 | AC65: 20 | AD65: 30 | AE65: 10 | AF65: 20 | AG65: 30 | AH65: 10 | AI65: 20 | AJ65: 30 | AK65: 10 | AL65: 20 | AM65: 30 | AN65: 10 | AO65: 20 | AP65: 30
B66: 0h | D66: 14 | E66: 15.2 | F66: 15.9 | G66: =$C$4*D66/100 -> 0.336 | H66: 0.3648 | I66: 0.3816 | J66: =G66/0.27 -> 1.244444444 | K66: 1.351111111 | L66: 1.413333333 | M66: =J66*$N$3 -> 1.259377778 | N66: =K66*$N$3 -> 1.367324444 | O66: 1.430293333 | P66: =G66/0.46 -> 0.7304347826 | Q66: 0.7930434783 | R66: 0.8295652174 | S66: =P66*$N$4 -> 0.8049391304 | T66: =Q66*$N$4 -> 0.873933913 | U66: 0.9141808696 | W66: 0h | Y66: 10.4 | Z66: 12 | AA66: 13.7 | AB66: =$X$4*Y66/100 -> 0.2496 | AC66: =$X$4*Z66/100 -> 0.288 | AD66: 0.3288 | AE66: =AB66/0.27 -> 0.9244444444 | AF66: 1.066666667 | AG66: 1.217777778 | AH66: =AE66*$N$3 -> 0.9355377778 | AI66: =AF66*$N$3 -> 1.079466667 | AJ66: 1.232391111 | AK66: =AB66/0.46 -> 0.5426086957 | AL66: 0.6260869565 | AM66: 0.7147826087 | AN66: =AK66*$N$4 -> 0.5979547826 | AO66: =AL66*$N$4 -> 0.6899478261 | AP66: 0.7876904348
B67: 3h | D67: 27.2 | E67: 37.5 | F67: 47.2 | G67: 0.6528 | H67: 0.9 | I67: 1.1328 | J67: 2.417777778 | K67: 3.333333333 | L67: 4.195555556 | M67: =J67*$N$3 -> 2.446791111 | N67: 3.373333333 | O67: 4.245902222 | P67: 1.419130435 | Q67: 1.956521739 | R67: 2.462608696 | S67: =P67*$N$4 -> 1.563881739 | T67: 2.156086957 | U67: 2.713794783 | W67: 3h | Y67: 13.2 | Z67: 17.9 | AA67: 25.2 | AB67: =$X$4*Y67/100 -> 0.3168 | AC67: 0.4296 | AD67: 0.6048 | AE67: 1.173333333 | AF67: 1.591111111 | AG67: 2.24 | AH67: =AE67*$N$3 -> 1.187413333 | AI67: 1.610204444 | AJ67: 2.26688 | AK67: 0.6886956522 | AL67: 0.9339130435 | AM67: 1.314782609 | AN67: =AK67*$N$4 -> 0.7589426087 | AO67: 1.029172174 | AP67: 1.448890435
B68: 6h | D68: 33.7 | E68: 43.9 | F68: 49.8 | G68: 0.8088 | H68: 1.0536 | I68: 1.1952 | J68: 2.995555556 | K68: 3.902222222 | L68: 4.426666667 | M68: 3.031502222 | N68: 3.949048889 | O68: 4.479786667 | P68: 1.75826087 | Q68: 2.290434783 | R68: 2.59826087 | S68: 1.937603478 | T68: 2.52405913 | U68: 2.863283478 | W68: 6h | Y68: 15.4 | Z68: 21.9 | AA68: 31.4 | AB68: 0.3696 | AC68: 0.5256 | AD68: 0.7536 | AE68: 1.368888889 | AF68: 1.946666667 | AG68: 2.791111111 | AH68: 1.385315556 | AI68: 1.970026667 | AJ68: 2.824604444 | AK68: 0.8034782609 | AL68: 1.142608696 | AM68: 1.63826087 | AN68: 0.8854330435 | AO68: 1.259154783 | AP68: 1.805363478
B69: 24h | D69: 40.2 | E69: 46.4 | F69: 50.1 | G69: 0.9648 | H69: 1.1136 | I69: 1.2024 | J69: 3.573333333 | K69: 4.124444444 | L69: 4.453333333 | M69: 3.616213333 | N69: 4.173937778 | O69: 4.506773333 | P69: 2.097391304 | Q69: 2.420869565 | R69: 2.613913043 | S69: 2.311325217 | T69: 2.667798261 | U69: 2.880532174 | W69: 24h | Y69: 20.5 | Z69: 29.3 | AA69: 38.5 | AB69: 0.492 | AC69: 0.7032 | AD69: 0.924 | AE69: 1.822222222 | AF69: 2.604444444 | AG69: 3.422222222 | AH69: 1.844088889 | AI69: 2.635697778 | AJ69: 3.463288889 | AK69: 1.069565217 | AL69: 1.528695652 | AM69: 2.008695652 | AN69: 1.17866087 | AO69: 1.684622609 | AP69: 2.213582609
B70: Sans incorporation | D70: 40.3 | E70: 46.4 | F70: 50.1 | G70: 0.9672 | H70: 1.1136 | I70: 1.2024 | J70: 3.582222222 | K70: 4.124444444 | L70: 4.453333333 | M70: 3.625208889 | N70: 4.173937778 | O70: 4.506773333 | P70: 2.102608696 | Q70: 2.420869565 | R70: 2.613913043 | S70: 2.317074783 | T70: 2.667798261 | U70: 2.880532174 | W70: Sans incorporation | Y70: 21.6 | Z70: 30.1 | AA70: 38.6 | AB70: 0.5184 | AC70: 0.7224 | AD70: 0.9264 | AE70: 1.92 | AF70: 2.675555556 | AG70: 3.431111111 | AH70: 1.94304 | AI70: 2.707662222 | AJ70: 3.472284444 | AK70: 1.126956522 | AL70: 1.570434783 | AM70: 2.013913043 | AN70: 1.241906087 | AO70: 1.73061913 | AP70: 2.219332174
B72: Vitesse du vent (km/h) | C72: 25 | W72: Vitesse du vent (km/h) | X72: 25
B73: Délai avant incorporation | C73: Température | D73: 10 | E73: 20 | F73: 30 | G73: 10 | H73: 20 | I73: 30 | J73: 10 | K73: 20 | L73: 30 | M73: 10 | N73: 20 | O73: 30 | P73: 10 | Q73: 20 | R73: 30 | S73: 10 | T73: 20 | U73: 30 | W73: Délai avant incorporation | X73: Température | Y73: 10 | Z73: 20 | AA73: 30 | AB73: 10 | AC73: 20 | AD73: 30 | AE73: 10 | AF73: 20 | AG73: 30 | AH73: 10 | AI73: 20 | AJ73: 30 | AK73: 10 | AL73: 20 | AM73: 30 | AN73: 10 | AO73: 20 | AP73: 30
B74: 0h | D74: 15 | E74: 15.8 | F74: 16.3 | G74: =$C$4*D74/100 -> 0.36 | H74: 0.3792 | I74: 0.3912 | J74: =G74/0.27 -> 1.333333333 | K74: 1.404444444 | L74: 1.448888889 | M74: =J74*$N$3 -> 1.349333333 | N74: =K74*$N$3 -> 1.421297778 | O74: 1.466275556 | P74: =G74/0.46 -> 0.7826086957 | Q74: 0.8243478261 | R74: 0.8504347826 | S74: =P74*$N$4 -> 0.8624347826 | T74: =Q74*$N$4 -> 0.9084313043 | U74: 0.9371791304 | W74: 0h | Y74: 11.7 | Z74: 13.4 | AA74: 14.8 | AB74: =$X$4*Y74/100 -> 0.2808 | AC74: =$X$4*Z74/100 -> 0.3216 | AD74: 0.3552 | AE74: =AB74/0.27 -> 1.04 | AF74: 1.191111111 | AG74: 1.315555556 | AH74: =AE74*$N$3 -> 1.05248 | AI74: =AF74*$N$3 -> 1.205404444 | AJ74: 1.331342222 | AK74: =AB74/0.46 -> 0.6104347826 | AL74: 0.6991304348 | AM74: 0.772173913 | AN74: =AK74*$N$4 -> 0.6726991304 | AO74: =AL74*$N$4 -> 0.7704417391 | AP74: 0.8509356522
B75: 3h | D75: 35.4 | E75: 45.6 | F75: 51.3 | G75: 0.8496 | H75: 1.0944 | I75: 1.2312 | J75: 3.146666667 | K75: 4.053333333 | L75: 4.56 | M75: =J75*$N$3 -> 3.184426667 | N75: 4.101973333 | O75: 4.61472 | P75: 1.846956522 | Q75: 2.379130435 | R75: 2.676521739 | S75: =P75*$N$4 -> 2.035346087 | T75: 2.621801739 | U75: 2.949526957 | W75: 3h | Y75: 16.8 | Z75: 23.5 | AA75: 33 | AB75: =$X$4*Y75/100 -> 0.4032 | AC75: 0.564 | AD75: 0.792 | AE75: 1.493333333 | AF75: 2.088888889 | AG75: 2.933333333 | AH75: =AE75*$N$3 -> 1.511253333 | AI75: 2.113955556 | AJ75: 2.968533333 | AK75: 0.8765217391 | AL75: 1.226086957 | AM75: 1.72173913 | AN75: =AK75*$N$4 -> 0.9659269565 | AO75: 1.351147826 | AP75: 1.897356522
B76: 6h | D76: 42.1 | E76: 49 | F76: 51.7 | G76: 1.0104 | H76: 1.176 | I76: 1.2408 | J76: 3.742222222 | K76: 4.355555556 | L76: 4.595555556 | M76: 3.787128889 | N76: 4.407822222 | O76: 4.650702222 | P76: 2.196521739 | Q76: 2.556521739 | R76: 2.697391304 | S76: 2.420566957 | T76: 2.817286957 | U76: 2.972525217 | W76: 6h | Y76: 20.4 | Z76: 29.3 | AA76: 39.9 | AB76: 0.4896 | AC76: 0.7032 | AD76: 0.9576 | AE76: 1.813333333 | AF76: 2.604444444 | AG76: 3.546666667 | AH76: 1.835093333 | AI76: 2.635697778 | AJ76: 3.589226667 | AK76: 1.064347826 | AL76: 1.528695652 | AM76: 2.08173913 | AN76: 1.172911304 | AO76: 1.684622609 | AP76: 2.294076522
B77: 24h | D77: 45.4 | E77: 49.5 | F77: 51.7 | G77: 1.0896 | H77: 1.188 | I77: 1.2408 | J77: 4.035555556 | K77: 4.4 | L77: 4.595555556 | M77: 4.083982222 | N77: 4.4528 | O77: 4.650702222 | P77: 2.368695652 | Q77: 2.582608696 | R77: 2.697391304 | S77: 2.610302609 | T77: 2.846034783 | U77: 2.972525217 | W77: 24h | Y77: 27.4 | Z77: 36.8 | AA77: 44.2 | AB77: 0.6576 | AC77: 0.8832 | AD77: 1.0608 | AE77: 2.435555556 | AF77: 3.271111111 | AG77: 3.928888889 | AH77: 2.464782222 | AI77: 3.310364444 | AJ77: 3.976035556 | AK77: 1.429565217 | AL77: 1.92 | AM77: 2.306086957 | AN77: 1.57538087 | AO77: 2.11584 | AP77: 2.541307826
B78: Sans incorporation | D78: 45.4 | E78: 49.5 | F78: 51.7 | G78: 1.0896 | H78: 1.188 | I78: 1.2408 | J78: 4.035555556 | K78: 4.4 | L78: 4.595555556 | M78: 4.083982222 | N78: 4.4528 | O78: 4.650702222 | P78: 2.368695652 | Q78: 2.582608696 | R78: 2.697391304 | S78: 2.610302609 | T78: 2.846034783 | U78: 2.972525217 | W78: Sans incorporation | Y78: 28.3 | Z78: 37.1 | AA78: 44.2 | AB78: 0.6792 | AC78: 0.8904 | AD78: 1.0608 | AE78: 2.515555556 | AF78: 3.297777778 | AG78: 3.928888889 | AH78: 2.545742222 | AI78: 3.337351111 | AJ78: 3.976035556 | AK78: 1.476521739 | AL78: 1.935652174 | AM78: 2.306086957 | AN78: 1.627126957 | AO78: 2.133088696 | AP78: 2.541307826

Sheet Lisier de vache_72h-12h (hidden)
B1: LISIER DE VACHE | H1: LISIER DE VACHE
B2: M.S (%) | C2: 3.5 | H2: M.S (%) | I2: 3.5
B3: N total (kg/t) | C3: 2.6 | H3: N total (kg/t) | I3: 2.6
B4: Azote ammoniacal total ou N-NH4+ (kg/t) | C4: 1.4 | H4: Azote ammoniacal total ou N-NH4+ (kg/t) | I4: 1.4
B6: Aspersion basse | D6: Ratio des émissions cumulatives de NH3 (kg/t_lisier_épandu) à 12h et 72h | H6: Pendillards | J6: Pourcentage d’azote ammoniacal (% N-NH4+) appliqué qui est émis sous forme d’ammoniac (N-NH3) lors des 72 heures suivant l'épandage
B8: Vitesse du vent (km/h) | C8: 5 | H8: Vitesse du vent (km/h) | I8: 5
B9: Délai avant incorporation | C9: Température | D9: 10 | E9: 20 | F9: 30 | H9: Délai avant incorporation | I9: Température | J9: 10 | K9: 20 | L9: 30
B10: 0h | D10: ='Lisier de vache'!G10/'Lisier de vache_72h'!G10 -> 0.4444444444 | E10: ='Lisier de vache'!H10/'Lisier de vache_72h'!H10 -> 0.5169491525 | F10: ='Lisier de vache'!I10/'Lisier de vache_72h'!I10 -> 0.568 | H10: 0h | J10: ='Lisier de vache'!AB10/'Lisier de vache_72h'!AB10 -> 0.3103448276 | K10: ='Lisier de vache'!AC10/'Lisier de vache_72h'!AC10 -> 0.3578947368 | L10: ='Lisier de vache'!AD10/'Lisier de vache_72h'!AD10 -> 0.4245283019
B11: 3h | D11: ='Lisier de vache'!G11/'Lisier de vache_72h'!G11 -> 0.6258064516 | E11: ='Lisier de vache'!H11/'Lisier de vache_72h'!H11 -> 0.7487922705 | F11: ='Lisier de vache'!I11/'Lisier de vache_72h'!I11 -> 0.8345588235 | H11: 3h | J11: ='Lisier de vache'!AB11/'Lisier de vache_72h'!AB11 -> 0.375 | K11: ='Lisier de vache'!AC11/'Lisier de vache_72h'!AC11 -> 0.4695652174 | L11: ='Lisier de vache'!AD11/'Lisier de vache_72h'!AD11 -> 0.595890411
B12: 6h | D12: ='Lisier de vache'!G12/'Lisier de vache_72h'!G12 -> 0.6972972973 | E12: ='Lisier de vache'!H12/'Lisier de vache_72h'!H12 -> 0.8032128514 | F12: ='Lisier de vache'!I12/'Lisier de vache_72h'!I12 -> 0.8640776699 | H12: 6h | J12: ='Lisier de vache'!AB12/'Lisier de vache_72h'!AB12 -> 0.4174757282 | K12: ='Lisier de vache'!AC12/'Lisier de vache_72h'!AC12 -> 0.5348837209 | L12: ='Lisier de vache'!AD12/'Lisier de vache_72h'!AD12 -> 0.6647398844
B13: 24h | D13: ='Lisier de vache'!G13/'Lisier de vache_72h'!G13 -> 0.6909871245 | E13: ='Lisier de vache'!H13/'Lisier de vache_72h'!H13 -> 0.8076923077 | F13: ='Lisier de vache'!I13/'Lisier de vache_72h'!I13 -> 0.8664596273 | H13: 24h | J13: ='Lisier de vache'!AB13/'Lisier de vache_72h'!AB13 -> 0.4308943089 | K13: ='Lisier de vache'!AC13/'Lisier de vache_72h'!AC13 -> 0.5365853659 | L13: ='Lisier de vache'!AD13/'Lisier de vache_72h'!AD13 -> 0.6636363636
B14: Sans incorporation | D14: ='Lisier de vache'!G14/'Lisier de vache_72h'!G14 -> 0.6822033898 | E14: ='Lisier de vache'!H14/'Lisier de vache_72h'!H14 -> 0.8076923077 | F14: ='Lisier de vache'!I14/'Lisier de vache_72h'!I14 -> 0.8664596273 | H14: Sans incorporation | J14: ='Lisier de vache'!AB14/'Lisier de vache_72h'!AB14 -> 0.4140625 | K14: ='Lisier de vache'!AC14/'Lisier de vache_72h'!AC14 -> 0.514619883 | L14: ='Lisier de vache'!AD14/'Lisier de vache_72h'!AD14 -> 0.6517857143
B16: Vitesse du vent (km/h) | C16: 10 | H16: Vitesse du vent (km/h) | I16: 10
B17: Délai avant incorporation | C17: Température | D17: 10 | E17: 20 | F17: 30 | H17: Délai avant incorporation | I17: Température | J17: 10 | K17: 20 | L17: 30
B18: 0h | D18: ='Lisier de vache'!G18/'Lisier de vache_72h'!G18 -> 0.4956521739 | E18: ='Lisier de vache'!H18/'Lisier de vache_72h'!H18 -> 0.5609756098 | F18: ='Lisier de vache'!I18/'Lisier de vache_72h'!I18 -> 0.578125 | H18: 0h | J18: ='Lisier de vache'!AB18/'Lisier de vache_72h'!AB18 -> 0.3369565217 | K18: ='Lisier de vache'!AC18/'Lisier de vache_72h'!AC18 -> 0.4019607843 | L18: ='Lisier de vache'!AD18/'Lisier de vache_72h'!AD18 -> 0.4778761062
B19: 3h | D19: ='Lisier de vache'!G19/'Lisier de vache_72h'!G19 -> 0.7180851064 | E19: ='Lisier de vache'!H19/'Lisier de vache_72h'!H19 -> 0.812749004 | F19: ='Lisier de vache'!I19/'Lisier de vache_72h'!I19 -> 0.8662420382 | H19: 3h | J19: ='Lisier de vache'!AB19/'Lisier de vache_72h'!AB19 -> 0.4351851852 | K19: ='Lisier de vache'!AC19/'Lisier de vache_72h'!AC19 -> 0.5597014925 | L19: ='Lisier de vache'!AD19/'Lisier de vache_72h'!AD19 -> 0.6892655367
B20: 6h | D20: ='Lisier de vache'!G20/'Lisier de vache_72h'!G20 -> 0.7753303965 | E20: ='Lisier de vache'!H20/'Lisier de vache_72h'!H20 -> 0.8493150685 | F20: ='Lisier de vache'!I20/'Lisier de vache_72h'!I20 -> 0.8776119403 | H20: 6h | J20: ='Lisier de vache'!AB20/'Lisier de vache_72h'!AB20 -> 0.4957983193 | K20: ='Lisier de vache'!AC20/'Lisier de vache_72h'!AC20 -> 0.6242038217 | L20: ='Lisier de vache'!AD20/'Lisier de vache_72h'!AD20 -> 0.7511737089
B21: 24h | D21: ='Lisier de vache'!G21/'Lisier de vache_72h'!G21 -> 0.7749077491 | E21: ='Lisier de vache'!H21/'Lisier de vache_72h'!H21 -> 0.8557692308 | F21: ='Lisier de vache'!I21/'Lisier de vache_72h'!I21 -> 0.881305638 | H21: 24h | J21: ='Lisier de vache'!AB21/'Lisier de vache_72h'!AB21 -> 0.5033557047 | K21: ='Lisier de vache'!AC21/'Lisier de vache_72h'!AC21 -> 0.6218905473 | L21: ='Lisier de vache'!AD21/'Lisier de vache_72h'!AD21 -> 0.749034749
B22: Sans incorporation | D22: ='Lisier de vache'!G22/'Lisier de vache_72h'!G22 -> 0.7720588235 | E22: ='Lisier de vache'!H22/'Lisier de vache_72h'!H22 -> 0.8557692308 | F22: ='Lisier de vache'!I22/'Lisier de vache_72h'!I22 -> 0.881305638 | H22: Sans incorporation | J22: ='Lisier de vache'!AB22/'Lisier de vache_72h'!AB22 -> 0.4838709677 | K22: ='Lisier de vache'!AC22/'Lisier de vache_72h'!AC22 -> 0.6067961165 | L22: ='Lisier de vache'!AD22/'Lisier de vache_72h'!AD22 -> 0.7432950192
B24: Vitesse du vent (km/h) | C24: 15 | H24: Vitesse du vent (km/h) | I24: 15
B25: Délai avant incorporation | C25: Température | D25: 10 | E25: 20 | F25: 30 | H25: Délai avant incorporation | I25: Température | J25: 10 | K25: 20 | L25: 30
B26: 0h | D26: ='Lisier de vache'!G26/'Lisier de vache_72h'!G26 -> 0.5378151261 | E26: ='Lisier de vache'!H26/'Lisier de vache_72h'!H26 -> 0.5714285714 | F26: ='Lisier de vache'!I26/'Lisier de vache_72h'!I26 -> 0.5891472868 | H26: 0h | J26: ='Lisier de vache'!AB26/'Lisier de vache_72h'!AB26 -> 0.3711340206 | K26: ='Lisier de vache'!AC26/'Lisier de vache_72h'!AC26 -> 0.4444444444 | L26: ='Lisier de vache'!AD26/'Lisier de vache_72h'!AD26 -> 0.5213675214
B27: 3h | D27: ='Lisier de vache'!G27/'Lisier de vache_72h'!G27 -> 0.7716894977 | E27: ='Lisier de vache'!H27/'Lisier de vache_72h'!H27 -> 0.8456140351 | F27: ='Lisier de vache'!I27/'Lisier de vache_72h'!I27 -> 0.880952381 | H27: 3h | J27: ='Lisier de vache'!AB27/'Lisier de vache_72h'!AB27 -> 0.4916666667 | K27: ='Lisier de vache'!AC27/'Lisier de vache_72h'!AC27 -> 0.6233766234 | L27: ='Lisier de vache'!AD27/'Lisier de vache_72h'!AD27 -> 0.7475728155
B28: 6h | D28: ='Lisier de vache'!G28/'Lisier de vache_72h'!G28 -> 0.9351145038 | E28: ='Lisier de vache'!H28/'Lisier de vache_72h'!H28 -> 0.8679245283 | F28: ='Lisier de vache'!I28/'Lisier de vache_72h'!I28 -> 0.884057971 | H28: 6h | J28: ='Lisier de vache'!AB28/'Lisier de vache_72h'!AB28 -> 0.5620437956 | K28: ='Lisier de vache'!AC28/'Lisier de vache_72h'!AC28 -> 0.6956521739 | L28: ='Lisier de vache'!AD28/'Lisier de vache_72h'!AD28 -> 0.8056680162
B29: 24h | D29: ='Lisier de vache'!G29/'Lisier de vache_72h'!G29 -> 0.8265306122 | E29: ='Lisier de vache'!H29/'Lisier de vache_72h'!H29 -> 0.871559633 | F29: ='Lisier de vache'!I29/'Lisier de vache_72h'!I29 -> 0.884057971 | H29: 24h | J29: ='Lisier de vache'!AB29/'Lisier de vache_72h'!AB29 -> 0.5632183908 | K29: ='Lisier de vache'!AC29/'Lisier de vache_72h'!AC29 -> 0.6896551724 | L29: ='Lisier de vache'!AD29/'Lisier de vache_72h'!AD29 -> 0.8070175439
B30: Sans incorporation | D30: ='Lisier de vache'!G30/'Lisier de vache_72h'!G30 -> 0.8237288136 | E30: ='Lisier de vache'!H30/'Lisier de vache_72h'!H30 -> 0.871559633 | F30: ='Lisier de vache'!I30/'Lisier de vache_72h'!I30 -> 0.884057971 | H30: Sans incorporation | J30: ='Lisier de vache'!AB30/'Lisier de vache_72h'!AB30 -> 0.5414364641 | K30: ='Lisier de vache'!AC30/'Lisier de vache_72h'!AC30 -> 0.6808510638 | L30: ='Lisier de vache'!AD30/'Lisier de vache_72h'!AD30 -> 0.8070175439
B32: Vitesse du vent (km/h) | C32: 25 | H32: Vitesse du vent (km/h) | I32: 25
B33: Délai avant incorporation | C33: Température | D33: 10 | E33: 20 | F33: 30 | H33: Délai avant incorporation | I33: Température | J33: 10 | K33: 20 | L33: 30
B34: 0h | D34: ='Lisier de vache'!G34/'Lisier de vache_72h'!G34 -> 0.568 | E34: ='Lisier de vache'!H34/'Lisier de vache_72h'!H34 -> 0.5813953488 | F34: ='Lisier de vache'!I34/'Lisier de vache_72h'!I34 -> 0.5954198473 | H34: 0h | J34: ='Lisier de vache'!AB34/'Lisier de vache_72h'!AB34 -> 0.4245283019 | K34: ='Lisier de vache'!AC34/'Lisier de vache_72h'!AC34 -> 0.5086206897 | L34: ='Lisier de vache'!AD34/'Lisier de vache_72h'!AD34 -> 0.5609756098
B35: 3h | D35: ='Lisier de vache'!G35/'Lisier de vache_72h'!G35 -> 0.8345588235 | E35: ='Lisier de vache'!H35/'Lisier de vache_72h'!H35 -> 0.8753799392 | F35: ='Lisier de vache'!I35/'Lisier de vache_72h'!I35 -> 0.8866855524 | H35: 3h | J35: ='Lisier de vache'!AB35/'Lisier de vache_72h'!AB35 -> 0.595890411 | K35: ='Lisier de vache'!AC35/'Lisier de vache_72h'!AC35 -> 0.7268041237 | L35: ='Lisier de vache'!AD35/'Lisier de vache_72h'!AD35 -> 0.8217054264
B36: 6h | D36: ='Lisier de vache'!G36/'Lisier de vache_72h'!G36 -> 0.8640776699 | E36: ='Lisier de vache'!H36/'Lisier de vache_72h'!H36 -> 0.8801169591 | F36: ='Lisier de vache'!I36/'Lisier de vache_72h'!I36 -> 0.8870056497 | H36: 6h | J36: ='Lisier de vache'!AB36/'Lisier de vache_72h'!AB36 -> 0.6705202312 | K36: ='Lisier de vache'!AC36/'Lisier de vache_72h'!AC36 -> 0.7863247863 | L36: ='Lisier de vache'!AD36/'Lisier de vache_72h'!AD36 -> 0.8523489933
B37: 24h | D37: ='Lisier de vache'!G37/'Lisier de vache_72h'!G37 -> 0.8664596273 | E37: ='Lisier de vache'!H37/'Lisier de vache_72h'!H37 -> 0.8804664723 | F37: ='Lisier de vache'!I37/'Lisier de vache_72h'!I37 -> 0.8870056497 | H37: 24h | J37: ='Lisier de vache'!AB37/'Lisier de vache_72h'!AB37 -> 0.6636363636 | K37: ='Lisier de vache'!AC37/'Lisier de vache_72h'!AC37 -> 0.7862318841 | L37: ='Lisier de vache'!AD37/'Lisier de vache_72h'!AD37 -> 0.8603174603
B38: Sans incorporation | D38: ='Lisier de vache'!G38/'Lisier de vache_72h'!G38 -> 0.8664596273 | E38: ='Lisier de vache'!H38/'Lisier de vache_72h'!H38 -> 0.8804664723 | F38: ='Lisier de vache'!I38/'Lisier de vache_72h'!I38 -> 0.8870056497 | H38: Sans incorporation | J38: ='Lisier de vache'!AB38/'Lisier de vache_72h'!AB38 -> 0.6517857143 | K38: ='Lisier de vache'!AC38/'Lisier de vache_72h'!AC38 -> 0.7862318841 | L38: ='Lisier de vache'!AD38/'Lisier de vache_72h'!AD38 -> 0.8603174603
B41: LISIER DE VACHE | H41: LISIER DE VACHE
B42: M.S (%) | C42: 7 | H42: M.S (%) | I42: 7
B43: N total (kg/t) | C43: 2.6 | H43: N total (kg/t) | I43: 2.6
B44: Azote ammoniacal total ou N-NH4+ (kg/t) | C44: 1.4 | H44: Azote ammoniacal total ou N-NH4+ (kg/t) | I44: 1.4
B46: Aspersion basse | D46: Pourcentage d’azote ammoniacal (% N-NH4+) appliqué qui est émis sous forme d’ammoniac (N-NH3) lors des 72 heures suivant l'épandage | H46: Pendillards | J46: Pourcentage d’azote ammoniacal (% N-NH4+) appliqué qui est émis sous forme d’ammoniac (N-NH3) lors des 72 heures suivant l'épandage
B48: Vitesse du vent (km/h) | C48: 5 | D48: km/h | H48: Vitesse du vent (km/h) | I48: 5 | J48: km/h
B49: Délai avant incorporation | C49: Température | D49: 10 | E49: 20 | F49: 30 | H49: Délai avant incorporation | I49: Température | J49: 10 | K49: 20 | L49: 30
B50: 0h | D50: ='Lisier de vache'!G50/'Lisier de vache_72h'!G50 -> 0.5214285714 | E50: ='Lisier de vache'!H50/'Lisier de vache_72h'!H50 -> 0.6402439024 | F50: ='Lisier de vache'!I50/'Lisier de vache_72h'!I50 -> 0.7158469945 | H50: 0h | J50: ='Lisier de vache'!AB50/'Lisier de vache_72h'!AB50 -> 0.3263157895 | K50: ='Lisier de vache'!AC50/'Lisier de vache_72h'!AC50 -> 0.3928571429 | L50: ='Lisier de vache'!AD50/'Lisier de vache_72h'!AD50 -> 0.4962962963
B51: 3h | D51: ='Lisier de vache'!G51/'Lisier de vache_72h'!G51 -> 0.7212389381 | E51: ='Lisier de vache'!H51/'Lisier de vache_72h'!H51 -> 0.8493975904 | F51: ='Lisier de vache'!I51/'Lisier de vache_72h'!I51 -> 0.9285714286 | H51: 3h | J51: ='Lisier de vache'!AB51/'Lisier de vache_72h'!AB51 -> 0.4196428571 | K51: ='Lisier de vache'!AC51/'Lisier de vache_72h'!AC51 -> 0.5442176871 | L51: ='Lisier de vache'!AD51/'Lisier de vache_72h'!AD51 -> 0.6923076923
B52: 6h | D52: ='Lisier de vache'!G52/'Lisier de vache_72h'!G52 -> 0.7887323944 | E52: ='Lisier de vache'!H52/'Lisier de vache_72h'!H52 -> 0.8954869359 | F52: ='Lisier de vache'!I52/'Lisier de vache_72h'!I52 -> 0.9511343805 | H52: 6h | J52: ='Lisier de vache'!AB52/'Lisier de vache_72h'!AB52 -> 0.4838709677 | K52: ='Lisier de vache'!AC52/'Lisier de vache_72h'!AC52 -> 0.6206896552 | L52: ='Lisier de vache'!AD52/'Lisier de vache_72h'!AD52 -> 0.7606177606
B53: 24h | D53: ='Lisier de vache'!G53/'Lisier de vache_72h'!G53 -> 0.7468030691 | E53: ='Lisier de vache'!H53/'Lisier de vache_72h'!H53 -> 0.8699808795 | F53: ='Lisier de vache'!I53/'Lisier de vache_72h'!I53 -> 0.9500805153 | H53: 24h | J53: ='Lisier de vache'!AB53/'Lisier de vache_72h'!AB53 -> 0.48125 | K53: ='Lisier de vache'!AC53/'Lisier de vache_72h'!AC53 -> 0.5975103734 | L53: ='Lisier de vache'!AD53/'Lisier de vache_72h'!AD53 -> 0.7202216066
B54: Sans incorporation | D54: ='Lisier de vache'!G54/'Lisier de vache_72h'!G54 -> 0.7263681592 | E54: ='Lisier de vache'!H54/'Lisier de vache_72h'!H54 -> 0.8650190114 | F54: ='Lisier de vache'!I54/'Lisier de vache_72h'!I54 -> 0.9500805153 | H54: Sans incorporation | J54: ='Lisier de vache'!AB54/'Lisier de vache_72h'!AB54 -> 0.4502923977 | K54: ='Lisier de vache'!AC54/'Lisier de vache_72h'!AC54 -> 0.5625 | L54: ='Lisier de vache'!AD54/'Lisier de vache_72h'!AD54 -> 0.6951871658
B56: Vitesse du vent (km/h) | C56: 10 | D56: km/h | H56: Vitesse du vent (km/h) | I56: 10 | J56: km/h
B57: Délai avant incorporation | C57: Température | D57: 10 | E57: 20 | F57: 30 | H57: Délai avant incorporation | I57: Température | J57: 10 | K57: 20 | L57: 30
B58: 0h | D58: ='Lisier de vache'!G58/'Lisier de vache_72h'!G58 -> 0.6050955414 | E58: ='Lisier de vache'!H58/'Lisier de vache_72h'!H58 -> 0.702247191 | F58: ='Lisier de vache'!I58/'Lisier de vache_72h'!I58 -> 0.7434554974 | H58: 0h | J58: ='Lisier de vache'!AB58/'Lisier de vache_72h'!AB58 -> 0.3679245283 | K58: ='Lisier de vache'!AC58/'Lisier de vache_72h'!AC58 -> 0.4645669291 | L58: ='Lisier de vache'!AD58/'Lisier de vache_72h'!AD58 -> 0.5789473684
B59: 3h | D59: ='Lisier de vache'!G59/'Lisier de vache_72h'!G59 -> 0.8156996587 | E59: ='Lisier de vache'!H59/'Lisier de vache_72h'!H59 -> 0.9107981221 | F59: ='Lisier de vache'!I59/'Lisier de vache_72h'!I59 -> 0.9551724138 | H59: 3h | J59: ='Lisier de vache'!AB59/'Lisier de vache_72h'!AB59 -> 0.5037593985 | K59: ='Lisier de vache'!AC59/'Lisier de vache_72h'!AC59 -> 0.6432432432 | L59: ='Lisier de vache'!AD59/'Lisier de vache_72h'!AD59 -> 0.7888888889
B60: 6h | D60: ='Lisier de vache'!G60/'Lisier de vache_72h'!G60 -> 0.8636363636 | E60: ='Lisier de vache'!H60/'Lisier de vache_72h'!H60 -> 0.9373814042 | F60: ='Lisier de vache'!I60/'Lisier de vache_72h'!I60 -> 0.967642527 | H60: 6h | J60: ='Lisier de vache'!AB60/'Lisier de vache_72h'!AB60 -> 0.5741935484 | K60: ='Lisier de vache'!AC60/'Lisier de vache_72h'!AC60 -> 0.718061674 | L60: ='Lisier de vache'!AD60/'Lisier de vache_72h'!AD60 -> 0.8425655977
B61: 24h | D61: ='Lisier de vache'!G61/'Lisier de vache_72h'!G61 -> 0.83436853 | E61: ='Lisier de vache'!H61/'Lisier de vache_72h'!H61 -> 0.9326599327 | F61: ='Lisier de vache'!I61/'Lisier de vache_72h'!I61 -> 0.968373494 | H61: 24h | J61: ='Lisier de vache'!AB61/'Lisier de vache_72h'!AB61 -> 0.5592417062 | K61: ='Lisier de vache'!AC61/'Lisier de vache_72h'!AC61 -> 0.6802507837 | L61: ='Lisier de vache'!AD61/'Lisier de vache_72h'!AD61 -> 0.8061674009
B62: Sans incorporation | D62: ='Lisier de vache'!G62/'Lisier de vache_72h'!G62 -> 0.8258196721 | E62: ='Lisier de vache'!H62/'Lisier de vache_72h'!H62 -> 0.9326599327 | F62: ='Lisier de vache'!I62/'Lisier de vache_72h'!I62 -> 0.968373494 | H62: Sans incorporation | J62: ='Lisier de vache'!AB62/'Lisier de vache_72h'!AB62 -> 0.5244444444 | K62: ='Lisier de vache'!AC62/'Lisier de vache_72h'!AC62 -> 0.6497005988 | L62: ='Lisier de vache'!AD62/'Lisier de vache_72h'!AD62 -> 0.7939262473
B64: Vitesse du vent (km/h) | C64: 15 | D64: km/h | H64: Vitesse du vent (km/h) | I64: 15 | J64: km/h
B65: Délai avant incorporation | C65: Température | D65: 10 | E65: 20 | F65: 30 | H65: Délai avant incorporation | I65: Température | J65: 10 | K65: 20 | L65: 30
B66: 0h | D66: ='Lisier de vache'!G66/'Lisier de vache_72h'!G66 -> 0.6568047337 | E66: ='Lisier de vache'!H66/'Lisier de vache_72h'!H66 -> 0.7258064516 | F66: ='Lisier de vache'!I66/'Lisier de vache_72h'!I66 -> 0.75 | H66: 0h | J66: ='Lisier de vache'!AB66/'Lisier de vache_72h'!AB66 -> 0.4137931034 | K66: ='Lisier de vache'!AC66/'Lisier de vache_72h'!AC66 -> 0.5214285714 | L66: ='Lisier de vache'!AD66/'Lisier de vache_72h'!AD66 -> 0.6402439024
B67: 3h | D67: ='Lisier de vache'!G67/'Lisier de vache_72h'!G67 -> 0.8715083799 | E67: ='Lisier de vache'!H67/'Lisier de vache_72h'!H67 -> 0.9388560158 | F67: ='Lisier de vache'!I67/'Lisier de vache_72h'!I67 -> 0.9659969088 | H67: 3h | J67: ='Lisier de vache'!AB67/'Lisier de vache_72h'!AB67 -> 0.5732484076 | K67: ='Lisier de vache'!AC67/'Lisier de vache_72h'!AC67 -> 0.72 | L67: ='Lisier de vache'!AD67/'Lisier de vache_72h'!AD67 -> 0.8480243161
B68: 6h | D68: ='Lisier de vache'!G68/'Lisier de vache_72h'!G68 -> 0.9094922737 | E68: ='Lisier de vache'!H68/'Lisier de vache_72h'!H68 -> 0.9565943239 | F68: ='Lisier de vache'!I68/'Lisier de vache_72h'!I68 -> 0.9708029197 | H68: 6h | J68: ='Lisier de vache'!AB68/'Lisier de vache_72h'!AB68 -> 0.6489361702 | K68: ='Lisier de vache'!AC68/'Lisier de vache_72h'!AC68 -> 0.7872340426 | L68: ='Lisier de vache'!AD68/'Lisier de vache_72h'!AD68 -> 0.892601432
B69: 24h | D69: ='Lisier de vache'!G69/'Lisier de vache_72h'!G69 -> 0.8919413919 | E69: ='Lisier de vache'!H69/'Lisier de vache_72h'!H69 -> 0.9590551181 | F69: ='Lisier de vache'!I69/'Lisier de vache_72h'!I69 -> 0.9723837209 | H69: 24h | J69: ='Lisier de vache'!AB69/'Lisier de vache_72h'!AB69 -> 0.6221374046 | K69: ='Lisier de vache'!AC69/'Lisier de vache_72h'!AC69 -> 0.7429305913 | L69: ='Lisier de vache'!AD69/'Lisier de vache_72h'!AD69 -> 0.8694817658
B70: Sans incorporation | D70: ='Lisier de vache'!G70/'Lisier de vache_72h'!G70 -> 0.8886861314 | E70: ='Lisier de vache'!H70/'Lisier de vache_72h'!H70 -> 0.9590551181 | F70: ='Lisier de vache'!I70/'Lisier de vache_72h'!I70 -> 0.9723837209 | H70: Sans incorporation | J70: ='Lisier de vache'!AB70/'Lisier de vache_72h'!AB70 -> 0.5863309353 | K70: ='Lisier de vache'!AC70/'Lisier de vache_72h'!AC70 -> 0.7225 | L70: ='Lisier de vache'!AD70/'Lisier de vache_72h'!AD70 -> 0.8645038168
B72: Vitesse du vent (km/h) | C72: 25 | D72: km/h | H72: Vitesse du vent (km/h) | I72: 25 | J72: km/h
B73: Délai avant incorporation | C73: Température | D73: 10 | E73: 20 | F73: 30 | H73: Délai avant incorporation | I73: Température | J73: 10 | K73: 20 | L73: 30
B74: 0h | D74: ='Lisier de vache'!G74/'Lisier de vache_72h'!G74 -> 0.7213114754 | E74: ='Lisier de vache'!H74/'Lisier de vache_72h'!H74 -> 0.7474226804 | F74: ='Lisier de vache'!I74/'Lisier de vache_72h'!I74 -> 0.7562189055 | H74: 0h | J74: ='Lisier de vache'!AB74/'Lisier de vache_72h'!AB74 -> 0.4962962963 | K74: ='Lisier de vache'!AC74/'Lisier de vache_72h'!AC74 -> 0.6163522013 | L74: ='Lisier de vache'!AD74/'Lisier de vache_72h'!AD74 -> 0.7094972067
B75: 3h | D75: ='Lisier de vache'!G75/'Lisier de vache_72h'!G75 -> 0.9285714286 | E75: ='Lisier de vache'!H75/'Lisier de vache_72h'!H75 -> 0.9615384615 | F75: ='Lisier de vache'!I75/'Lisier de vache_72h'!I75 -> 0.9745042493 | H75: 3h | J75: ='Lisier de vache'!AB75/'Lisier de vache_72h'!AB75 -> 0.6889952153 | K75: ='Lisier de vache'!AC75/'Lisier de vache_72h'!AC75 -> 0.8262295082 | L75: ='Lisier de vache'!AD75/'Lisier de vache_72h'!AD75 -> 0.9162895928
B76: 6h | D76: ='Lisier de vache'!G76/'Lisier de vache_72h'!G76 -> 0.9511343805 | E76: ='Lisier de vache'!H76/'Lisier de vache_72h'!H76 -> 0.96884273 | F76: ='Lisier de vache'!I76/'Lisier de vache_72h'!I76 -> 0.9761235955 | H76: 6h | J76: ='Lisier de vache'!AB76/'Lisier de vache_72h'!AB76 -> 0.7576923077 | K76: ='Lisier de vache'!AC76/'Lisier de vache_72h'!AC76 -> 0.8740359897 | L76: ='Lisier de vache'!AD76/'Lisier de vache_72h'!AD76 -> 0.942804428
B77: 24h | D77: ='Lisier de vache'!G77/'Lisier de vache_72h'!G77 -> 0.9500805153 | E77: ='Lisier de vache'!H77/'Lisier de vache_72h'!H77 -> 0.9705882353 | F77: ='Lisier de vache'!I77/'Lisier de vache_72h'!I77 -> 0.9761235955 | H77: 24h | J77: ='Lisier de vache'!AB77/'Lisier de vache_72h'!AB77 -> 0.7182320442 | K77: ='Lisier de vache'!AC77/'Lisier de vache_72h'!AC77 -> 0.8450704225 | L77: ='Lisier de vache'!AD77/'Lisier de vache_72h'!AD77 -> 0.9402985075
B78: Sans incorporation | D78: ='Lisier de vache'!G78/'Lisier de vache_72h'!G78 -> 0.9500805153 | E78: ='Lisier de vache'!H78/'Lisier de vache_72h'!H78 -> 0.9705882353 | F78: ='Lisier de vache'!I78/'Lisier de vache_72h'!I78 -> 0.9761235955 | H78: Sans incorporation | J78: ='Lisier de vache'!AB78/'Lisier de vache_72h'!AB78 -> 0.6933333333 | K78: ='Lisier de vache'!AC78/'Lisier de vache_72h'!AC78 -> 0.8383233533 | L78: ='Lisier de vache'!AD78/'Lisier de vache_72h'!AD78 -> 0.9402985075

Sheet Lisier de porc 72h-12h (hidden)
B1: LISIER DE PORC | H1: LISIER DE PORC
B2: M.S (%) | C2: 3.5 | H2: M.S (%) | I2: 3.5
B3: N total (kg/t) | C3: 3.5 | H3: N total (kg/t) | I3: 3.5
B4: Azote ammoniacal total ou N-NH4+ (kg/t) | C4: 2.4 | H4: Azote ammoniacal total ou N-NH4+ (kg/t) | I4: 2.4
B6: Aspersion basse | D6: Ratio des émissions cumulatives de NH3 (kg/t_lisier_épandu) à 12h et 72h | H6: Pendillards | J6: Ratio des émissions cumulatives de NH3 (kg/t_lisier_épandu) à 12h et 72h | S6: Fumier | T6: Incorporation | U6: M.S | V6: % de pertes mimimal | W6: % de pertes maximal
S7: Porc | T7: inmediate | U7: 3 | V7: 0.37 | W7: 0.47
B8: Vitesse du vent (km/h) | C8: 5 | H8: Vitesse du vent (km/h) | I8: 5 | S8: Porc | T8: après 3h | U8: 3 | V8: 0.5 | W8: 0.77
B9: Délai avant incorporation | C9: Température | D9: 10 | E9: 20 | F9: 30 | H9: Délai avant incorporation | I9: Température | J9: 10 | K9: 20 | L9: 30 | S9: Porc | T9: inmediate | U9: 7 | V9: 0.47 | W9: 0.76
B10: 0h | D10: ='Lisier de porc'!G10/'Lisier de porc__72h'!G10 -> 0.3695652174 | E10: ='Lisier de porc'!H10/'Lisier de porc__72h'!H10 -> 0.4166666667 | F10: ='Lisier de porc'!I10/'Lisier de porc__72h'!I10 -> 0.44 | H10: 0h | J10: ='Lisier de porc'!M10/'Lisier de porc__72h'!M10 -> 0.3695652174 | K10: ='Lisier de porc'!N10/'Lisier de porc__72h'!N10 -> 0.4166666667 | L10: ='Lisier de porc'!O10/'Lisier de porc__72h'!O10 -> 0.44 | N10: =J10/J13 -> 0.6341403162 | O10: =K10/K13 -> 0.6060606061 | P10: =L10/L13 -> 0.5927777778 | S10: Porc | T10: après 3h | U10: 7 | V10: 0.66 | W10: 0.98
B11: 3h | D11: ='Lisier de porc'!G11/'Lisier de porc__72h'!G11 -> 0.5 | E11: ='Lisier de porc'!H11/'Lisier de porc__72h'!H11 -> 0.6115107914 | F11: ='Lisier de porc'!I11/'Lisier de porc__72h'!I11 -> 0.7 | H11: 3h | J11: ='Lisier de porc'!M11/'Lisier de porc__72h'!M11 -> 0.5 | K11: ='Lisier de porc'!N11/'Lisier de porc__72h'!N11 -> 0.6115107914 | L11: ='Lisier de porc'!O11/'Lisier de porc__72h'!O11 -> 0.7 | S11: Vache | T11: inmediate | U11: 3 | V11: 0.31 | W11: 0.6
B12: 6h | D12: ='Lisier de porc'!G12/'Lisier de porc__72h'!G12 -> 0.5625 | E12: ='Lisier de porc'!H12/'Lisier de porc__72h'!H12 -> 0.6666666667 | F12: ='Lisier de porc'!I12/'Lisier de porc__72h'!I12 -> 0.7340425532 | H12: 6h | J12: ='Lisier de porc'!M12/'Lisier de porc__72h'!M12 -> 0.5625 | K12: ='Lisier de porc'!N12/'Lisier de porc__72h'!N12 -> 0.6666666667 | L12: ='Lisier de porc'!O12/'Lisier de porc__72h'!O12 -> 0.7340425532 | S12: Vache | T12: après 3h | U12: 3 | V12: 0.38 | W12: 0.89
B13: 24h | D13: ='Lisier de porc'!G13/'Lisier de porc__72h'!G13 -> 0.582781457 | E13: ='Lisier de porc'!H13/'Lisier de porc__72h'!H13 -> 0.6875 | F13: ='Lisier de porc'!I13/'Lisier de porc__72h'!I13 -> 0.7422680412 | H13: 24h | J13: ='Lisier de porc'!M13/'Lisier de porc__72h'!M13 -> 0.582781457 | K13: ='Lisier de porc'!N13/'Lisier de porc__72h'!N13 -> 0.6875 | L13: ='Lisier de porc'!O13/'Lisier de porc__72h'!O13 -> 0.7422680412 | S13: Vache | T13: inmediate | U13: 7 | V13: 0.33 | W13: 0.76
B14: Sans incorporation | D14: ='Lisier de porc'!G14/'Lisier de porc__72h'!G14 -> 0.5751633987 | E14: ='Lisier de porc'!H14/'Lisier de porc__72h'!H14 -> 0.6836158192 | F14: ='Lisier de porc'!I14/'Lisier de porc__72h'!I14 -> 0.7461139896 | H14: Sans incorporation | J14: ='Lisier de porc'!M14/'Lisier de porc__72h'!M14 -> 0.5751633987 | K14: ='Lisier de porc'!N14/'Lisier de porc__72h'!N14 -> 0.6836158192 | L14: ='Lisier de porc'!O14/'Lisier de porc__72h'!O14 -> 0.7461139896 | S14: Vache | T14: après 3h | U14: 7 | V14: 0.42 | W14: 0.98
B16: Vitesse du vent (km/h) | C16: 10 | H16: Vitesse du vent (km/h) | I16: 10
B17: Délai avant incorporation | C17: Température | D17: 10 | E17: 20 | F17: 30 | H17: Délai avant incorporation | I17: Température | J17: 10 | K17: 20 | L17: 30
B18: 0h | D18: ='Lisier de porc'!G18/'Lisier de porc__72h'!G18 -> 0.4 | E18: ='Lisier de porc'!H18/'Lisier de porc__72h'!H18 -> 0.4343434343 | F18: ='Lisier de porc'!I18/'Lisier de porc__72h'!I18 -> 0.4554455446 | H18: 0h | J18: ='Lisier de porc'!M18/'Lisier de porc__72h'!M18 -> 0.4 | K18: ='Lisier de porc'!N18/'Lisier de porc__72h'!N18 -> 0.4343434343 | L18: ='Lisier de porc'!O18/'Lisier de porc__72h'!O18 -> 0.4554455446
B19: 3h | D19: ='Lisier de porc'!G19/'Lisier de porc__72h'!G19 -> 0.5769230769 | E19: ='Lisier de porc'!H19/'Lisier de porc__72h'!H19 -> 0.675 | F19: ='Lisier de porc'!I19/'Lisier de porc__72h'!I19 -> 0.7578947368 | H19: 3h | J19: ='Lisier de porc'!M19/'Lisier de porc__72h'!M19 -> 0.5769230769 | K19: ='Lisier de porc'!N19/'Lisier de porc__72h'!N19 -> 0.675 | L19: ='Lisier de porc'!O19/'Lisier de porc__72h'!O19 -> 0.7578947368
B20: 6h | D20: ='Lisier de porc'!G20/'Lisier de porc__72h'!G20 -> 0.6375838926 | E20: ='Lisier de porc'!H20/'Lisier de porc__72h'!H20 -> 0.7166666667 | F20: ='Lisier de porc'!I20/'Lisier de porc__72h'!I20 -> 0.755 | H20: 6h | J20: ='Lisier de porc'!M20/'Lisier de porc__72h'!M20 -> 0.6375838926 | K20: ='Lisier de porc'!N20/'Lisier de porc__72h'!N20 -> 0.7166666667 | L20: ='Lisier de porc'!O20/'Lisier de porc__72h'!O20 -> 0.755
B21: 24h | D21: ='Lisier de porc'!G21/'Lisier de porc__72h'!G21 -> 0.6568047337 | E21: ='Lisier de porc'!H21/'Lisier de porc__72h'!H21 -> 0.7301587302 | F21: ='Lisier de porc'!I21/'Lisier de porc__72h'!I21 -> 0.7562189055 | H21: 24h | J21: ='Lisier de porc'!M21/'Lisier de porc__72h'!M21 -> 0.6568047337 | K21: ='Lisier de porc'!N21/'Lisier de porc__72h'!N21 -> 0.7301587302 | L21: ='Lisier de porc'!O21/'Lisier de porc__72h'!O21 -> 0.7562189055
B22: Sans incorporation | D22: ='Lisier de porc'!G22/'Lisier de porc__72h'!G22 -> 0.6529411765 | E22: ='Lisier de porc'!H22/'Lisier de porc__72h'!H22 -> 0.7301587302 | F22: ='Lisier de porc'!I22/'Lisier de porc__72h'!I22 -> 0.7562189055 | H22: Sans incorporation | J22: ='Lisier de porc'!M22/'Lisier de porc__72h'!M22 -> 0.6529411765 | K22: ='Lisier de porc'!N22/'Lisier de porc__72h'!N22 -> 0.7301587302 | L22: ='Lisier de porc'!O22/'Lisier de porc__72h'!O22 -> 0.7562189055
B24: Vitesse du vent (km/h) | C24: 15 | H24: Vitesse du vent (km/h) | I24: 15
B25: Délai avant incorporation | C25: Température | D25: 10 | E25: 20 | F25: 30 | H25: Délai avant incorporation | I25: Température | J25: 10 | K25: 20 | L25: 30
B26: 0h | D26: ='Lisier de porc'!G26/'Lisier de porc__72h'!G26 -> 0.4226804124 | E26: ='Lisier de porc'!H26/'Lisier de porc__72h'!H26 -> 0.45 | F26: ='Lisier de porc'!I26/'Lisier de porc__72h'!I26 -> 0.4607843137 | H26: 0h | J26: ='Lisier de porc'!M26/'Lisier de porc__72h'!M26 -> 0.4226804124 | K26: ='Lisier de porc'!N26/'Lisier de porc__72h'!N26 -> 0.45 | L26: ='Lisier de porc'!O26/'Lisier de porc__72h'!O26 -> 0.4607843137
B27: 3h | D27: ='Lisier de porc'!G27/'Lisier de porc__72h'!G27 -> 0.6275862069 | E27: ='Lisier de porc'!H27/'Lisier de porc__72h'!H27 -> 0.7159090909 | F27: ='Lisier de porc'!I27/'Lisier de porc__72h'!I27 -> 0.7562189055 | H27: 3h | J27: ='Lisier de porc'!M27/'Lisier de porc__72h'!M27 -> 0.6275862069 | K27: ='Lisier de porc'!N27/'Lisier de porc__72h'!N27 -> 0.7159090909 | L27: ='Lisier de porc'!O27/'Lisier de porc__72h'!O27 -> 0.7562189055
B28: 6h | D28: ='Lisier de porc'!G28/'Lisier de porc__72h'!G28 -> 0.6848484848 | E28: ='Lisier de porc'!H28/'Lisier de porc__72h'!H28 -> 0.7447916667 | F28: ='Lisier de porc'!I28/'Lisier de porc__72h'!I28 -> 0.7609756098 | H28: 6h | J28: ='Lisier de porc'!M28/'Lisier de porc__72h'!M28 -> 0.6848484848 | K28: ='Lisier de porc'!N28/'Lisier de porc__72h'!N28 -> 0.7447916667 | L28: ='Lisier de porc'!O28/'Lisier de porc__72h'!O28 -> 0.7609756098
B29: 24h | D29: ='Lisier de porc'!G29/'Lisier de porc__72h'!G29 -> 0.7016574586 | E29: ='Lisier de porc'!H29/'Lisier de porc__72h'!H29 -> 0.75 | F29: ='Lisier de porc'!I29/'Lisier de porc__72h'!I29 -> 0.7609756098 | H29: 24h | J29: ='Lisier de porc'!M29/'Lisier de porc__72h'!M29 -> 0.7016574586 | K29: ='Lisier de porc'!N29/'Lisier de porc__72h'!N29 -> 0.75 | L29: ='Lisier de porc'!O29/'Lisier de porc__72h'!O29 -> 0.7609756098
B30: Sans incorporation | D30: ='Lisier de porc'!G30/'Lisier de porc__72h'!G30 -> 0.7016574586 | E30: ='Lisier de porc'!H30/'Lisier de porc__72h'!H30 -> 0.75 | F30: ='Lisier de porc'!I30/'Lisier de porc__72h'!I30 -> 0.7609756098 | H30: Sans incorporation | J30: ='Lisier de porc'!M30/'Lisier de porc__72h'!M30 -> 0.7016574586 | K30: ='Lisier de porc'!N30/'Lisier de porc__72h'!N30 -> 0.75 | L30: ='Lisier de porc'!O30/'Lisier de porc__72h'!O30 -> 0.7609756098
B32: Vitesse du vent (km/h) | C32: 25 | H32: Vitesse du vent (km/h) | I32: 25
B33: Délai avant incorporation | C33: Température | D33: 10 | E33: 20 | F33: 30 | H33: Délai avant incorporation | I33: Température | J33: 10 | K33: 20 | L33: 30
B34: 0h | D34: ='Lisier de porc'!G34/'Lisier de porc__72h'!G34 -> 0.44 | E34: ='Lisier de porc'!H34/'Lisier de porc__72h'!H34 -> 0.4607843137 | F34: ='Lisier de porc'!I34/'Lisier de porc__72h'!I34 -> 0.4660194175 | H34: 0h | J34: ='Lisier de porc'!M34/'Lisier de porc__72h'!M34 -> 0.44 | K34: ='Lisier de porc'!N34/'Lisier de porc__72h'!N34 -> 0.4607843137 | L34: ='Lisier de porc'!O34/'Lisier de porc__72h'!O34 -> 0.4660194175
B35: 3h | D35: ='Lisier de porc'!G35/'Lisier de porc__72h'!G35 -> 0.7 | E35: ='Lisier de porc'!H35/'Lisier de porc__72h'!H35 -> 0.7512690355 | F35: ='Lisier de porc'!I35/'Lisier de porc__72h'!I35 -> 0.7692307692 | H35: 3h | J35: ='Lisier de porc'!M35/'Lisier de porc__72h'!M35 -> 0.7 | K35: ='Lisier de porc'!N35/'Lisier de porc__72h'!N35 -> 0.7512690355 | L35: ='Lisier de porc'!O35/'Lisier de porc__72h'!O35 -> 0.7692307692
B36: 6h | D36: ='Lisier de porc'!G36/'Lisier de porc__72h'!G36 -> 0.7340425532 | E36: ='Lisier de porc'!H36/'Lisier de porc__72h'!H36 -> 0.7586206897 | F36: ='Lisier de porc'!I36/'Lisier de porc__72h'!I36 -> 0.7655502392 | H36: 6h | J36: ='Lisier de porc'!M36/'Lisier de porc__72h'!M36 -> 0.7340425532 | K36: ='Lisier de porc'!N36/'Lisier de porc__72h'!N36 -> 0.7586206897 | L36: ='Lisier de porc'!O36/'Lisier de porc__72h'!O36 -> 0.7655502392
B37: 24h | D37: ='Lisier de porc'!G37/'Lisier de porc__72h'!G37 -> 0.7422680412 | E37: ='Lisier de porc'!H37/'Lisier de porc__72h'!H37 -> 0.7598039216 | F37: ='Lisier de porc'!I37/'Lisier de porc__72h'!I37 -> 0.7655502392 | H37: 24h | J37: ='Lisier de porc'!M37/'Lisier de porc__72h'!M37 -> 0.7422680412 | K37: ='Lisier de porc'!N37/'Lisier de porc__72h'!N37 -> 0.7598039216 | L37: ='Lisier de porc'!O37/'Lisier de porc__72h'!O37 -> 0.7655502392
B38: Sans incorporation | D38: ='Lisier de porc'!G38/'Lisier de porc__72h'!G38 -> 0.7422680412 | E38: ='Lisier de porc'!H38/'Lisier de porc__72h'!H38 -> 0.7598039216 | F38: ='Lisier de porc'!I38/'Lisier de porc__72h'!I38 -> 0.7655502392 | H38: Sans incorporation | J38: ='Lisier de porc'!M38/'Lisier de porc__72h'!M38 -> 0.7422680412 | K38: ='Lisier de porc'!N38/'Lisier de porc__72h'!N38 -> 0.7598039216 | L38: ='Lisier de porc'!O38/'Lisier de porc__72h'!O38 -> 0.7655502392
B41: LISIER DE PORC | H41: LISIER DE PORC
B42: M.S (%) | C42: 7 | H42: M.S (%) | I42: 7
B43: N total (kg/t) | C43: 3.5 | H43: N total (kg/t) | I43: 3.5
B44: Azote ammoniacal total ou N-NH4+ (kg/t) | C44: 2.4 | H44: Azote ammoniacal total ou N-NH4+ (kg/t) | I44: 2.4
B46: Aspersion basse | D46: Ratio des émissions cumulatives de NH3 (kg/t_lisier_épandu) à 12h et 72h | H46: Pendillards | J46: Ratio des émissions cumulatives de NH3 (kg/t_lisier_épandu) à 12h et 72h
B48: Vitesse du vent (km/h) | C48: 5 | D48: km/h | H48: Vitesse du vent (km/h) | I48: 5 | J48: km/h
B49: Délai avant incorporation | C49: Température | D49: 10 | E49: 20 | F49: 30 | H49: Délai avant incorporation | I49: Température | J49: 10 | K49: 20 | L49: 30
B50: 0h | D50: ='Lisier de vache'!G50/'Lisier de vache_72h'!G50 -> 0.5214285714 | E50: ='Lisier de vache'!H50/'Lisier de vache_72h'!H50 -> 0.6402439024 | F50: ='Lisier de vache'!I50/'Lisier de vache_72h'!I50 -> 0.7158469945 | H50: 0h | J50: ='Lisier de porc'!M50/'Lisier de porc__72h'!M50 -> 0.4710743802 | K50: ='Lisier de porc'!N50/'Lisier de porc__72h'!N50 -> 0.5766423358 | L50: ='Lisier de porc'!O50/'Lisier de porc__72h'!O50 -> 0.6466666667
B51: 3h | D51: ='Lisier de vache'!G51/'Lisier de vache_72h'!G51 -> 0.7212389381 | E51: ='Lisier de vache'!H51/'Lisier de vache_72h'!H51 -> 0.8493975904 | F51: ='Lisier de vache'!I51/'Lisier de vache_72h'!I51 -> 0.9285714286 | H51: 3h | J51: ='Lisier de porc'!M51/'Lisier de porc__72h'!M51 -> 0.6611111111 | K51: ='Lisier de porc'!N51/'Lisier de porc__72h'!N51 -> 0.7984189723 | L51: ='Lisier de porc'!O51/'Lisier de porc__72h'!O51 -> 0.8838526912
B52: 6h | D52: ='Lisier de vache'!G52/'Lisier de vache_72h'!G52 -> 0.7887323944 | E52: ='Lisier de vache'!H52/'Lisier de vache_72h'!H52 -> 0.8954869359 | F52: ='Lisier de vache'!I52/'Lisier de vache_72h'!I52 -> 0.9511343805 | H52: 6h | J52: ='Lisier de porc'!M52/'Lisier de porc__72h'!M52 -> 0.7318181818 | K52: ='Lisier de porc'!N52/'Lisier de porc__72h'!N52 -> 0.8449367089 | L52: ='Lisier de porc'!O52/'Lisier de porc__72h'!O52 -> 0.9142857143
B53: 24h | D53: ='Lisier de vache'!G53/'Lisier de vache_72h'!G53 -> 0.7468030691 | E53: ='Lisier de vache'!H53/'Lisier de vache_72h'!H53 -> 0.8699808795 | F53: ='Lisier de vache'!I53/'Lisier de vache_72h'!I53 -> 0.9500805153 | H53: 24h | J53: ='Lisier de porc'!M53/'Lisier de porc__72h'!M53 -> 0.7084745763 | K53: ='Lisier de porc'!N53/'Lisier de porc__72h'!N53 -> 0.8341968912 | L53: ='Lisier de porc'!O53/'Lisier de porc__72h'!O53 -> 0.9140969163
B54: Sans incorporation | D54: ='Lisier de vache'!G54/'Lisier de vache_72h'!G54 -> 0.7263681592 | E54: ='Lisier de vache'!H54/'Lisier de vache_72h'!H54 -> 0.8650190114 | F54: ='Lisier de vache'!I54/'Lisier de vache_72h'!I54 -> 0.9500805153 | H54: Sans incorporation | J54: ='Lisier de porc'!M54/'Lisier de porc__72h'!M54 -> 0.6920529801 | K54: ='Lisier de porc'!N54/'Lisier de porc__72h'!N54 -> 0.8298969072 | L54: ='Lisier de porc'!O54/'Lisier de porc__72h'!O54 -> 0.9140969163
B56: Vitesse du vent (km/h) | C56: 10 | D56: km/h | H56: Vitesse du vent (km/h) | I56: 10 | J56: km/h
B57: Délai avant incorporation | C57: Température | D57: 10 | E57: 20 | F57: 30 | H57: Délai avant incorporation | I57: Température | J57: 10 | K57: 20 | L57: 30
B58: 0h | D58: ='Lisier de vache'!G58/'Lisier de vache_72h'!G58 -> 0.6050955414 | E58: ='Lisier de vache'!H58/'Lisier de vache_72h'!H58 -> 0.702247191 | F58: ='Lisier de vache'!I58/'Lisier de vache_72h'!I58 -> 0.7434554974 | H58: 0h | J58: ='Lisier de porc'!M58/'Lisier de porc__72h'!M58 -> 0.5454545455 | K58: ='Lisier de porc'!N58/'Lisier de porc__72h'!N58 -> 0.6326530612 | L58: ='Lisier de porc'!O58/'Lisier de porc__72h'!O58 -> 0.6730769231
B59: 3h | D59: ='Lisier de vache'!G59/'Lisier de vache_72h'!G59 -> 0.8156996587 | E59: ='Lisier de vache'!H59/'Lisier de vache_72h'!H59 -> 0.9107981221 | F59: ='Lisier de vache'!I59/'Lisier de vache_72h'!I59 -> 0.9551724138 | H59: 3h | J59: ='Lisier de porc'!M59/'Lisier de porc__72h'!M59 -> 0.7577092511 | K59: ='Lisier de porc'!N59/'Lisier de porc__72h'!N59 -> 0.8620689655 | L59: ='Lisier de porc'!O59/'Lisier de porc__72h'!O59 -> 0.9154929577
B60: 6h | D60: ='Lisier de vache'!G60/'Lisier de vache_72h'!G60 -> 0.8636363636 | E60: ='Lisier de vache'!H60/'Lisier de vache_72h'!H60 -> 0.9373814042 | F60: ='Lisier de vache'!I60/'Lisier de vache_72h'!I60 -> 0.967642527 | H60: 6h | J60: ='Lisier de porc'!M60/'Lisier de porc__72h'!M60 -> 0.8127208481 | K60: ='Lisier de porc'!N60/'Lisier de porc__72h'!N60 -> 0.8971722365 | L60: ='Lisier de porc'!O60/'Lisier de porc__72h'!O60 -> 0.9303797468
B61: 24h | D61: ='Lisier de vache'!G61/'Lisier de vache_72h'!G61 -> 0.83436853 | E61: ='Lisier de vache'!H61/'Lisier de vache_72h'!H61 -> 0.9326599327 | F61: ='Lisier de vache'!I61/'Lisier de vache_72h'!I61 -> 0.968373494 | H61: 24h | J61: ='Lisier de porc'!M61/'Lisier de porc__72h'!M61 -> 0.7938718663 | K61: ='Lisier de porc'!N61/'Lisier de porc__72h'!N61 -> 0.8965517241 | L61: ='Lisier de porc'!O61/'Lisier de porc__72h'!O61 -> 0.9338842975
B62: Sans incorporation | D62: ='Lisier de vache'!G62/'Lisier de vache_72h'!G62 -> 0.8258196721 | E62: ='Lisier de vache'!H62/'Lisier de vache_72h'!H62 -> 0.9326599327 | F62: ='Lisier de vache'!I62/'Lisier de vache_72h'!I62 -> 0.968373494 | H62: Sans incorporation | J62: ='Lisier de porc'!M62/'Lisier de porc__72h'!M62 -> 0.7872928177 | K62: ='Lisier de porc'!N62/'Lisier de porc__72h'!N62 -> 0.8965517241 | L62: ='Lisier de porc'!O62/'Lisier de porc__72h'!O62 -> 0.9338842975
B64: Vitesse du vent (km/h) | C64: 15 | D64: km/h | H64: Vitesse du vent (km/h) | I64: 15 | J64: km/h
B65: Délai avant incorporation | C65: Température | D65: 10 | E65: 20 | F65: 30 | H65: Délai avant incorporation | I65: Température | J65: 10 | K65: 20 | L65: 30
B66: 0h | D66: ='Lisier de vache'!G66/'Lisier de vache_72h'!G66 -> 0.6568047337 | E66: ='Lisier de vache'!H66/'Lisier de vache_72h'!H66 -> 0.7258064516 | F66: ='Lisier de vache'!I66/'Lisier de vache_72h'!I66 -> 0.75 | H66: 0h | J66: ='Lisier de porc'!M66/'Lisier de porc__72h'!M66 -> 0.6 | K66: ='Lisier de porc'!N66/'Lisier de porc__72h'!N66 -> 0.6578947368 | L66: ='Lisier de porc'!O66/'Lisier de porc__72h'!O66 -> 0.679245283
B67: 3h | D67: ='Lisier de vache'!G67/'Lisier de vache_72h'!G67 -> 0.8715083799 | E67: ='Lisier de vache'!H67/'Lisier de vache_72h'!H67 -> 0.9388560158 | F67: ='Lisier de vache'!I67/'Lisier de vache_72h'!I67 -> 0.9659969088 | H67: 3h | J67: ='Lisier de porc'!M67/'Lisier de porc__72h'!M67 -> 0.8161764706 | K67: ='Lisier de porc'!N67/'Lisier de porc__72h'!N67 -> 0.896 | L67: ='Lisier de porc'!O67/'Lisier de porc__72h'!O67 -> 0.9300847458
B68: 6h | D68: ='Lisier de vache'!G68/'Lisier de vache_72h'!G68 -> 0.9094922737 | E68: ='Lisier de vache'!H68/'Lisier de vache_72h'!H68 -> 0.9565943239 | F68: ='Lisier de vache'!I68/'Lisier de vache_72h'!I68 -> 0.9708029197 | H68: 6h | J68: ='Lisier de porc'!M68/'Lisier de porc__72h'!M68 -> 0.8664688427 | K68: ='Lisier de porc'!N68/'Lisier de porc__72h'!N68 -> 0.9202733485 | L68: ='Lisier de porc'!O68/'Lisier de porc__72h'!O68 -> 0.937751004
B69: 24h | D69: ='Lisier de vache'!G69/'Lisier de vache_72h'!G69 -> 0.8919413919 | E69: ='Lisier de vache'!H69/'Lisier de vache_72h'!H69 -> 0.9590551181 | F69: ='Lisier de vache'!I69/'Lisier de vache_72h'!I69 -> 0.9723837209 | H69: 24h | J69: ='Lisier de porc'!M69/'Lisier de porc__72h'!M69 -> 0.855721393 | K69: ='Lisier de porc'!N69/'Lisier de porc__72h'!N69 -> 0.9224137931 | L69: ='Lisier de porc'!O69/'Lisier de porc__72h'!O69 -> 0.9381237525
B70: Sans incorporation | D70: ='Lisier de vache'!G70/'Lisier de vache_72h'!G70 -> 0.8886861314 | E70: ='Lisier de vache'!H70/'Lisier de vache_72h'!H70 -> 0.9590551181 | F70: ='Lisier de vache'!I70/'Lisier de vache_72h'!I70 -> 0.9723837209 | H70: Sans incorporation | J70: ='Lisier de porc'!M70/'Lisier de porc__72h'!M70 -> 0.8535980149 | K70: ='Lisier de porc'!N70/'Lisier de porc__72h'!N70 -> 0.9224137931 | L70: ='Lisier de porc'!O70/'Lisier de porc__72h'!O70 -> 0.9381237525
B72: Vitesse du vent (km/h) | C72: 25 | D72: km/h | H72: Vitesse du vent (km/h) | I72: 25 | J72: km/h
B73: Délai avant incorporation | C73: Température | D73: 10 | E73: 20 | F73: 30 | H73: Délai avant incorporation | I73: Température | J73: 10 | K73: 20 | L73: 30
B74: 0h | D74: ='Lisier de vache'!G74/'Lisier de vache_72h'!G74 -> 0.7213114754 | E74: ='Lisier de vache'!H74/'Lisier de vache_72h'!H74 -> 0.7474226804 | F74: ='Lisier de vache'!I74/'Lisier de vache_72h'!I74 -> 0.7562189055 | H74: 0h | J74: ='Lisier de porc'!M74/'Lisier de porc__72h'!M74 -> 0.6466666667 | K74: ='Lisier de porc'!N74/'Lisier de porc__72h'!N74 -> 0.6772151899 | L74: ='Lisier de porc'!O74/'Lisier de porc__72h'!O74 -> 0.6871165644
B75: 3h | D75: ='Lisier de vache'!G75/'Lisier de vache_72h'!G75 -> 0.9285714286 | E75: ='Lisier de vache'!H75/'Lisier de vache_72h'!H75 -> 0.9615384615 | F75: ='Lisier de vache'!I75/'Lisier de vache_72h'!I75 -> 0.9745042493 | H75: 3h | J75: ='Lisier de porc'!M75/'Lisier de porc__72h'!M75 -> 0.884180791 | K75: ='Lisier de porc'!N75/'Lisier de porc__72h'!N75 -> 0.9254385965 | L75: ='Lisier de porc'!O75/'Lisier de porc__72h'!O75 -> 0.9415204678
B76: 6h | D76: ='Lisier de vache'!G76/'Lisier de vache_72h'!G76 -> 0.9511343805 | E76: ='Lisier de vache'!H76/'Lisier de vache_72h'!H76 -> 0.96884273 | F76: ='Lisier de vache'!I76/'Lisier de vache_72h'!I76 -> 0.9761235955 | H76: 6h | J76: ='Lisier de porc'!M76/'Lisier de porc__72h'!M76 -> 0.9121140143 | K76: ='Lisier de porc'!N76/'Lisier de porc__72h'!N76 -> 0.9367346939 | L76: ='Lisier de porc'!O76/'Lisier de porc__72h'!O76 -> 0.9439071567
B77: 24h | D77: ='Lisier de vache'!G77/'Lisier de vache_72h'!G77 -> 0.9500805153 | E77: ='Lisier de vache'!H77/'Lisier de vache_72h'!H77 -> 0.9705882353 | F77: ='Lisier de vache'!I77/'Lisier de vache_72h'!I77 -> 0.9761235955 | H77: 24h | J77: ='Lisier de porc'!M77/'Lisier de porc__72h'!M77 -> 0.9140969163 | K77: ='Lisier de porc'!N77/'Lisier de porc__72h'!N77 -> 0.9373737374 | L77: ='Lisier de porc'!O77/'Lisier de porc__72h'!O77 -> 0.9439071567
B78: Sans incorporation | D78: ='Lisier de vache'!G78/'Lisier de vache_72h'!G78 -> 0.9500805153 | E78: ='Lisier de vache'!H78/'Lisier de vache_72h'!H78 -> 0.9705882353 | F78: ='Lisier de vache'!I78/'Lisier de vache_72h'!I78 -> 0.9761235955 | H78: Sans incorporation | J78: ='Lisier de porc'!M78/'Lisier de porc__72h'!M78 -> 0.9140969163 | K78: ='Lisier de porc'!N78/'Lisier de porc__72h'!N78 -> 0.9373737374 | L78: ='Lisier de porc'!O78/'Lisier de porc__72h'!O78 -> 0.9439071567
